Workbook

Sheet Instructions
A1: Version: July 2022
B3: This Surveillance and Infromation Sharing Operational Tool (SIS OT) Workbook should be used together with the SIS OT guide available at: https://www.fao.org/documents/card/en/c/cc0716en
B6: Surveillance and Information Sharing Operational Tool
B8: SIS OT WORKBOOK
B10: The SIS OT workbook is the core instrument of the Surveillance and Information Sharing Operational Tool (SIS OT). The SIS OT supports national authorities in their efforts to establish or strengthen a One Health multi-sectoral coordinated surveillance and information sharing (SIS) system for zoonotic diseases. The SIS OT was developed as part of a joint Tripartite (FAO, WHO and WOAH) effort to establish practical tools to help countries implement the guidance in the Tripartite Zoonoses Guide (TZG) and strengthen One Health approaches in countries to address zoonotic diseases. The SIS OT workbook guides users through a step-by-step assessment of the degree of development of coordinated surveillance and information sharing in a country, using five stages for building coordinated zoonotic disease surveillance capacity, divided into three sections: Section 1: Pre-planning; Section 2: Assessment; Planning; and Implementation; Section 3: Monitoring and Evaluation. These sections contain a total of 32 unique activities for SIS development, grouped into 14 categories. Once the assessment of all the stages is completed, the SIS OT workbook guides users through the planning process to identify the activities that will build or strengthen national surveillance and information sharing for zoonotic diseases, a list of suggested resources and tools to accomplish each step, and the development of an implementation roadmap for those activities.
B35: Instructions
B36: Users are strongly encouraged to read the SIS OT document and these instructions prior to using the SIS OT workbook. Assessment • After reading these instructions start with the “Map” page using the navigation menu on the left, or by clicking on the "Next: Map" button on the upper or lower right. This page maps the assessment process and allows a quick access to the different steps in the SIS OT process in the workbook. The assessment can be done in a linear manner, following the order of the categories within each section using the “Next” buttons at the bottom of the pages, or in a user-preferred order by directly accessing the targeted categories through the “Map”. • Start the assessment from the Section 1: “Pre-planning” stage by clicking on the button "Section I". - Complete the assessment process in the same manner for Level 2 and Level 3. Please note that some activities have only one or two capacity levels, for example only Level 1 or Level 1 and Level 3. - The comment box can be used to record important discussion points for further reference. - After completing all activities within the category, proceed to the next category by using the "Next" button or navigating through the Map. - After completing all categories within the section, access the next section by using the "Next" button, or through the Map, and repeat the process. Users can return to the previous category by using the “Back” button. - After completing all three sections, go back to the Map to revise any assessments, if needed. Review of Assessment Results • After completing assessment, advance to the “Assessment Results” using the tool navigation menu on the left or by clicking on the "Next: Assessment Results" button from the page of last category “Data Quality Standards”, or navigate using the Map. • Review “Assessment results”. This page presents the next capacity level (Level 1, Level 2 or Level 3) of the 32 assessed activities, as the “target capacity level” for the country to achieve next. For example, if Level 1 capacity level is achieved for a particular activity, the target capacity level will be “Level 2”. An activity is considered fully met and competent when a country has achieved Level 3. • If the target capacity level shows “N/A” as the result, the assessment for this particular activity has not been completed, therefore return back to the assessment page of this activity using the corresponding button on the right next to the Resource Guide column. Selection of tools and resources to support activities implementation • Start from the “Attribute survey’’ page using the tool navigation menu. - Assign a point value (between 0 and 100) for each of the nine attributes used to describe the tools and resources in the corresponding box to the right of the attribute description. Assign the values so that a total of 100 points is distributed between the nine attributes, weighted according to their relative importance for resource selection to the user. • After completion of the attribute survey go to the “Assessment Results” page of the SIS OT Workbook, using the navigation menu “Assessment Results” button or clicking on the "Next: Assessment Results" on the bottom. - The arrows for each activity on the Assessment Results indicate links to the “resource pages’ with the list of recommended resources and tools available to support advancement to the target capacity level for that activity. For each activity access to the resources page is through the corresponding link. - The resource pages contain the list of resources for each activity, grouped by their purpose. “Best fit” resources are those whose primary purpose or function is to directly assist the user to complete the defined activity, whereas “Other relevant” resources are those that partially or indirectly assist the user to complete the activity. - The resource pages provide for each of the resources listed a short description, information on the type, information on the generality of the resource, such as whether it is sector-specific or One Health, and whether it is specific for one disease, or generalized for all zoonotic or infectious diseases. - The page also provides scores from the reviews of each of the tools by the SIS OT development team, which are provided to facilitate selection. Both the raw scores from the tool review process, and weighted scores based on the values assigned by users to each of the nine attributes, are provided to facilitate selection. - The corresponding “Go to toolbox” button provides access to more detailed information about the resource in the toolbox. - Select one or two candidate resources to assist accomplishing each activity based on the information presented for each resource. • Go to the “Resource selection” page through the navigation menu. Record selected resources in in the “Resource 1” column using the dropdown list for each activity. To record a second resource option, if it has been selected, use column “Resource 2”. Prioritization and roadmap • Go to the “Prioritization and Roadmap’’ page through the navigation menu. - For each target activity, select an implementation time and priority (e.g., “to be addressed now- in 1 year’’ - high priority; “to be started in 2-3 years” - medium priority; “to be started in > 3 years” - low priority) from the dropdown list. If the activity is assessed as complete, select “completed” from the dropdown list and do not address it in the discussions. - Determine and agree upon a timeframe (e.g., 3 years, or 5 years) for the SIS development plan. - Select the activities to be addressed for this SIS development plan basing on their implementation time and priority and with consideration of agreed plan’s timeframe (e.g., for 3- years plan high and medium priority activities can be selected). - For the activities which have been decided not to be addressed, select “not to be addressed for this plan” from the dropdown list. - Modify the Gantt chart according to the selected development plan timeframe (e.g., 5 years, starting from 1st quarter of year 2020). - For each target activity selected for the SIS development plan decide on implementation timeframe including both the activity duration (e.g., one quarter; two quarters; or to the end of the planning period) and time to start the activity (e.g., first quarter of Year 1) with consideration of the implementation time and priority previously selected for this activity. Indicate this timeframe on the Gantt chart by color shading and using the drop-down lists in the “Activity start quarter” and “Activity duration” columns. Development plan • Go to the “Development Plan” page through the navigation menu. The following elements resulting from the selections on the previous pages, and as described above are reflected automatically in the development plan table: - Activity and target capacity level - Selected resources and tools - Activity start time - Activity duration Complete the remaining columns for each activity, including the list of actions necessary to achieve the activity, roles and responsibilities for implementation of these actions, expected challenges, contact points and indicators to monitor and demonstrate achievements and advocate for resources and support. Review and adjust all elements reflected from different worksheets where necessary.
B135: ©World Health Organization (WHO), Food and Agriculture Organization of the United Nations (FAO) and World Organisation for Animal Health (WOAH), 2022. All rights reserved.

Sheet Map
B3: Surveillance and Information Sharing Operational Tool
B6: SIS OT WORKBOOK: MAP

Sheet Attribute Survey
B2: Attribute Survey
B6: You have now completed responses in all three sections! Before moving on to Results, determine the attrributes of any given resource that are most important for your use. This step allows you to assign weighted point values to the 9 different attributes used to evaluate the resources in the SIS OT. The point values you assign should be based on their relative importance to you for selecting these resources and are used to calculate a user- specific adjusted overall score for each resource, based on the evaluation scores that were assigned by the SIS OT team of reviewers. The weighted scores can help you better identify resources that align with your preferences.
B14: Please assign point values (ranging from 1-100) to each attribute described below, with the total for all attributes to equal 100.
C18: ATTRIBUTE | H18: ATTRIBUTE DESCRIPTION | S18: POINT VALUE (Between 1 and 100, and totalling 100) | V18: ←Must be between 1 and 100, and the sum of all attributes must total 100!
C22: Accessibility | H22: The logistics for accessing and using the tool, such as openness or accessibility, cost, and user support
C26: Language | H26: The availability of the resource and ease of translation into different languages
C30: Ease of Use | H30: The level of complexity and difficulty to navigate and understand the resource, as well as technical or operational skillsets required to use the tool
C34: Flexibility | H34: The adaptability of the tool for use in different contexts and scenarios
C38: Data Needs | H38: The system and device requirements that need to be met for the resource to operate, as well as data storage and security
C42: Data Analysis | H42: How the resource processes and quality checks data, including tool output and resporting capacity
C46: Acceptability | H46: Metrics of the resource's acceptance for use, based off publications, reports, and/or number of pilots and implementations
C50: One Health | H50: The ability of the resource to facilitate communication and collaboration across One Health sectors (human, animal, environment health and relevant partners)
C54: Impact | H54: Evidence that the resource has resulted in improvements in One Health or surveillance capacity based on monitoring and evaluation indicators or past examples
C58: TOTAL | S58: =SUM(S22:T56) -> 0

Sheet Results
B2: ASSESSMENT RESULTS
B6: STAGE | G6: ACTIVITY | K6: Activity Description | T6: Target Capacity Level | X6: Level Indicator | Y6: Resource Guide
B9: Pre- Planning | G9: =""&Activities!B2 -> PP-1 Identifying Preliminary Stakeholders | K9: =IF('Focal Points'!O44=0,AE9,IF(AND('Focal Points'!O44=1,'Focal Points'!X44=0),AE10,IF(AND('Focal Points'!X44=1,'Focal Points'!AG44=0),AE11,"Complete"))) -> Focal points, "champions" or technical working groups have been identified in all participating sectors at the national level for planning the implementation of coordinated surveillance | T9: =IF('Focal Points'!O44="","N/A",IF(AND('Focal Points'!O44=0),"Level 1",IF(AND('Focal Points'!O44=1,'Focal Points'!X44=0),"Level 2",IF(AND('Focal Points'!X44=1,'Focal Points'!AG44=0),"Level 3","Complete")))) -> N/A | X9: → | Y9: Click to View Level 1 Resources | AE9: =Activities!C2 -> Focal points, "champions" or technical working groups have been identified in all participating sectors at the national level for planning the implementation of coordinated surveillance
X10: → | Y10: No Level 2 Resources (see Level 1) | AE10: =Activities!C3 -> Focal points, "champions" or technical working groups have been identified in all participating sectors and at all country levels for planning the implementation of coordinated surveillance
X11: → | Y11: Click to View Level 3 Resources | AE11: =Activities!C4 -> Focal points, "champions" or technical working groups (including identified focal points or "champions") for coordinated surveillance have been institutionalized (e.g. through a governing body such as an MCM)
G13: =""&Activities!B5 -> PP-2 Prioritization | K13: =IF(Prioritization!O44=0,AE13,IF(AND(Prioritization!O44=1,Prioritization!X44=0),AE14,IF(AND(Prioritization!X44=1,Prioritization!AG44=0),AE15,"Complete"))) -> A list of prioritized zoonotic diseases exists for inclusion in a coordinated surveillance system | T13: =IF(Prioritization!O44="","N/A",IF(AND(Prioritization!O44=0),"Level 1",IF(AND(Prioritization!O44=1,Prioritization!X44=0),"Level 2",IF(AND(Prioritization!X44=1,Prioritization!AG44=0),"Level 3","Complete")))) -> N/A | X13: → | Y13: Click to View Level 1 Resources | AE13: =Activities!C5 -> A list of prioritized zoonotic diseases exists for inclusion in a coordinated surveillance system
X14: → | Y14: No Level 2 Resources (see Level 1) | AE14: =Activities!C6 -> A list of zoonotic diseases is broadly distributed to the subnational and community levels
X15: → | Y15: No Level 3 Resources (see Level 1) | AE15: =Activities!C7 -> A list of zoonotic diseases is developed using a multisectoral, One Health approach. Such an approach would involve all relevant sectors in an evidence-based, transparent, repeatable prioritization process
G17: =""&Activities!B8 -> PP-3 Goal Setting | K17: =IF('Goal Setting'!O44=0,AE17,IF(AND('Goal Setting'!O44=1,'Goal Setting'!X44=0),AE18,IF(AND('Goal Setting'!X44=1,'Goal Setting'!AG44=0),AE19,"Complete"))) -> Goal(s), roles, and responsibilities of all participating sectors of the coordinated surveillance system are agreed upon at the national level | T17: =IF('Goal Setting'!O44="","N/A",IF(AND('Goal Setting'!O44=0),"Level 1",IF(AND('Goal Setting'!O44=1,'Goal Setting'!X44=0),"Level 2",IF(AND('Goal Setting'!X44=1,'Goal Setting'!AG44=0),"Level 3","Complete")))) -> N/A | X17: → | Y17: Click to View Level 1 Resources | AE17: =Activities!C8 -> Goal(s), roles, and responsibilities of all participating sectors of the coordinated surveillance system are agreed upon at the national level
X18: → | Y18: Click to View Level 2 Resources | AE18: =Activities!C9 -> Goal(s), roles, and responsibilities of all participating sectors of the coordinated surveillance system are agreed upon and expanded to include all country levels
X19: → | Y19: Click to View Level 3 Resources | AE19: =Activities!C10 -> Goal(s), roles and responsibilities of the coordinated surveillance system have been re-evaluated to reflect the current needs of the coordinated surveillance system
B21: Assessment | G21: =""&Activities!G2 -> A-1 Stakeholder Mapping | K21: =IF(Stakeholders!O44=0,AE21,IF(AND(Stakeholders!O44=1,Stakeholders!X44=0),AE22,IF(AND(Stakeholders!X44=1,Stakeholders!AG44=0),AE23,"Complete"))) -> Stakeholders working in surveillance, epidemiology, laboratory, and information sharing have been identified | T21: =IF(Stakeholders!O44="","N/A",IF(AND(Stakeholders!O44=0),"Level 1",IF(AND(Stakeholders!O44=1,Stakeholders!X44=0),"Level 2",IF(AND(Stakeholders!X44=1,Stakeholders!AG44=0),"Level 3","Complete")))) -> N/A | X21: → | Y21: Click to View Level 1 Resources | AE21: =Activities!H2 -> Stakeholders working in surveillance, epidemiology, laboratory, and information sharing have been identified
X22: → | Y22: Click to View Level 2 Resources | AE22: =Activities!H3 -> Stakeholder analysis has been used to identify participants at all country levels
X23: → | Y23: Click to View Level 3 Resources | AE23: =Activities!H4 -> Roles and responsibilities of stakeholders have been institutionalized and adopted in policy
G25: =""&Activities!G5 -> A-2 Surveillance System Linkage Assessment | K25: =IF('Plans & Organization'!O44=0,AE25,IF(AND('Plans & Organization'!O44=1,'Plans & Organization'!X44=0),AE26,IF(AND('Plans & Organization'!X44=1,'Plans & Organization'!AG44=0),AE27,"Complete"))) -> The interlinkages between current prioritized zoonotic disease surveillance systems have been assessed among sectors | T25: =IF('Plans & Organization'!O44="","N/A",IF(AND('Plans & Organization'!O44=0),"Level 1",IF(AND('Plans & Organization'!O44=1,'Plans & Organization'!X44=0),"Level 2",IF(AND('Plans & Organization'!X44=1,'Plans & Organization'!AG44=0),"Level 3","Complete")))) -> N/A | X25: → | Y25: Click to View Level 1 Resources | AE25: =Activities!H5 -> The interlinkages between current prioritized zoonotic disease surveillance systems have been assessed among sectors
X26: → | Y26: Click to View Level 2 Resources | AE26: =Activities!H6 -> The interlinkages between current surveillance systems have been assessed among sectors and at all country levels
X27: → | Y27: Click to View Level 3 Resources | AE27: =Activities!H7 -> The interlinkages between current surveillance systems have been assessed and determined to meet the objectives of the coordinated surveillance system
G29: =""&Activities!G8 -> A-3 Legal Frameworks Assessment | K29: =IF('Policy & Legal'!O44=0,AE29,IF(AND('Policy & Legal'!O44=1,'Policy & Legal'!AG44=0),AE31,"Complete")) -> The legal frameworks (rules, policies, guidelines and regulations including international standards) that govern the ethical and privacy standards for surveillance and data sharing have been assessed | T29: =IF('Policy & Legal'!O44="","N/A",IF(AND('Policy & Legal'!O44=0),"Level 1",IF(AND('Policy & Legal'!O44=1,'Policy & Legal'!AG44=0),"Level 3","Complete"))) -> N/A | X29: → | Y29: Click to View Level 1 Resources | AE29: =Activities!H8 -> The legal frameworks (rules, policies, guidelines and regulations including international standards) that govern the ethical and privacy standards for surveillance and data sharing have been assessed
X30: →
X31: → | Y31: No Level 3 Resources (see Level 1) | AE31: =Activities!H9 -> The legal frameworks (rules, policies, guidelines and regulations including international standards) that govern the ethical and privacy standards for surveillance and data sharing are assessed at all country levels
G33: =""&Activities!G16 -> A-4 Infrastructure Mapping | K33: =IF('Plans & Organization'!O60=0,AE33,IF(AND('Plans & Organization'!O60=1,'Plans & Organization'!X60=0),AE34,IF(AND('Plans & Organization'!X60=1,'Plans & Organization'!AG60=0),AE35,"Complete"))) -> Basic infrastructure mapping exercises (as defined in TZG CH 4.1) have been used to describe the structure and linkages within and between the sectors | T33: =IF('Plans & Organization'!O60="","N/A",IF(AND('Plans & Organization'!O60=0),"Level 1",IF(AND('Plans & Organization'!O60=1,'Plans & Organization'!X60=0),"Level 2",IF(AND('Plans & Organization'!X60=1,'Plans & Organization'!AG60=0),"Level 3","Complete")))) -> N/A | X33: → | Y33: Click to View Level 1 Resources | AE33: =Activities!H16 -> Basic infrastructure mapping exercises (as defined in TZG CH 4.1) have been used to describe the structure and linkages within and between the sectors
X34: → | Y34: Click to View Level 2 Resources | AE34: =Activities!H17 -> Infrastructure mapping has been used to describe the majority of mapping areas (as described in TZG CH 4.1)
X35: → | Y35: No Level 3 Resources (see Level 2) | AE35: =Activities!H18 -> Comprehensive infrastructure mapping has been used to describe all mapping areas (as described in TZG CH 4.1).
G37: =""&Activities!G19 -> A-5 Economic Needs Assessment | K37: =IF('Budgets & Finances'!O44=0,AE37,IF(AND('Budgets & Finances'!O44=1,'Budgets & Finances'!AG44=0),AE39,"Complete")) -> Economic assessments have been used to determine national financial needs for the coordinated surveillance system | T37: =IF('Budgets & Finances'!O44="","N/A",IF(AND('Budgets & Finances'!O44=0),"Level 1",IF(AND('Budgets & Finances'!O44=1,'Budgets & Finances'!AG44=0),"Level 3","Complete"))) -> N/A | X37: → | Y37: Click to View Level 1 Resources | AE37: =Activities!H19 -> Economic assessments have been used to determine national financial needs for the coordinated surveillance system
X39: → | Y39: Click to View Level 3 Resources | AE39: =Activities!H20 -> Economic assessments have been used to determine the financial needs at all country levels for the coordinated surveillance system
G41: =""&Activities!G21 -> A-6 Laboratory Capacity Assessment | K41: =IF(Laboratory!O44=0,AE41,IF(AND(Laboratory!O44=1,Laboratory!X44=0),AE42,IF(AND(Laboratory!X44=1,Laboratory!AG44=0),AE43,"Complete"))) -> Laboratory assessments have been used to identify qualified national or international reference laboratories that can carry out testing to support the coordinated surveillance activities | T41: =IF(Laboratory!O44="","N/A",IF(AND(Laboratory!O44=0),"Level 1",IF(AND(Laboratory!O44=1,Laboratory!X44=0),"Level 2",IF(AND(Laboratory!X44=1,Laboratory!AG44=0),"Level 3","Complete")))) -> N/A | X41: → | Y41: Click to View Level 1 Resources | AE41: =Activities!H21 -> Laboratory assessments have been used to identify qualified national or international reference laboratories that can carry out testing to support the coordinated surveillance activities
X42: → | Y42: Click to View Level 2 Resources | AE42: =Activities!H22 -> Laboratory assessments have been used to identify qualified laboratories at all levels (including international) that can carry out testing to support the coordinated surveillance activities
X43: → | Y43: No Level 3 Resources (see Level 2) | AE43: =Activities!H23 -> Laboratory assessments have been used to identify a network of qualified laboratories that can carry out testing to support the coordinated surveillance activities
G45: =""&Activities!G24 -> A-7 Laboratory Transport and Interpretation Assessment | K45: =IF(Laboratory!O62=0,AE45,IF(AND(Laboratory!O62=1,Laboratory!X62=0),AE46,IF(AND(Laboratory!X62=1,Laboratory!AG62=0),AE47,"Complete"))) -> Laboratory supply, transport chains and results interpretation have been assessed for harmonization between participating sectors at the national level | T45: =IF(Laboratory!O62="","N/A",IF(AND(Laboratory!O62=0),"Level 1",IF(AND(Laboratory!O62=1,Laboratory!X62=0),"Level 2",IF(AND(Laboratory!X62=1,Laboratory!AG62=0),"Level 3","Complete")))) -> N/A | X45: → | Y45: Click to View Level 1 Resources | AE45: =Activities!H24 -> Laboratory supply, transport chains and results interpretation have been assessed for harmonization between participating sectors at the national level
X46: → | Y46: Click to View Level 2 Resources | AE46: =Activities!H25 -> Laboratory supply, transport chains and results interpretation between participating sectors have been assessed for harmonization at all country levels
X47: → | Y47: No Level 3 Resources (see Level 2) | AE47: =Activities!H26 -> The degree of harmonization in laboratory supply, transport chains and results interpretation between participating sectors have been assessed and determined to meet the objectives of the coordinated surveillance system
G49: =""&Activities!G27 -> A-8 Workforce Assessment | K49: =IF(Workforce!O44=0,AE49,IF(AND(Workforce!O44=1,Workforce!AG44=0),AE51,"Complete")) -> Workforce assessments have been conducted to identify current workforce requirements, competencies, needs and gaps at the national level | T49: =IF(Workforce!O44="","N/A",IF(AND(Workforce!O44=0),"Level 1",IF(AND(Workforce!O44=1,Workforce!AG44=0),"Level 3","Complete"))) -> N/A | X49: → | Y49: Click to View Level 1 Resources | AE49: =Activities!H27 -> Workforce assessments have been conducted to identify current workforce requirements, competencies, needs and gaps at the national level
X51: → | Y51: Click to View Level 3 Resources | AE51: =Activities!H28 -> Workforce assessment have been conducted to identify current workforce requirements, competencies, needs and gaps at all country levels
B53: Planning | G53: =""&Activities!L2 -> Pl-1 Political Will | K53: =IF(Stakeholders!O66=0,AE53,IF(AND(Stakeholders!O66=1,Stakeholders!X66=0),AE54,IF(AND(Stakeholders!X66=1,Stakeholders!AG66=0),AE55,"Complete"))) -> Decision makers for the coordinated surveillance system have been identified | T53: =IF(Stakeholders!O66="","N/A",IF(AND(Stakeholders!O66=0),"Level 1",IF(AND(Stakeholders!O66=1,Stakeholders!X66=0),"Level 2",IF(AND(Stakeholders!X66=1,Stakeholders!AG66=0),"Level 3","Complete")))) -> N/A | X53: → | Y53: Click to View Level 1 Resources | AE53: =Activities!M2 -> Decision makers for the coordinated surveillance system have been identified
X54: → | Y54: Click to View Level 2 Resources | AE54: =Activities!M3 -> Political will for the coordinated surveillance system is established, and advocates exists at all country levels
X55: → | Y55: Click to View Level 3 Resources | AE55: =Activities!M4 -> There is an advocacy strategy that informs communication with decision-makers on the coordinated surveillance system
G57: =""&Activities!L5 -> PL-2 Common Data Elements | K57: =IF('Data Storage & Sharing'!O44=0,AE57,IF(AND('Data Storage & Sharing'!O44=1,'Data Storage & Sharing'!X44=0),AE58,IF(AND('Data Storage & Sharing'!X44=1,'Data Storage & Sharing'!AG44=0),AE59,"Complete"))) -> The common data elements are identified and agreed upon within each participating sector to meet the common analytical goals of the coordinated surveillance system at the national level | T57: =IF('Data Storage & Sharing'!O44="","N/A",IF(AND('Data Storage & Sharing'!O44=0),"Level 1",IF(AND('Data Storage & Sharing'!O44=1,'Data Storage & Sharing'!X44=0),"Level 2",IF(AND('Data Storage & Sharing'!X44=1,'Data Storage & Sharing'!AG44=0),"Level 3","Complete")))) -> N/A | X57: → | Y57: Click to View Level 1 Resources | AE57: =Activities!M5 -> The common data elements are identified and agreed upon within each participating sector to meet the common analytical goals of the coordinated surveillance system at the national level
X58: → | Y58: Click to View Level 2 Resources | AE58: =Activities!M6 -> The common data elements are identified and agreed upon within each participating sector to meet the common analytical goals of the coordinated surveillance system at all country levels
X59: → | Y59: Click to View Level 3 Resources | AE59: =Activities!M7 -> The common data elements are standardized among participating sectors based on the common analytical goals of the coordinated surveillance system and adhere to international data standards
G61: =""&Activities!L8 -> PL-3 Strategic Plans and Frameworks for Coordinated Surveillance | K61: =IF('Plans & Organization'!O82=0,AE61,IF(AND('Plans & Organization'!O82=1,'Plans & Organization'!X82=0),AE62,IF(AND('Plans & Organization'!X82=1,'Plans & Organization'!AG82=0),AE63,"Complete"))) -> A multi-sectoral collection and review of the national strategic documents (strategies, frameworks and strategic plans) related to the coordinated surveillance system occurred, for the purposes of planning | T61: =IF('Plans & Organization'!O82="","N/A",IF(AND('Plans & Organization'!O82=0),"Level 1",IF(AND('Plans & Organization'!O82=1,'Plans & Organization'!X82=0),"Level 2",IF(AND('Plans & Organization'!X82=1,'Plans & Organization'!AG82=0),"Level 3","Complete")))) -> N/A | X61: → | Y61: Click to View Level 1 Resources | AE61: =Activities!M8 -> A multi-sectoral collection and review of the national strategic documents (strategies, frameworks and strategic plans) related to the coordinated surveillance system occurred, for the purposes of planning
X62: → | Y62: Click to View Level 2 Resources | AE62: =Activities!M9 -> National strategic documents (strategies, frameworks and strategic plans) for the coordinated surveillance system consolidated and linked based on assessment at all country levels
X63: → | Y63: Click to View Level 3 Resources | AE63: =Activities!M10 -> Revised strategic documents (strategies, frameworks and strategic plans) for the coordinated surveillance system aligned with international standards and recommendations
G65: =""&Activities!L11 -> PL-4 National operational plans | K65: =IF('Plans & Organization'!O98=0,AE65,IF(AND('Plans & Organization'!O98=1,'Plans & Organization'!X98=0),AE66,IF(AND('Plans & Organization'!X98=1,'Plans & Organization'!AG98=0),AE67,"Complete"))) -> A multi-sectoral collection and review of the national operational plans and other relevant documents (including surveillance plans, case definitions, protocols, and Standard Operating Procedures) related to the coordinated surveillance system occurred for the purposes of planning | T65: =IF('Plans & Organization'!O98="","N/A",IF(AND('Plans & Organization'!O98=0),"Level 1",IF(AND('Plans & Organization'!O98=1,'Plans & Organization'!X98=0),"Level 2",IF(AND('Plans & Organization'!X98=1,'Plans & Organization'!AG98=0),"Level 3","Complete")))) -> N/A | X65: → | Y65: Click to View Level 1 Resources | AE65: =Activities!M11 -> A multi-sectoral collection and review of the national operational plans and other relevant documents (including surveillance plans, case definitions, protocols, and Standard Operating Procedures) related to the coordinated surveillance system occurred for the purposes of planning
X66: → | Y66: Click to View Level 2 Resources | AE66: =Activities!M12 -> Revised operational plans and other relevant documents (including surveillance plans, case definitions, protocols, and Standard Operating Procedures) related to the coordinated surveillance and information sharing system are agreed upon by the agencies conducting surveillance at all country levels
X67: → | Y67: Click to View Level 3 Resources | AE67: =Activities!M13 -> Revised operational plans (including surveillance plans, case definitions, protocols, and Standard Operating Procedures) for the coordinated surveillance system are aligned with international guidelines and recommendations
G69: =""&Activities!L14 -> PL-5 Financial Planning | K69: =IF('Budgets & Finances'!O66=0,AE69,IF(AND('Budgets & Finances'!O66=1,'Budgets & Finances'!X66=0),AE70,IF(AND('Budgets & Finances'!X66=1,'Budgets & Finances'!AG66=0),AE71,"Complete"))) -> There is a budgetary plan and a mechanism for distributing funds for coordinated surveillance at the national level | T69: =IF('Budgets & Finances'!O66="","N/A",IF(AND('Budgets & Finances'!O66=0),"Level 1",IF(AND('Budgets & Finances'!O66=1,'Budgets & Finances'!X66=0),"Level 2",IF(AND('Budgets & Finances'!X66=1,'Budgets & Finances'!AG66=0),"Level 3","Complete")))) -> N/A | X69: → | Y69: Click to View Level 1 Resources | AE69: =Activities!M14 -> There is a budgetary plan and a mechanism for distributing funds for coordinated surveillance at the national level
X70: → | Y70: No Level 2 Resources (see Level 1) | AE70: =Activities!M15 -> There is a budgetary plan and a mechanism for distributing funds for coordinated surveillance at all country levels
X71: → | Y71: No Level 3 Resources (see Level 1) | AE71: =Activities!M16 -> The budgetary plan and a mechanism for distributing funds has been assessed and determined to meet the objectives of the coordinated surveillance system
G73: =""&Activities!L17 -> PL-6 Workforce Planning | K73: =IF(Workforce!O66=0,AE73,IF(AND(Workforce!O66=1,Workforce!X66=0),AE74,IF(AND(Workforce!X66=1,Workforce!AG66=0),AE75,"Complete"))) -> An education and training plan for the coordinated surveillance system exists based on workforce assessment at the national level | T73: =IF(Workforce!O66="","N/A",IF(AND(Workforce!O66=0),"Level 1",IF(AND(Workforce!O66=1,Workforce!X66=0),"Level 2",IF(AND(Workforce!X66=1,Workforce!AG66=0),"Level 3","Complete")))) -> N/A | X73: → | Y73: Click to View Level 1 Resources | AE73: =Activities!M17 -> An education and training plan for the coordinated surveillance system exists based on workforce assessment at the national level
X74: → | Y74: No Level 2 Resources (see Level 1) | AE74: =Activities!M18 -> An education and training plan for the coordinated surveillance system exists based on workforce assessment at all country levels
X75: → | Y75: No Level 3 Resources (see Level 1) | AE75: =Activities!M19 -> Workforce education and training is linked to national multisectoral workforce planning and is informed by international competencies and assessments
G77: =""&Activities!L20 -> PL-7 Legal Frameworks Planning | K77: =IF('Policy & Legal'!O66=0,AE77,IF(AND('Policy & Legal'!O66=1,'Policy & Legal'!X66=0),AE78,IF(AND('Policy & Legal'!X66=1,'Policy & Legal'!AG66=0),AE79,"Complete"))) -> Necessary legal frameworks (rules, policies, guidelines and regulations including international standards) have been standardized across sectors based on assessment at the national level | T77: =IF('Policy & Legal'!O66="","N/A",IF(AND('Policy & Legal'!O66=0),"Level 1",IF(AND('Policy & Legal'!O66=1,'Policy & Legal'!X66=0),"Level 2",IF(AND('Policy & Legal'!X66=1,'Policy & Legal'!AG66=0),"Level 3","Complete")))) -> N/A | X77: → | Y77: Click to View Level 1 Resources | AE77: =Activities!M20 -> Necessary legal frameworks (rules, policies, guidelines and regulations including international standards) have been standardized across sectors based on assessment at the national level
X78: → | Y78: No Level 2 Resources (see Level 1) | AE78: =Activities!M21 -> Necessary legal frameworks (rules, policies, guidelines and regulations including international standards) have been standardized across sectors based on assessment at all country levels
X79: → | Y79: Click to View Level 3 Resources | AE79: =Activities!M22 -> Revised legal frameworks for the coordinated surveillance system have been aligned with international standards and recommendations.
G81: =""&Activities!L23 -> PL-8 Coordinated Communication Planning | K81: =IF('Communication & Reporting'!O44=0,AE81,IF(AND('Communication & Reporting'!O44=1,'Communication & Reporting'!X44=0),AE82,IF(AND('Communication & Reporting'!X44=1,'Communication & Reporting'!AG44=0),AE83,"Complete"))) -> Communications terminology and messages are aligning among all sectors participating in the coordinated surveillance system at the national level. | T81: =IF('Communication & Reporting'!O44="","N/A",IF(AND('Communication & Reporting'!O44=0),"Level 1",IF(AND('Communication & Reporting'!O44=1,'Communication & Reporting'!X44=0),"Level 2",IF(AND('Communication & Reporting'!X44=1,'Communication & Reporting'!AG44=0),"Level 3","Complete")))) -> N/A | X81: → | Y81: Click to View Level 1 Resources | AE81: =Activities!M23 -> Communications terminology and messages are aligning among all sectors participating in the coordinated surveillance system at the national level.
X82: → | Y82: Click to View Level 2 Resources | AE82: =Activities!M24 -> Communications terminology and messages are aligned among all sectors participating in the coordinated surveillance system and disseminated at all country levels
X83: → | Y83: Click to View Level 3 Resources | AE83: =Activities!M25 -> There is a communications strategy and/or communications plan (which includes terminology and messaging) that informs communication with stakeholders and the public for the coordinated surveillance system
B85: Implementation | G85: =""&Activities!Q2 -> I-1 Mobilizing Financial Resources | K85: =IF('Budgets & Finances'!O88=0,AE85,IF(AND('Budgets & Finances'!O88=1,'Budgets & Finances'!X88=0),AE86,IF(AND('Budgets & Finances'!X88=1,'Budgets & Finances'!AG88=0),AE87,"Complete"))) -> Funding exists for coordinated surveillance at the national level | T85: =IF('Budgets & Finances'!O88="","N/A",IF(AND('Budgets & Finances'!O88=0),"Level 1",IF(AND('Budgets & Finances'!O88=1,'Budgets & Finances'!X88=0),"Level 2",IF(AND('Budgets & Finances'!X88=1,'Budgets & Finances'!AG88=0),"Level 3","Complete")))) -> N/A | X85: → | Y85: Click to View Level 1 Resources | AE85: =Activities!R2 -> Funding exists for coordinated surveillance at the national level
X86: → | Y86: Click to View Level 2 Resources | AE86: =Activities!R3 -> Funding exists for coordinated surveillance at all country levels
X87: → | Y87: Click to View Level 3 Resources | AE87: =Activities!R4 -> Sustainable funding (i.e, included in the national budget) is allocated for coordinated surveillance activities and has been assessed and determined to meet the objectives of the coordinated surveillance system
G89: =""&Activities!Q5 -> I-2 Mobilizing Human Resources and Stakeholders | K89: =IF(Stakeholders!O88=0,AE89,IF(AND(Stakeholders!O88=1,Stakeholders!X88=0),AE90,IF(AND(Stakeholders!X88=1,Stakeholders!AG88=0),AE91,"Complete"))) -> Focal points or technical working groups meet on an ad hoc basis | T89: =IF(Stakeholders!O88="","N/A",IF(AND(Stakeholders!O88=0),"Level 1",IF(AND(Stakeholders!O88=1,Stakeholders!X88=0),"Level 2",IF(AND(Stakeholders!X88=1,Stakeholders!AG88=0),"Level 3","Complete")))) -> N/A | X89: → | Y89: Click to View Level 1 Resources | AE89: =Activities!R5 -> Focal points or technical working groups meet on an ad hoc basis
X90: → | Y90: Click to View Level 2 Resources | AE90: =Activities!R6 -> Focal points or technical working groups meet on a routine basis and to address priority issues as they arise
X91: → | Y91: Click to View Level 3 Resources | AE91: =Activities!R7 -> Technical working groups regularly review and optimize coordinated surveillance activities
G93: =""&Activities!Q8 -> I-3 Data Exchange & Information Sharing | K93: =IF('Data Storage & Sharing'!O65=0,AE93,IF(AND('Data Storage & Sharing'!O65=1,'Data Storage & Sharing'!X65=0),AE94,IF(AND('Data Storage & Sharing'!X65=1,'Data Storage & Sharing'!AG65=0),AE95,"Complete"))) -> There is a mechanism to share data between sectors at the national level | T93: =IF('Data Storage & Sharing'!O65="","N/A",IF(AND('Data Storage & Sharing'!O65=0),"Level 1",IF(AND('Data Storage & Sharing'!O65=1,'Data Storage & Sharing'!X65=0),"Level 2",IF(AND('Data Storage & Sharing'!X65=1,'Data Storage & Sharing'!AG65=0),"Level 3","Complete")))) -> N/A | X93: → | Y93: Click to View Level 1 Resources | AE93: =Activities!R8 -> There is a mechanism to share data between sectors at the national level
X94: → | Y94: Click to View Level 2 Resources | AE94: =Activities!R9 -> There is a mechanism to share data between sectors at all country levels
X95: → | Y95: Click to View Level 3 Resources | AE95: =Activities!R10 -> There is a mechanism to share data that is accessible, functional, and usable by all participating sectors
G97: =""&Activities!Q11 -> I-4 Data Storage | K97: =IF('Data Storage & Sharing'!O81=0,AE97,IF(AND('Data Storage & Sharing'!O81=1,'Data Storage & Sharing'!X81=0),AE98,IF(AND('Data Storage & Sharing'!X81=1,'Data Storage & Sharing'!AG81=0),AE99,"Complete"))) -> There is a structure and location to store and maintain data from multiple sectors at the national level. | T97: =IF('Data Storage & Sharing'!O81="","N/A",IF(AND('Data Storage & Sharing'!O81=0),"Level 1",IF(AND('Data Storage & Sharing'!O81=1,'Data Storage & Sharing'!X81=0),"Level 2",IF(AND('Data Storage & Sharing'!X81=1,'Data Storage & Sharing'!AG81=0),"Level 3","Complete")))) -> N/A | X97: → | Y97: Click to View Level 1 Resources | AE97: =Activities!R11 -> There is a structure and location to store and maintain data from multiple sectors at the national level.
X98: → | Y98: Click to View Level 2 Resources | AE98: =Activities!R12 -> There is a structure and location to store and maintain data from multiple sectors at all country levels
X99: → | Y99: Click to View Level 3 Resources | AE99: =Activities!R13 -> There is a structure and location to store and maintain data from all relevant sectors conducting surveillance that is accessible, functional, and usable by all participating sectors
G101: =""&Activities!Q14 -> I-5 Data Privacy and Security Measures | K101: =IF('Data Storage & Sharing'!O97=0,AE101,IF(AND('Data Storage & Sharing'!O97=1,'Data Storage & Sharing'!X97=0),AE102,IF(AND('Data Storage & Sharing'!X97=1,'Data Storage & Sharing'!AG97=0),AE103,"Complete"))) -> There are data privacy and security measures in place to protect coordinated surveillance data at the national level | T101: =IF('Data Storage & Sharing'!O97="","N/A",IF(AND('Data Storage & Sharing'!O97=0),"Level 1",IF(AND('Data Storage & Sharing'!O97=1,'Data Storage & Sharing'!X97=0),"Level 2",IF(AND('Data Storage & Sharing'!X97=1,'Data Storage & Sharing'!AG97=0),"Level 3","Complete")))) -> N/A | X101: → | Y101: Click to View Level 1 Resources | AE101: =Activities!R14 -> There are data privacy and security measures in place to protect coordinated surveillance data at the national level
X102: → | Y102: Click to View Level 2 Resources | AE102: =Activities!R15 -> There are data privacy and security measures in place to protect coordinated surveillance data at all country levels
X103: → | Y103: Click to View Level 3 Resources | AE103: =Activities!R16 -> There are data privacy and security measures in place to protect coordinated surveillance data that has been assessed and determined to meet the objectives of the coordinated surveillance system
G105: =""&Activities!Q17 -> I-6 Coordinated Surveillance System Implementation | K105: =IF('Plans & Organization'!O120=0,AE105,IF(AND('Plans & Organization'!O120=1,'Plans & Organization'!X120=0),AE106,IF(AND('Plans & Organization'!X120=1,'Plans & Organization'!AG120=0),AE107,"Complete"))) -> The coordinated surveillance system is being piloted in target areas | T105: =IF('Plans & Organization'!O120="","N/A",IF(AND('Plans & Organization'!O120=0),"Level 1",IF(AND('Plans & Organization'!O120=1,'Plans & Organization'!X120=0),"Level 2",IF(AND('Plans & Organization'!X120=1,'Plans & Organization'!AG120=0),"Level 3","Complete")))) -> N/A | X105: → | Y105: Click to View Level 1 Resources | AE105: =Activities!R17 -> The coordinated surveillance system is being piloted in target areas
X106: → | Y106: Click to View Level 2 Resources | AE106: =Activities!R18 -> The coordinated surveillance system has been expanded to additional areas based on pilot implementations
X107: → | Y107: Click to View Level 3 Resources | AE107: =Activities!R19 -> The coordinated surveillance system is a nation-wide program
G109: =""&Activities!Q20 -> I-7 Surveillance Data Sharing | K109: =IF('Data Storage & Sharing'!O113=0,AE109,IF(AND('Data Storage & Sharing'!O113=1,'Data Storage & Sharing'!X113=0),AE110,IF(AND('Data Storage & Sharing'!X113=1,'Data Storage & Sharing'!AG113=0),AE111,"Complete"))) -> Surveillance Data are shared informally or formally on an ad hoc basis at the national level | T109: =IF('Data Storage & Sharing'!O113="","N/A",IF(AND('Data Storage & Sharing'!O113=0),"Level 1",IF(AND('Data Storage & Sharing'!O113=1,'Data Storage & Sharing'!X113=0),"Level 2",IF(AND('Data Storage & Sharing'!X113=1,'Data Storage & Sharing'!AG113=0),"Level 3","Complete")))) -> N/A | X109: → | Y109: Click to View Level 1 Resources | AE109: =Activities!R20 -> Surveillance Data are shared informally or formally on an ad hoc basis at the national level
X110: → | Y110: Click to View Level 2 Resources | AE110: =Activities!R21 -> Surveillance Data are shared informally or formally in a routine and timely fashion at all country levels
X111: → | Y111: Click to View Level 3 Resources | AE111: =Activities!R22 -> Surveillance Data are shared systematically in a routine and timely manner between all participating sectors through an interoperable or joint platform(s)
G113: =""&Activities!Q23 -> I-8 Communication & Information Sharing | K113: =IF('Communication & Reporting'!O65=0,AE113,IF(AND('Communication & Reporting'!O65=1,'Communication & Reporting'!X65=0),AE114,IF(AND('Communication & Reporting'!X65=1,'Communication & Reporting'!AG65=0),AE115,"Complete"))) -> There is ad hoc information sharing and communication with relevant stakeholders | T113: =IF('Communication & Reporting'!O65="","N/A",IF(AND('Communication & Reporting'!O65=0),"Level 1",IF(AND('Communication & Reporting'!O65=1,'Communication & Reporting'!X65=0),"Level 2",IF(AND('Communication & Reporting'!X65=1,'Communication & Reporting'!AG65=0),"Level 3","Complete")))) -> N/A | X113: → | Y113: Click to View Level 1 Resources | AE113: =Activities!R23 -> There is ad hoc information sharing and communication with relevant stakeholders
X114: → | Y114: Click to View Level 2 Resources | AE114: =Activities!R24 -> There is routine information sharing and communication with relevant stakeholders
X115: → | Y115: Click to View Level 3 Resources | AE115: =Activities!R25 -> There is routine and timely information sharing with relevant stakeholders including cross-border, regional and international entities
G117: =""&Activities!Q26 -> I-9 International Notification Requirements | K117: =IF('Communication & Reporting'!O81=0,AE117,"Complete") -> Comply with international notification requirements for all zoonotic diseases | T117: =IF('Communication & Reporting'!O81="","N/A",IF(AND('Communication & Reporting'!O65=0),"Level 1","Complete")) -> N/A | X117: → | Y117: Click to View Level 1 Resources | AE117: =Activities!R26 -> Comply with international notification requirements for all zoonotic diseases
X119: →
G121: =""&Activities!Q27 -> I-10 Coordinated Data Visualization and Analysis | K121: =IF('Communication & Reporting'!O97=0,AE121,IF(AND('Communication & Reporting'!O97=1,'Communication & Reporting'!X97=0),AE122,IF(AND('Communication & Reporting'!X97=1,'Communication & Reporting'!AG97=0),AE123,"Complete"))) -> Coordinated surveillance data are used to generate outputs (e.g. figures, graphics, reports or bulletins) that are shared at the national level | T121: =IF('Communication & Reporting'!O97="","N/A",IF(AND('Communication & Reporting'!O97=0),"Level 1",IF(AND('Communication & Reporting'!O97=1,'Communication & Reporting'!X97=0),"Level 2",IF(AND('Communication & Reporting'!X97=1,'Communication & Reporting'!AG97=0),"Level 3","Complete")))) -> N/A | X121: → | Y121: Click to View Level 1 Resources | AE121: =Activities!R27 -> Coordinated surveillance data are used to generate outputs (e.g. figures, graphics, reports or bulletins) that are shared at the national level
X122: → | Y122: Click to View Level 2 Resources | AE122: =Activities!R28 -> Coordinated surveillance data are used to generate outputs (e.g. figures, graphics, reports or bulletins) that are disseminated to stakeholders at all country levels
X123: → | Y123: Click to View Level 3 Resources | AE123: =Activities!R29 -> Coordinated surveillance data, including M&E reports, are used to generate outputs that inform, response, policy and programming
B125: Monitoring & Evaluation | G125: ME-1 Simulation Exercises | K125: =IF('Simulation Exercises'!O44=0,AE125,IF(AND('Simulation Exercises'!O44=1,'Simulation Exercises'!X44=0),AE126,IF(AND('Simulation Exercises'!X44=1,'Simulation Exercises'!AG44=0),AE127,"Complete"))) -> Simulation exercises are conducted to evaluate the efficiency and functionality of the coordinated surveillance system at the national level | T125: =IF('Simulation Exercises'!O44="","N/A",IF(AND('Simulation Exercises'!O44=0),"Level 1",IF(AND('Simulation Exercises'!O44=1,'Simulation Exercises'!X44=0),"Level 2",IF(AND('Simulation Exercises'!X44=1,'Simulation Exercises'!AG44=0),"Level 3","Complete")))) -> N/A | X125: → | Y125: Click to View Level 1 Resources | AE125: =Activities!W2 -> Simulation exercises are conducted to evaluate the efficiency and functionality of the coordinated surveillance system at the national level
X126: → | Y126: Click to View Level 2 Resources | AE126: =Activities!W3 -> Simulation exercises are conducted to evaluate the efficiency and functionality of the coordinated surveillance system at all country levels
X127: → | Y127: Click to View Level 3 Resources | AE127: =Activities!W4 -> Results of the simulation exercises are used to inform and revise coordinated surveillance plans
G129: =""&Activities!V5 -> ME-2 Monitoring and Evaluation Planning | K129: =IF('M & E Planning'!O44=0,AE129,IF(AND('M & E Planning'!O44=1,'M & E Planning'!X44=0),AE130,IF(AND('M & E Planning'!X44=1,'M & E Planning'!AG44=0),AE131,"Complete"))) -> There is a monitoring and evaluation plan that meets the objectives of the coordinated surveillance system | T129: =IF('M & E Planning'!O44="","N/A",IF(AND('M & E Planning'!O44=0),"Level 1",IF(AND('M & E Planning'!O44=1,'M & E Planning'!X44=0),"Level 2",IF(AND('M & E Planning'!X44=1,'M & E Planning'!AG44=0),"Level 3","Complete")))) -> N/A | X129: → | Y129: Click to View Level 1 Resources | AE129: =Activities!W5 -> There is a monitoring and evaluation plan that meets the objectives of the coordinated surveillance system
X130: → | Y130: No Level 2 Resources (see Level 1) | AE130: =Activities!W6 -> The monitoring and evaluation plan is implemented to track performance and progress of the coordinated surveillance system
X131: → | Y131: No Level 3 Resources (see Level 1) | AE131: =Activities!W7 -> Results of monitoring and evaluation iteratively improve or expand the coordinated surveillance system and align with international standards and recommendations
G133: ME-3 Data Quality Standards | K133: =IF('Data Quality Standards'!O44=0,AE133,IF(AND('Data Quality Standards'!O44=1,'Data Quality Standards'!X44=0),AE134,IF(AND('Data Quality Standards'!X44=1,'Data Quality Standards'!AG44=0),AE135,"Complete"))) -> There is a data quality management methodology | T133: =IF('Data Quality Standards'!O44="","N/A",IF(AND('Data Quality Standards'!O44=0),"Level 1",IF(AND('Data Quality Standards'!O44=1,'Data Quality Standards'!X44=0),"Level 2",IF(AND('Data Quality Standards'!X44=1,'Data Quality Standards'!AG44=0),"Level 3","Complete")))) -> N/A | X133: → | Y133: Click to View Level 1 Resources | AE133: =Activities!W8 -> There is a data quality management methodology
X134: → | Y134: Click to View Level 2 Resources | AE134: =Activities!W9 -> The data quality has been tested and determined to meet the objectives of the coordinated surveillance system
X135: → | Y135: Click to View Level 3 Resources | AE135: =Activities!W10 -> The data quality aligns with international standards and recommendations

Sheet Resource selection
B2: TOOLS AND RESOURCES SELECTION
B9: CATEGORY | D9: ACTIVITY | F9: Target Capacity Level | H9: Description | J9: Resource 1 | L9: Resource 2
B11: Focal points | D11: PP-1 Identifying preliminary stakeholders | F11: =Results!T9 -> N/A | H11: =Results!K9 -> Focal points, "champions" or technical working groups have been identified in all participating sectors at the national level for planning the implementation of coordinated surveillance
B13: Prioritization | D13: PP-2 Prioritization | F13: =Results!T13 -> N/A | H13: =Results!K13 -> A list of prioritized zoonotic diseases exists for inclusion in a coordinated surveillance system
B15: Goal setting | D15: PP-3 Goal setting | F15: =Results!T17 -> N/A | H15: =Results!K17 -> Goal(s), roles, and responsibilities of all participating sectors of the coordinated surveillance system are agreed upon at the national level
B17: Stakeholders | D17: A-1 Stakeholder mapping | F17: =Results!T21 -> N/A | H17: =Results!K21 -> Stakeholders working in surveillance, epidemiology, laboratory, and information sharing have been identified
D19: PL-1 Political will | F19: =Results!T9 -> N/A | H19: =Results!K53 -> Decision makers for the coordinated surveillance system have been identified
D21: I-2 Mobilizing human resources and stakeholders | F21: =Results!T89 -> N/A | H21: =Results!K89 -> Focal points or technical working groups meet on an ad hoc basis
B23: Plans and organization | D23: A-2 Surveillance system linkage assessment | F23: =Results!T25 -> N/A | H23: =Results!K25 -> The interlinkages between current prioritized zoonotic disease surveillance systems have been assessed among sectors
D26: A-4 Infrastructure mapping | F26: =Results!T33 -> N/A | H26: =Results!K33 -> Basic infrastructure mapping exercises (as defined in TZG CH 4.1) have been used to describe the structure and linkages within and between the sectors
D28: PL-3 Strategic Plans and Frameworks for Coordinated Surveillance | F28: =Results!T61 -> N/A | H28: =Results!K61 -> A multi-sectoral collection and review of the national strategic documents (strategies, frameworks and strategic plans) related to the coordinated surveillance system occurred, for the purposes of planning
D30: PL-4 National operational plans | F30: =Results!T65 -> N/A | H30: =Results!K65 -> A multi-sectoral collection and review of the national operational plans and other relevant documents (including surveillance plans, case definitions, protocols, and Standard Operating Procedures) related to the coordinated surveillance system occurred for the purposes of planning
D32: I-6 Coordinated surveillance system implementation | F32: =Results!T105 -> N/A | H32: =Results!K105 -> The coordinated surveillance system is being piloted in target areas
B34: Policy and legal | D34: A-3 Legal frameworks assessment | F34: =Results!T29 -> N/A | H34: =Results!K29 -> The legal frameworks (rules, policies, guidelines and regulations including international standards) that govern the ethical and privacy standards for surveillance and data sharing have been assessed
D36: PL-7 Legal frameworks planning | F36: =Results!T77 -> N/A | H36: =Results!K77 -> Necessary legal frameworks (rules, policies, guidelines and regulations including international standards) have been standardized across sectors based on assessment at the national level
B38: Budgets and finances | D38: A-5 Economic needs assessment | F38: =Results!T37 -> N/A | H38: =Results!K37 -> Economic assessments have been used to determine national financial needs for the coordinated surveillance system
D40: PL-5 Financial planning | F40: =Results!T69 -> N/A | H40: =Results!K69 -> There is a budgetary plan and a mechanism for distributing funds for coordinated surveillance at the national level
D42: I-1 Mobilizing of financial resources | F42: =Results!T85 -> N/A | H42: =Results!K85 -> Funding exists for coordinated surveillance at the national level
B44: Workforce | D44: A-8 Workforce assessment | F44: =Results!T49 -> N/A | H44: =Results!K49 -> Workforce assessments have been conducted to identify current workforce requirements, competencies, needs and gaps at the national level
D46: PL-6 Workforce planning | F46: =Results!T73 -> N/A | H46: =Results!K73 -> An education and training plan for the coordinated surveillance system exists based on workforce assessment at the national level
B48: Laboratory | D48: A-6 Laboratory capacity assessment | F48: =Results!T41 -> N/A | H48: =Results!K41 -> Laboratory assessments have been used to identify qualified national or international reference laboratories that can carry out testing to support the coordinated surveillance activities
D50: A-7 Laboratory transport and interpretation assessment | F50: =Results!T45 -> N/A | H50: =Results!K45 -> Laboratory supply, transport chains and results interpretation have been assessed for harmonization between participating sectors at the national level
B52: Data storage and sharing | D52: PL-2 Common data elements | F52: =Results!T57 -> N/A | H52: =Results!K57 -> The common data elements are identified and agreed upon within each participating sector to meet the common analytical goals of the coordinated surveillance system at the national level
D54: I-3 Data exchange & information sharing | F54: =Results!T93 -> N/A | H54: =Results!K93 -> There is a mechanism to share data between sectors at the national level
D56: I-4 Data storage | F56: =Results!T97 -> N/A | H56: =Results!K97 -> There is a structure and location to store and maintain data from multiple sectors at the national level.
D58: I-5 Data privacy and security measures | F58: =Results!T101 -> N/A | H58: =Results!K101 -> There are data privacy and security measures in place to protect coordinated surveillance data at the national level
D60: I-7 Surveillance Data sharing | F60: =Results!T109 -> N/A | H60: =Results!K109 -> Surveillance Data are shared informally or formally on an ad hoc basis at the national level
B62: Communication and reporting | D62: PL-8 Coordinated communication planning | F62: =Results!T81 -> N/A | H62: =Results!K81 -> Communications terminology and messages are aligning among all sectors participating in the coordinated surveillance system at the national level.
D64: I-8 Communication & Information Sharing | F64: =Results!T113 -> N/A | H64: =Results!K113 -> There is ad hoc information sharing and communication with relevant stakeholders
D66: I-9 International notification requirements compliance | F66: =Results!T117 -> N/A | H66: =Results!K117 -> Comply with international notification requirements for all zoonotic diseases
D68: I-10 Coordinated data visualization and analysis | F68: =Results!T121 -> N/A | H68: =Results!K121 -> Coordinated surveillance data are used to generate outputs (e.g. figures, graphics, reports or bulletins) that are shared at the national level
B70: Simulation exercises | D70: ME-1 Simulation exercises | F70: =Results!T125 -> N/A | H70: =Results!K125 -> Simulation exercises are conducted to evaluate the efficiency and functionality of the coordinated surveillance system at the national level
B72: Monitoring and evaluation planning | D72: ME-2 Monitoring & evaluation planning | F72: =Results!T129 -> N/A | H72: =Results!K129 -> There is a monitoring and evaluation plan that meets the objectives of the coordinated surveillance system
B74: Data quality standards | D74: ME-3 Data quality standards | F74: =Results!T133 -> N/A | H74: =Results!K133 -> There is a data quality management methodology

Sheet Prioritization and roadmap
B2: PRIORITIZATION AND ROADMAP
B8: CATEGORY | D8: ACTIVITY | F8: Target Capacity Level | H8: Description | J8: Implementation start time and priority | L8: Activity Start | N8: Activity duration | P8: Year 1 (e.g. 2022) | T8: Year 2 | X8: Year 3 | AB8: Year 4 | AF8: Year 5
P9: Q1 | Q9: Q2 | R9: Q3 | S9: Q4 | T9: Q1 | U9: Q2 | V9: Q3 | W9: Q4 | X9: Q1 | Y9: Q2 | Z9: Q3 | AA9: Q4 | AB9: Q1 | AC9: Q2 | AD9: Q3 | AE9: Q4 | AF9: Q1 | AG9: Q2 | AH9: Q3 | AI9: Q4
B10: Focal points | D10: PP-1 Identifying preliminary stakeholders | F10: =Results!T9 -> N/A | H10: =Results!K9 -> Focal points, "champions" or technical working groups have been identified in all participating sectors at the national level for planning the implementation of coordinated surveillance
B12: Prioritization | D12: PP-2 Prioritization | F12: =Results!T13 -> N/A | H12: =Results!K13 -> A list of prioritized zoonotic diseases exists for inclusion in a coordinated surveillance system
B14: Goal setting | D14: PP-3 Goal setting | F14: =Results!T17 -> N/A | H14: =Results!K17 -> Goal(s), roles, and responsibilities of all participating sectors of the coordinated surveillance system are agreed upon at the national level
B16: Stakeholders | D16: A-1 Stakeholder mapping | F16: =Results!T21 -> N/A | H16: =Results!K21 -> Stakeholders working in surveillance, epidemiology, laboratory, and information sharing have been identified
D18: PL-1 Political will | F18: =Results!T9 -> N/A | H18: =Results!K53 -> Decision makers for the coordinated surveillance system have been identified
D20: I-2 Mobilizing human resources and stakeholders | F20: =Results!T89 -> N/A | H20: =Results!K89 -> Focal points or technical working groups meet on an ad hoc basis
B22: Plans and organization | D22: A-2 Surveillance system linkage assessment | F22: =Results!T25 -> N/A | H22: =Results!K25 -> The interlinkages between current prioritized zoonotic disease surveillance systems have been assessed among sectors
D25: A-4 Infrastructure mapping | F25: =Results!T33 -> N/A | H25: =Results!K33 -> Basic infrastructure mapping exercises (as defined in TZG CH 4.1) have been used to describe the structure and linkages within and between the sectors
D27: PL-3 Frameworks and strategic plans for coordinated surveillance | F27: =Results!T61 -> N/A | H27: =Results!K61 -> A multi-sectoral collection and review of the national strategic documents (strategies, frameworks and strategic plans) related to the coordinated surveillance system occurred, for the purposes of planning
D29: PL-4 National surveillance plans and protocols (National operational plans) | F29: =Results!T65 -> N/A | H29: =Results!K65 -> A multi-sectoral collection and review of the national operational plans and other relevant documents (including surveillance plans, case definitions, protocols, and Standard Operating Procedures) related to the coordinated surveillance system occurred for the purposes of planning
D31: I-6 Coordinated surveillance system implementation | F31: =Results!T105 -> N/A | H31: =Results!K105 -> The coordinated surveillance system is being piloted in target areas
B33: Policy and legal | D33: A-3 Legal frameworks assessment | F33: =Results!T29 -> N/A | H33: =Results!K29 -> The legal frameworks (rules, policies, guidelines and regulations including international standards) that govern the ethical and privacy standards for surveillance and data sharing have been assessed
D35: PL-7 Legal frameworks planning | F35: =Results!T77 -> N/A | H35: =Results!K77 -> Necessary legal frameworks (rules, policies, guidelines and regulations including international standards) have been standardized across sectors based on assessment at the national level
B37: Budgets and finances | D37: A-5 Economic needs assessment | F37: =Results!T37 -> N/A | H37: =Results!K37 -> Economic assessments have been used to determine national financial needs for the coordinated surveillance system
D39: PL-5 Financial planning | F39: =Results!T69 -> N/A | H39: =Results!K69 -> There is a budgetary plan and a mechanism for distributing funds for coordinated surveillance at the national level
D41: I-1 Mobilizing of financial resources | F41: =Results!T85 -> N/A | H41: =Results!K85 -> Funding exists for coordinated surveillance at the national level
B43: Workforce | D43: A-8 Workforce assessment | F43: =Results!T49 -> N/A | H43: =Results!K49 -> Workforce assessments have been conducted to identify current workforce requirements, competencies, needs and gaps at the national level
D45: PL-6 Workforce planning | F45: =Results!T73 -> N/A | H45: =Results!K73 -> An education and training plan for the coordinated surveillance system exists based on workforce assessment at the national level
B47: Laboratory | D47: A-6 Laboratory capacity assessment | F47: =Results!T41 -> N/A | H47: =Results!K41 -> Laboratory assessments have been used to identify qualified national or international reference laboratories that can carry out testing to support the coordinated surveillance activities
D49: A-7 Laboratory transport and interpretation assessment | F49: =Results!T45 -> N/A | H49: =Results!K45 -> Laboratory supply, transport chains and results interpretation have been assessed for harmonization between participating sectors at the national level
B51: Data storage and sharing | D51: PL-2 Common data elements | F51: =Results!T57 -> N/A | H51: =Results!K57 -> The common data elements are identified and agreed upon within each participating sector to meet the common analytical goals of the coordinated surveillance system at the national level
D53: I-3 Data exchange & information sharing | F53: =Results!T93 -> N/A | H53: =Results!K93 -> There is a mechanism to share data between sectors at the national level
D55: I-4 Data storage | F55: =Results!T97 -> N/A | H55: =Results!K97 -> There is a structure and location to store and maintain data from multiple sectors at the national level.
D57: I-5 Data privacy and security measures | F57: =Results!T101 -> N/A | H57: =Results!K101 -> There are data privacy and security measures in place to protect coordinated surveillance data at the national level
D59: I-7 Data sharing | F59: =Results!T109 -> N/A | H59: =Results!K109 -> Surveillance Data are shared informally or formally on an ad hoc basis at the national level
B61: Communication and reporting | D61: PL-8 Coordinated communication planning | F61: =Results!T81 -> N/A | H61: =Results!K81 -> Communications terminology and messages are aligning among all sectors participating in the coordinated surveillance system at the national level.
D63: I-8 Communication & data use | F63: =Results!T113 -> N/A | H63: =Results!K113 -> There is ad hoc information sharing and communication with relevant stakeholders
D65: I-9 International notification requirements compliance | F65: =Results!T117 -> N/A | H65: =Results!K117 -> Comply with international notification requirements for all zoonotic diseases
D67: I-10 Coordinated data visualization and analysis | F67: =Results!T121 -> N/A | H67: =Results!K121 -> Coordinated surveillance data are used to generate outputs (e.g. figures, graphics, reports or bulletins) that are shared at the national level
B69: Simulation exercises | D69: ME-1 Simulation exercises | F69: =Results!T125 -> N/A | H69: =Results!K125 -> Simulation exercises are conducted to evaluate the efficiency and functionality of the coordinated surveillance system at the national level
B71: Monitoring and evaluation planning | D71: ME-2 Monitoring & evaluation planning | F71: =Results!T129 -> N/A | H71: =Results!K129 -> There is a monitoring and evaluation plan that meets the objectives of the coordinated surveillance system
B73: Data quality standards | D73: ME-3 Data quality standards | F73: =Results!T133 -> N/A | H73: =Results!K133 -> There is a data quality management methodology

Sheet Development plan
B2: DEVELOPMENT PLAN
B6: CATEGORY | C6: ACTIVITY | D6: Description | E6: Selected resources and tools | F6: Actions | G6: Lead, and Role/ responsibility of each partner | H6: Anticipated challenges | I6: Activity start | J6: Activity duration | K6: Point of contact (name, title, organization, sector) of each partner | L6: Indicator for this Requirement | M6: Other notes
B8: EXAMPLE
B9: Prioritization | C9: PP-2 Prioritization | D9: A list of prioritized zoonotic diseases exists for inclusion in a coordinated surveillance system | E9: OHZDP | F9: Perform the prioritization exercise (e.g. CDC One Health Zoonotic Disease Prioritization (OHZDP) workshop) Update the sectors priority diseases lists according the results of the prioritization exercise | G9: Lead: Animal Health (AH) The Human Health (HH) representative will contact CDC and identify participants from HH sector. AH rep will coordinate logistics and venue | H9: May require additional funds for conducting a multisectoral exercise; Contact to CDC to explore possibility to conduct OHZDP workshop. | I9: Year 1-Q2 | J9: 1 Quarter | K9: Linda Bianca, Dir of Animal Health Services, MoA Dan Fisher, Dir of Health Services, MoH | L9: Prioritization exercise held and attended by all relevant sectors The priority lists are updated according the prioritization exercise results for all relevant sector
B11: PLAN
B12: Focal points | C12: PP-1 Identifying preliminary stakeholders | D12: =Results!K9 -> Focal points, "champions" or technical working groups have been identified in all participating sectors at the national level for planning the implementation of coordinated surveillance | E12: ='Resource selection'!J11 -> 0 | I12: ='Prioritization and roadmap'!L10 -> 0 | J12: ='Prioritization and roadmap'!N10 -> 0
B14: Prioritization | C14: PP-2 Prioritization | D14: =Results!K13 -> A list of prioritized zoonotic diseases exists for inclusion in a coordinated surveillance system | E14: ='Resource selection'!J13 -> 0 | I14: ='Prioritization and roadmap'!L12 -> 0 | J14: ='Prioritization and roadmap'!N12 -> 0
B16: Goal setting | C16: PP-3 Goal setting | D16: =Results!K17 -> Goal(s), roles, and responsibilities of all participating sectors of the coordinated surveillance system are agreed upon at the national level | E16: ='Resource selection'!J15 -> 0 | I16: ='Prioritization and roadmap'!L14 -> 0 | J16: ='Prioritization and roadmap'!N14 -> 0
B18: Stakeholders | C18: A-1 Stakeholder mapping | D18: =Results!K21 -> Stakeholders working in surveillance, epidemiology, laboratory, and information sharing have been identified | E18: ='Resource selection'!J17 -> 0 | I18: ='Prioritization and roadmap'!L16 -> 0 | J18: ='Prioritization and roadmap'!N16 -> 0
C19: PL-1 Political will | D19: =Results!K53 -> Decision makers for the coordinated surveillance system have been identified | E19: ='Resource selection'!J19 -> 0 | I19: ='Prioritization and roadmap'!L18 -> 0 | J19: ='Prioritization and roadmap'!N18 -> 0
C20: I-2 Mobilizing human resources and stakeholders | D20: =Results!K89 -> Focal points or technical working groups meet on an ad hoc basis | E20: ='Resource selection'!J21 -> 0 | I20: ='Prioritization and roadmap'!L20 -> 0 | J20: ='Prioritization and roadmap'!N20 -> 0
B22: Plans and organization | C22: A-2 Surveillance system linkage assessment | D22: =Results!K25 -> The interlinkages between current prioritized zoonotic disease surveillance systems have been assessed among sectors | E22: ='Resource selection'!J23 -> 0 | I22: ='Prioritization and roadmap'!L22 -> 0 | J22: ='Prioritization and roadmap'!N22 -> 0
C23: A-4 Infrastructure mapping | D23: =Results!K33 -> Basic infrastructure mapping exercises (as defined in TZG CH 4.1) have been used to describe the structure and linkages within and between the sectors | E23: ='Resource selection'!J26 -> 0 | I23: ='Prioritization and roadmap'!L25 -> 0 | J23: ='Prioritization and roadmap'!N25 -> 0
C24: PL-3 Frameworks and strategic plans for coordinated surveillance | D24: =Results!K61 -> A multi-sectoral collection and review of the national strategic documents (strategies, frameworks and strategic plans) related to the coordinated surveillance system occurred, for the purposes of planning | E24: ='Resource selection'!J28 -> 0 | I24: ='Prioritization and roadmap'!L27 -> 0 | J24: ='Prioritization and roadmap'!N27 -> 0
C25: PL-4 National surveillance plans and protocols (National operational plans) | D25: =Results!K65 -> A multi-sectoral collection and review of the national operational plans and other relevant documents (including surveillance plans, case definitions, protocols, and Standard Operating Procedures) related to the coordinated surveillance system occurred for the purposes of planning | E25: ='Resource selection'!J30 -> 0 | I25: ='Prioritization and roadmap'!L29 -> 0 | J25: ='Prioritization and roadmap'!N29 -> 0
C26: I-6 Coordinated surveillance system implementation | D26: =Results!K105 -> The coordinated surveillance system is being piloted in target areas | E26: ='Resource selection'!J32 -> 0 | I26: ='Prioritization and roadmap'!L31 -> 0 | J26: ='Prioritization and roadmap'!N31 -> 0
B28: Policy and legal | C28: A-3 Legal frameworks assessment | D28: =Results!K29 -> The legal frameworks (rules, policies, guidelines and regulations including international standards) that govern the ethical and privacy standards for surveillance and data sharing have been assessed | E28: ='Resource selection'!J34 -> 0 | I28: ='Prioritization and roadmap'!L33 -> 0 | J28: ='Prioritization and roadmap'!N33 -> 0
C29: PL-7 Legal frameworks planning | D29: =Results!K77 -> Necessary legal frameworks (rules, policies, guidelines and regulations including international standards) have been standardized across sectors based on assessment at the national level | E29: ='Resource selection'!J36 -> 0 | I29: ='Prioritization and roadmap'!L35 -> 0 | J29: ='Prioritization and roadmap'!N35 -> 0
B31: Budgets and finances | C31: A-5 Economic needs assessment | D31: =Results!K37 -> Economic assessments have been used to determine national financial needs for the coordinated surveillance system | E31: ='Resource selection'!J38 -> 0 | I31: ='Prioritization and roadmap'!L37 -> 0 | J31: ='Prioritization and roadmap'!N37 -> 0
C32: PL-5 Financial planning | D32: =Results!K69 -> There is a budgetary plan and a mechanism for distributing funds for coordinated surveillance at the national level | E32: ='Resource selection'!J40 -> 0 | I32: ='Prioritization and roadmap'!L39 -> 0 | J32: ='Prioritization and roadmap'!N39 -> 0
C33: I-1 Mobilizing of financial resources | D33: =Results!K85 -> Funding exists for coordinated surveillance at the national level | E33: ='Resource selection'!J42 -> 0 | I33: ='Prioritization and roadmap'!L41 -> 0 | J33: ='Prioritization and roadmap'!N41 -> 0
B35: Workforce | C35: A-8 Workforce assessment | D35: =Results!K49 -> Workforce assessments have been conducted to identify current workforce requirements, competencies, needs and gaps at the national level | E35: ='Resource selection'!J44 -> 0 | I35: ='Prioritization and roadmap'!L43 -> 0 | J35: ='Prioritization and roadmap'!N43 -> 0
C36: PL-6 Workforce planning | D36: =Results!K73 -> An education and training plan for the coordinated surveillance system exists based on workforce assessment at the national level | E36: ='Resource selection'!J46 -> 0 | I36: ='Prioritization and roadmap'!L45 -> 0 | J36: ='Prioritization and roadmap'!N45 -> 0
B38: Laboratory | C38: A-6 Laboratory capacity assessment | D38: =Results!K41 -> Laboratory assessments have been used to identify qualified national or international reference laboratories that can carry out testing to support the coordinated surveillance activities | E38: ='Resource selection'!J48 -> 0 | I38: ='Prioritization and roadmap'!L47 -> 0 | J38: ='Prioritization and roadmap'!N47 -> 0
C39: A-7 Laboratory transport and interpretation assessment | D39: =Results!K45 -> Laboratory supply, transport chains and results interpretation have been assessed for harmonization between participating sectors at the national level | E39: ='Resource selection'!J50 -> 0 | I39: ='Prioritization and roadmap'!L49 -> 0 | J39: ='Prioritization and roadmap'!N49 -> 0
B41: Data storage and sharing | C41: PL-2 Common data elements | D41: =Results!K57 -> The common data elements are identified and agreed upon within each participating sector to meet the common analytical goals of the coordinated surveillance system at the national level | E41: ='Resource selection'!J52 -> 0 | I41: ='Prioritization and roadmap'!L51 -> 0 | J41: ='Prioritization and roadmap'!N51 -> 0
C42: I-3 Data exchange & information sharing | D42: =Results!K93 -> There is a mechanism to share data between sectors at the national level | E42: ='Resource selection'!J54 -> 0 | I42: ='Prioritization and roadmap'!L53 -> 0 | J42: ='Prioritization and roadmap'!N53 -> 0
C43: I-4 Data storage | D43: =Results!K97 -> There is a structure and location to store and maintain data from multiple sectors at the national level. | E43: ='Resource selection'!J56 -> 0 | I43: ='Prioritization and roadmap'!L55 -> 0 | J43: ='Prioritization and roadmap'!N55 -> 0
C44: I-5 Data privacy and security measures | D44: =Results!K101 -> There are data privacy and security measures in place to protect coordinated surveillance data at the national level | E44: ='Resource selection'!J58 -> 0 | I44: ='Prioritization and roadmap'!L57 -> 0 | J44: ='Prioritization and roadmap'!N57 -> 0
C45: I-7 Surveillance Data sharing | D45: =Results!K109 -> Surveillance Data are shared informally or formally on an ad hoc basis at the national level | E45: ='Resource selection'!J60 -> 0 | I45: ='Prioritization and roadmap'!L59 -> 0 | J45: ='Prioritization and roadmap'!N59 -> 0
B47: Communication and reporting | C47: PL-8 Coordinated communication planning | D47: =Results!K81 -> Communications terminology and messages are aligning among all sectors participating in the coordinated surveillance system at the national level. | E47: ='Resource selection'!J62 -> 0 | I47: ='Prioritization and roadmap'!L61 -> 0 | J47: ='Prioritization and roadmap'!N61 -> 0
C48: I-8 Communication & Information Sharing | D48: =Results!K113 -> There is ad hoc information sharing and communication with relevant stakeholders | E48: ='Resource selection'!J64 -> 0 | I48: ='Prioritization and roadmap'!L63 -> 0 | J48: ='Prioritization and roadmap'!N63 -> 0
C49: I-9 International notification requirements compliance | D49: =Results!K117 -> Comply with international notification requirements for all zoonotic diseases | E49: ='Resource selection'!J66 -> 0 | I49: ='Prioritization and roadmap'!L65 -> 0 | J49: ='Prioritization and roadmap'!N65 -> 0
C50: I-10 Coordinated data visualization and analysis | D50: =Results!K121 -> Coordinated surveillance data are used to generate outputs (e.g. figures, graphics, reports or bulletins) that are shared at the national level | E50: ='Resource selection'!J68 -> 0 | I50: ='Prioritization and roadmap'!L67 -> 0 | J50: ='Prioritization and roadmap'!N67 -> 0
B52: Simulation exercises | C52: ME-1 Simulation exercises | D52: =Results!K125 -> Simulation exercises are conducted to evaluate the efficiency and functionality of the coordinated surveillance system at the national level | E52: ='Resource selection'!J70 -> 0 | I52: ='Prioritization and roadmap'!L69 -> 0 | J52: ='Prioritization and roadmap'!N69 -> 0
B54: Monitoring and evaluation planning | C54: ME-2 Monitoring & evaluation planning | D54: =Results!K129 -> There is a monitoring and evaluation plan that meets the objectives of the coordinated surveillance system | E54: ='Resource selection'!J72 -> 0 | I54: ='Prioritization and roadmap'!L71 -> 0 | J54: ='Prioritization and roadmap'!N71 -> 0
B56: Data quality standards | C56: ME-3 Data quality standards | D56: =Results!K133 -> There is a data quality management methodology | E56: ='Resource selection'!J74 -> 0 | I56: ='Prioritization and roadmap'!L73 -> 0 | J56: ='Prioritization and roadmap'!N73 -> 0

Sheet Tools by activity
A2: PP-1 Focal points | C2: A-1 Stakeholder mapping | E2: PL-1 Political will | G2: I-1 Mobilizing financial resources | I2: ME-1 Simulation exercises
A4: Africa CDC Event Based Surveillance Framework | C4: Border Health Capacity Discussion Guide (BHCDG) | E4: Evaluation of Collaboration in a multisectoral Surveillance system (EcoSur) | G4: SurvCost: A tool to Estimate the Cost of Integrated Disease Surveillance and Response | I4: Laboratory Infrastructure Network Analysis (LINA)
A5: Evaluation of Collaboration in a multisectoral Surveillance system (EcoSur) | C5: Evaluation of Collaboration in a multisectoral Surveillance system (EcoSur) | E5: Integrated Disease Surveillance and Response (IDSR) | G5: Animal Rabies Surveillance Cost Effectiveness Assessment Tool | I5: One Health Systems Mapping and Analysis Resource Toolkit (OH-SMART)
A6: Integrated Disease Surveillance and Response (IDSR) | C6: IHR-PVS National Bridging Workshop | E6: Methodology to analyse AMR-relevant legislation in the food and agriculture sector | G6: Georgetown University International Health Regulation (IHR) Costing Tool | I6: Simulation Toolkit
A7: National Action Plan for Health Security (NAPHS) | C7: Integrated Disease Surveillance and Response (IDSR) | E7: National Action Plan for Health Security (NAPHS) | G7: Sustainable Funding Strategy for One Health Toolkit | I7: The Suite for Automated Global Electronic bioSurveillance (SAGES)
A8: One Health Surveillance Readiness and Requirements Tool (OHSRRT) | C8: National Action Plan for Health Security (NAPHS) | E8: Network for Evaluation of One Health (NEOH) | G8: Sustainable Funding Strategy for One Health Toolkit
A9: Policy Field Analysis (PFA) | C9: OIE PVS Gap Analysis | E9: One Health Policy Advocacy Toolkit | I9: ME-2 monitoring and evaluation Planning
A10: The One Health Systems Assessment for Priority Zoonoses (OH-SAPZ) | C10: One Health Surveillance Readiness and Requirements Tool (OHSRRT) | E10: One Health Policy Model Toolkit | G10: I-2 Mobilizing Human resources
C11: One Health Systems Mapping and Analysis Resource Toolkit (OH-SMART) | E11: Policy Field Analysis (PFA) | I11: Antimicrobial resistance: a manual for developing national action plans
A12: PP-2 Prioritization | C12: Policy Field Analysis (PFA) | E12: Stepwise Approach towards Rabies Elimination (SARE) | G12: Africa CDC Event Based Surveillance Framework | I12: ECDC Data quality monitoring and surveillance system evaluation - A handbook of methods and applications
A13: ECDC tool for the prioritisation of infectious disease threats | C13: Stepwise Approach towards Rabies Elimination (SARE) | G13: Disease Outbreak After Action Report Toolkit | I13: International Health Regulations (‎2005):State Party self-assessment annual reporting tool (SPAR)
A14: Listing and categorization of priority animal diseases including those transmissible to humans (Phylum) | C14: SuRveillance EVALuation framework (SERVAL) | E14: PL-2 Common Data Elements | G14: Governance Manual Toolkit | I14: Network for Evaluation of One Health (NEOH)
A15: One Health Zoonotic Disease Prioritization Process (OHZDP) | C15: The One Health Systems Assessment for Priority Zoonoses (OH-SAPZ) | G15: Preparedness and Response Planning Toolkit | I15: SuRveillance EVALuation framework (SERVAL)
A16: The One Health Systems Assessment for Priority Zoonoses (OH-SAPZ) | E16: Evaluation of Collaboration in a multisectoral Surveillance system (EcoSur) | I16: Surveillance Evaluation Framework (SurF)
C17: A-2 Surveillance system linkage | E17: Framework for Enhancing Anthrax Prevention and Control | G17: I-3 Data exchange and information sharing | I17: Surveillance Webtools (SURVTOOLS)
E18: IHR-PVS National Bridging Workshop | I18: Updated Guidelines for Evaluating Public Health Surveillance Systems
C19: Africa CDC Event Based Surveillance Framework | E19: Integrated Disease Surveillance and Response (IDSR) | G19: Afyadata
A20: PP-3 Goal setting | C20: ECDC Data quality monitoring and surveillance system evaluation - A handbook of methods and applications | E20: EFSA Data Collection Framework | G20: District Health Information Software 2 (DHIS2) | I20: ME-3 Data Quality Standards
A21: Africa CDC Event Based Surveillance Framework | C21: FAO Assessment Tool for Laboratories and Antimicrobial Resistance Surveillance Systems (ATLASS) | G21: Electronic Integrated Disease Surveillance System (EIDSS)
A22: Evaluation of Collaboration in a multisectoral Surveillance system (EcoSur) | C22: FAO Surveillance Evaluation Tool (SET) | E22: PL-3 Strategic Plans and Frameworks for Coordinated Surveillance | G22: EMPRES Global Animal Disease Information System (EMPRES-i) | I22: Data Quality Review (DQR) Toolkit
A23: Integrated Disease Surveillance and Response (IDSR) | C23: International Health Regulations (‎2005):State Party self-assessment annual reporting tool (SPAR) | G23: Event Mobile Application (EMAi) | I23: ECDC Data quality monitoring and surveillance system evaluation - A handbook of methods and applications
A24: National Action Plan for Health Security (NAPHS) | E24: Africa CDC Event Based Surveillance Framework | G24: FoodChain-Lab (FCL) | I24: Framework for Enhancing Anthrax Prevention and Control
A25: Network for Evaluation of One Health (NEOH) | C25: A-3 Legal Frameworks | E25: Antimicrobial resistance: a manual for developing national action plans | G25: Laboratory Information Management System “SILAB for Africa” (SILABFA) | I25: Integrated Disease Surveillance and Response (IDSR)
A26: One Health Surveillance Readiness and Requirements Tool (OHSRRT) | E26: Border Health Capacity Discussion Guide (BHCDG) | G26: Laboratory Information Management System Light (MiniLIMS) | I26: SuRveillance EVALuation framework (SERVAL)
C27: Antimicrobial resistance: a manual for developing national action plans | E27: Evaluation of Collaboration in a multisectoral Surveillance system (EcoSur) | G27: Preparedness and Response Planning Toolkit | I27: Surveillance Evaluation Framework (SurF)
C28: Evaluation of Collaboration in a multisectoral Surveillance system (EcoSur) | E28: Framework for Evaluating Public Health Surveillance Systems for Early Detection of Outbreaks | G28: Rabies Exposure and Case Tracker Application (React) | I28: The Suite for Automated Global Electronic bioSurveillance (SAGES)
C29: Governance Manual Toolkit | E29: Framework for Enhancing Anthrax Prevention and Control | G29: Surveillance Outbreak Response Management and Analysis System (SORMAS) | I29: Updated Guidelines for Evaluating Public Health Surveillance Systems
C30: International Health Regulations (‎2005):State Party self-assessment annual reporting tool (SPAR) | E30: IHR-PVS National Bridging Workshop | G30: The Epidemic Intelligence from Open Sources (EIOS)
C31: Methodology to analyse AMR-relevant legislation in the food and agriculture sector | E31: Integrated Disease Surveillance and Response (IDSR) | G31: The Suite for Automated Global Electronic bioSurveillance (SAGES)
C32: One Health Surveillance Readiness and Requirements Tool (OHSRRT) | E32: Joint External Evaluation tool (JEE )
C33: Policy Field Analysis (PFA) | E33: Methodology to analyse AMR-relevant legislation in the food and agriculture sector | G33: I-4 Data Storage
C34: Staged Tool for the Elimination of Brucellosis (STEB) | E34: National Action Plan for Health Security (NAPHS)
C35: Stepwise Approach towards Rabies Elimination (SARE) | E35: Network for Evaluation of One Health (NEOH) | G35: Afyadata
C36: The National Public Health Performance Standards Program (NPHPSP): Local Public Health System Performance Assessment Instrument (version 2) | E36: OIE PVS Gap Analysis | G36: District Health Information Software 2 (DHIS2)
E37: One Health Strategic Plan Development | G37: Electronic Integrated Disease Surveillance System (EIDSS)
C38: A-4 Infrastructure mapping | E38: One Health Systems Mapping and Analysis Resource Toolkit (OH-SMART) | G38: Laboratory Information Management System “SILAB for Africa” (SILABFA)
E39: Staged Tool for the Elimination of Brucellosis (STEB) | G39: Laboratory Information Management System Light (MiniLIMS)
C40: APHL Informatics Self-Assessment Tool | E40: Stepwise Approach towards Rabies Elimination (SARE) | G40: Rabies Exposure and Case Tracker Application (React)
C41: APHL Laboratory Informatics Assessment Tool | E41: The One Health Systems Assessment for Priority Zoonoses (OH-SAPZ) | G41: Surveillance Outbreak Response Management and Analysis System (SORMAS)
C42: Evaluation of Collaboration in a multisectoral Surveillance system (EcoSur) | E42: WHO CHOICE | G42: The Suite for Automated Global Electronic bioSurveillance (SAGES)
C43: IHR-PVS National Bridging Workshop
C44: Laboratory Infrastructure Network Analysis (LINA) | E44: PL-4 National operational plans | G44: I-5 Data Privacy and Security Measures
C45: National Action Plan for Health Security (NAPHS)
C46: Network for Evaluation of One Health (NEOH) | E46: Africa CDC Event Based Surveillance Framework | G46: APHL Informatics Self-Assessment Tool
C47: OIE PVS Gap Analysis | E47: Border Health Capacity Discussion Guide (BHCDG) | G47: District Health Information Software 2 (DHIS2)
C48: One Health Systems Mapping and Analysis Resource Toolkit (OH-SMART) | E48: ECDC Data quality monitoring and surveillance system evaluation - A handbook of methods and applications | G48: Electronic Integrated Disease Surveillance System (EIDSS)
C49: Policy Field Analysis (PFA) | E49: Epidemiology Mapping Tool (EMT) | G49: EMPRES Global Animal Disease Information System (EMPRES-i)
C50: Preparedness and Response Planning Toolkit | E50: Evaluation of Collaboration in a multisectoral Surveillance system (EcoSur) | G50: Laboratory Information Management System “SILAB for Africa” (SILABFA)
C51: The One Health Systems Assessment for Priority Zoonoses (OH-SAPZ) | E51: FAO Surveillance Evaluation Tool (SET) | G51: Laboratory Information Management System Light (MiniLIMS)
C52: WHO Laboratory Assessment Tool | E52: Framework for Enhancing Anthrax Prevention and Control | G52: Rabies Exposure and Case Tracker Application (React)
E53: Guidelines for designing animal disease surveillance plans | G53: Surveillance Outbreak Response Management and Analysis System (SORMAS)
C54: A-5 Economic Needs assessment | E54: IHR-PVS National Bridging Workshop | G54: The Suite for Automated Global Electronic bioSurveillance (SAGES)
E55: Integrated Disease Surveillance and Response (IDSR)
C56: SurvCost: A tool to Estimate the Cost of Integrated Disease Surveillance and Response | E56: Methodology to analyse AMR-relevant legislation in the food and agriculture sector | G56: I-6 Coordinated surveillance system implementation
C57: Animal Rabies Surveillance Cost Effectiveness Assessment Tool | E57: National Action Plan for Health Security (NAPHS)
C58: Evaluation of Collaboration in a multisectoral Surveillance system (EcoSur) | E58: One Health Surveillance Readiness and Requirements Tool (OHSRRT) | G58: Africa CDC Event Based Surveillance Framework
C59: Georgetown University International Health Regulation (IHR) Costing Tool | E59: Preparedness and Response Planning Toolkit | G59: Afyadata
C60: Global Dog Rabies Elimination Pathway (GDREP) | E60: Stepwise Approach towards Rabies Elimination (SARE) | G60: Electronic Integrated Disease Surveillance System (EIDSS)
C61: National Action Plan for Health Security (NAPHS) | E61: SuRveillance EVALuation framework (SERVAL) | G61: Laboratory Information Management System “SILAB for Africa” (SILABFA)
C62: Network for Evaluation of One Health (NEOH) | E62: Surveillance Webtools (SURVTOOLS) | G62: Laboratory Information Management System Light (MiniLIMS)
C63: OIE PVS Gap Analysis | G63: Laboratory Infrastructure Network Analysis (LINA)
C64: Outbreak costing tool | G64: Rabies Exposure and Case Tracker Application (React)
C65: Rabies ECON | E65: PL-5 Financial Planning | G65: The Suite for Automated Global Electronic bioSurveillance (SAGES)
C66: SuRveillance EVALuation framework (SERVAL) | G66: Tool for Assessing Progress towards Elimination of Rabies (TAPER)
C67: Surveillance Webtools (SURVTOOLS) | E67: Africa CDC Event Based Surveillance Framework
C68: Sustainable Funding Strategy for One Health Toolkit | E68: ECDC Data quality monitoring and surveillance system evaluation - A handbook of methods and applications | G68: I-7 Surveillance Data sharing
C69: WHO CHOICE | E69: Framework for Enhancing Anthrax Prevention and Control
E70: Georgetown University International Health Regulation (IHR) Costing Tool | G70: Afyadata
C71: A-6 Laboratory capacity assessment | E71: Guidelines for designing animal disease surveillance plans | G71: District Health Information Software 2 (DHIS2)
E72: Integrated Disease Surveillance and Response (IDSR) | G72: Electronic Integrated Disease Surveillance System (EIDSS)
C73: Evaluation of Collaboration in a multisectoral Surveillance system (EcoSur) | G73: Integrated Disease Surveillance and Response (IDSR)
C74: FAO Laboratory Mapping Tool (LMT) | E74: PL-6 Workforce planning | G74: Preparedness and Response Planning Toolkit
C75: Laboratory Infrastructure Network Analysis (LINA) | G75: Rabies Exposure and Case Tracker Application (React)
C76: Surveillance network assessment tool (OASIS) | E76: Integrated Disease Surveillance and Response (IDSR) | G76: The Epidemic Intelligence from Open Sources (EIOS)
C77: WHO Laboratory Assessment Tool | E77: Global Dog Rabies Elimination Pathway (GDREP) | G77: The Suite for Automated Global Electronic bioSurveillance (SAGES)
C78: Framework for Enhancing Anthrax Prevention and Control | E78: Laboratory Leadership Competency Framework (GLLP)
C79: Integrated Disease Surveillance and Response (IDSR) | G79: I-8 Communication and Information Sharing
C80: Joint External Evaluation tool (JEE ) | E80: PL-7 Legal frameworks planning
C81: The One Health Systems Assessment for Priority Zoonoses (OH-SAPZ) | G81: Afyadata
C82: OIE PVS Laboratory Mission | E82: Cross Border Multisectoral Communication and Coordination Strategies | G82: District Health Information Software 2 (DHIS2)
C83: Preparedness and Response Planning Toolkit | E83: Global Dog Rabies Elimination Pathway (GDREP) | G83: EMPRES Global Animal Disease Information System (EMPRES-i)
C84: Staged Tool for the Elimination of Brucellosis (STEB) | E84: Methodology to analyse AMR-relevant legislation in the food and agriculture sector | G84: Integrated Disease Surveillance and Response (IDSR)
C85: Stepwise Approach towards Rabies Elimination (SARE) | E85: OIE PVS Gap Analysis | G85: Rabies Exposure and Case Tracker Application (React)
E86: One-stop border post sourcebook | G86: The Epidemic Intelligence from Open Sources (EIOS)
C87: A-7 Laboratory transport and interpretation | E87: Stepwise Approach towards Rabies Elimination (SARE)
G88: I-9 International notification requirements
C89: APHL Laboratory Informatics Assessment Tool | E89: PL-8 Coordinated communication planning
C90: Evaluation of Collaboration in a multisectoral Surveillance system (EcoSur) | G90: Event Mobile Application (EMAi)
C91: Laboratory Infrastructure Network Analysis (LINA) | E91: Cross Border Multisectoral Communication and Coordination Strategies | G91: Integrated Disease Surveillance and Response (IDSR)
C92: OIE PVS Gap Analysis | E92: One Health European Joint Program (OHEJP) Glossary | G92: Joint External Evaluation tool (JEE )
C93: Preparedness and Response Planning Toolkit | E93: One Health Surveillance (OHS) Codex | G93: OIE WAHIS Alert application
C94: Surveillance network assessment tool (OASIS) | E94: Preparedness and Response Planning Toolkit
G95: I-10 Coordinated Data Vizualisation and Analysis
C96: A-8 Workforce Assessment
G97: Afyadata
C98: Africa CDC Event Based Surveillance Framework | G98: District Health Information Software 2 (DHIS2)
C99: Border Health Capacity Discussion Guide (BHCDG) | G99: Electronic Integrated Disease Surveillance System (EIDSS)
C100: Competency Guidelines for Public Health Laboratory Professionals: CDC and the Association of Public Health Laboratories | G100: FoodChain-Lab (FCL)
C101: Epidemiology Mapping Tool (EMT) | G101: Integrated Disease Surveillance and Response (IDSR)
C102: Evaluation of Collaboration in a multisectoral Surveillance system (EcoSur) | G102: Laboratory Infrastructure Network Analysis (LINA)
C103: Global Dog Rabies Elimination Pathway (GDREP) | G103: OIE WAHIS Alert application
C104: Integrated Disease Surveillance and Response (IDSR) | G104: Rabies Exposure and Case Tracker Application (React)
C105: Laboratory Leadership Competency Framework (GLLP) | G105: Surveillance Outbreak Response Management and Analysis System (SORMAS)
C106: National Action Plan for Health Security (NAPHS) | G106: The Suite for Automated Global Electronic bioSurveillance (SAGES)
C107: One Health Systems Mapping and Analysis Resource Toolkit (OH-SMART)
C108: Surveillance network assessment tool (OASIS)

Sheet Backbone
A1: RESOURCE NAME | B1: Category | C1: Location in Tool | D1: Description | E1: Level L1-Level 1 L2-Level 2 L3-Level 3 | F1: Best Fit for purpose or Other relevant resources | G1: Status | H1: Accessibility | I1: Language | J1: Ease of Use | K1: Flexibility | L1: Data Needs | M1: Data Analysis | N1: Acceptability | O1: One Health | P1: Impact | Q1: SCORE | R1: Resource Type | S1: Resource Generality
A2: Africa CDC Event Based Surveillance Framework | B2: Pre-Planning | C2: PP-1.1 | D2: Focal points, "champions" or technical working groups have been identified in all participating sectors at the national level for planning the implementation of coordinated surveillance | E2: L1 | F2: OTHER | G2: PASS | H2: 8 | I2: 6 | J2: 8.2 | K2: 8.3 | L2: 6.1 | M2: 3.5 | N2: 4 | O2: 7 | P2: 6 | Q2: 0.6322222222 | R2: Guidance document | S2: One Health; Generalized
C3: PP-3.1 | D3: Goal(s), roles, and responsibilities of all participating sectors of the coordinated surveillance system are agreed upon at the national level | E3: L1 | F3: OTHER
D4: Goal(s), roles, and responsibilities of all participating sectors of the coordinated surveillance system are agreed upon and expanded to include all country levels | E4: L2 | F4: OTHER
D5: Goal(s), roles and responsibilities of the coordinated surveillance system have been re-evaluated to reflect the current needs of the coordinated surveillance system | E5: L3 | F5: OTHER
B6: Assessment | C6: A-2.1 | D6: The interlinkages between current prioritized zoonotic disease surveillance systems have been assessed among sectors | E6: L1 | F6: OTHER
C7: A-3.2 | D7: Existing surveillance plans (including case definitions, protocols, and Standard Operating Procedures) relevant to the coordinated surveillance system have been assessed for potential consolidation and linking at the national level | E7: L1 | F7: OTHER
D8: Existing surveillance plans (including case definitions, protocols, and Standard Operating Procedures) relevant to the coordinated surveillance system have been assessed for potential consolidation and linking at all country levels | E8: L3 | F8: OTHER
C9: A-6.1 | D9: Workforce assessment have been conducted to identify current workforce requirements, competencies, needs and gaps at all country levels | E9: L3 | F9: OTHER
B10: Planning | C10: PLG | D10: N/A | E10: N/A | F10: N/A
C11: PL-3.1 | D11: A multi-sectoral review of the national frameworks and strategic plans related to the coordinated surveillance system has occurred, for the purposes of planning. | E11: L1 | F11: OTHER
D12: Frameworks and strategic plans for the coordinated surveillance system have been consolidated and linked based on assessment at all country levels | E12: L2 | F12: OTHER
C13: PL-3.2 | D13: A multi-sectoral review of the national surveillance plans (including action/operational plans, case definitions, protocols, and Standard Operating Procedures) related to the coordinated surveillance system has occurred, for the purposes of planning. | E13: L1 | F13: OTHER
D14: Surveillance plans (including action/operational plans, case definitions, protocols, and Standard Operating Procedures) for the coordinated surveillance system have been consolidated and linked for the purposes of data sharing at all country levels | E14: L2 | F14: OTHER
B15: Implementation | C15: I-2.1 | D15: Focal points or technical working groups meet on an ad hoc basis | E15: L1 | F15: OTHER
C16: I-2.1 | D16: Focal points or technical working groups meet on a routine basis and to address priority issues as they arise | E16: L2 | F16: OTHER
C17: I-2.1 | D17: Technical working groups regularly review and optimize coordinated surveillance activities | E17: L3 | F17: OTHER
C18: I-4.1 | D18: The coordinated surveillance system is being piloted in target areas | E18: L1 | F18: OTHER
C19: I-4.1 | D19: The coordinated surveillance system has been expanded to additional areas based on pilot implementations | E19: L2 | F19: OTHER
C20: I-4.1 | D20: The coordinated surveillance system is a nation-wide program | E20: L3 | F20: OTHER
A21: AfyaData | B21: Implementation | C21: I-3.1 | D21: There is a mechanism to share data between sectors at the national level | E21: L1 | F21: BEST FIT | G21: PASS | H21: 7.3 | I21: 10 | J21: 8.2 | K21: 7.3 | L21: 7.6 | M21: 8.8 | N21: 5.5 | O21: 7.6 | P21: 7 | Q21: =SUM(H21:P21)/90 -> 0.77 | R21: Hardware or Software | S21: One Health; Generalized
C22: I-3.1 | D22: There is a mechanism to share data between sectors at all country levels | E22: L2 | F22: BEST FIT | H22: 7.3 | I22: 10 | J22: 8.2 | K22: 7.3 | L22: 7.6 | M22: 8.8 | N22: 5.5 | O22: 7.6 | P22: 7 | Q22: 0.77
C23: I-3.2 | D23: There is a structure and location to store and maintain data from multiple sectors at the national level. | E23: L1 | F23: BEST FIT | H23: 7.3 | I23: 10 | J23: 8.2 | K23: 7.3 | L23: 7.6 | M23: 8.8 | N23: 5.5 | O23: 7.6 | P23: 7 | Q23: 0.77
C24: I-3.2 | D24: There is a structure and location to store and maintain data from multiple sectors at all country levels | E24: L2 | F24: BEST FIT | H24: 7.3 | I24: 10 | J24: 8.2 | K24: 7.3 | L24: 7.6 | M24: 8.8 | N24: 5.5 | O24: 7.6 | P24: 7 | Q24: 0.77
C25: I-4.1 | D25: The coordinated surveillance system is being piloted in target areas | E25: L1 | F25: OTHER | H25: 7.3 | I25: 10 | J25: 8.2 | K25: 7.3 | L25: 7.6 | M25: 8.8 | N25: 5.5 | O25: 7.6 | P25: 7 | Q25: 0.77
C26: I-4.1 | D26: The coordinated surveillance system has been expanded to additional areas based on pilot implementations | E26: L2 | F26: OTHER | H26: 7.3 | I26: 10 | J26: 8.2 | K26: 7.3 | L26: 7.6 | M26: 8.8 | N26: 5.5 | O26: 7.6 | P26: 7 | Q26: 0.77
C27: I-4.2 | D27: Data are shared informally or formally on an ad hoc basis at the national level | E27: L1 | F27: BEST FIT | H27: 7.3 | I27: 10 | J27: 8.2 | K27: 7.3 | L27: 7.6 | M27: 8.8 | N27: 5.5 | O27: 7.6 | P27: 7 | Q27: 0.77
C28: I-4.2 | D28: Data are shared informally or formally in a routine and timely fashion at all country levels | E28: L2 | F28: BEST FIT | H28: 7.3 | I28: 10 | J28: 8.2 | K28: 7.3 | L28: 7.6 | M28: 8.8 | N28: 5.5 | O28: 7.6 | P28: 7 | Q28: 0.77
C29: I-5.1 | D29: There is ad hoc information sharing with relevant stakeholders | E29: L1 | F29: BEST FIT | H29: 7.3 | I29: 10 | J29: 8.2 | K29: 7.3 | L29: 7.6 | M29: 8.8 | N29: 5.5 | O29: 7.6 | P29: 7 | Q29: 0.77
C30: I-5.3 | D30: Coordinated surveillance data are used to generate outputs (e.g. figures, graphics, reports or bulletins) that are shared at the national level | E30: L1 | F30: BEST FIT | H30: 7.3 | I30: 10 | J30: 8.2 | K30: 7.3 | L30: 7.6 | M30: 8.8 | N30: 5.5 | O30: 7.6 | P30: 7 | Q30: 0.77
A31: Integrated Surveillance for Antimicrobial Resistance (AGISAR) | B31: Planning | C31: PLG | D31: N/A | E31: N/A | F31: N/A | G31: PASS | H31: 8.5 | I31: 6 | J31: 5.3 | K31: 3 | L31: 6.8 | M31: 2 | N31: 5.5 | O31: 10 | P31: 5 | Q31: 0.5788888889 | R31: Guidance document | S31: One Health; Disease/Threat Specific
B32: Implementation | C32: IG | D32: N/A | E32: N/A | F32: N/A
A33: Framework for Enhancing Anthrax Prevention and Control | B33: Assessment | C33: A-5.1 | D33: Laboratory assessments have been used to identify qualified national or international reference laboratories that can carry out testing to support the coordinated surveillance activities | E33: L1 | F33: OTHER | G33: PASS | H33: 9.1 | I33: 10 | J33: 8.6 | K33: 4.7 | L33: 9.2 | M33: 2 | N33: 6.3 | O33: 4.3 | P33: 6 | Q33: =SUM(H33:P33)/90 -> 0.6688888889 | R33: Guidance document | S33: One Health; Disease/Threat Specific
B34: Planning | C34: PL-2.1 | D34: The common data elements are identified and agreed upon within each participating sector to meet the common analytical goals of the coordinated surveillance system at the national level | E34: L1 | F34: OTHER
C35: PL-3.1 | D35: A multi-sectoral review of the national frameworks and strategic plans related to the coordinated surveillance system has occurred, for the purposes of planning. | E35: L1 | F35: OTHER
C36: PL-3.2 | D36: A multi-sectoral review of the national surveillance plans (including action/operational plans, case definitions, protocols, and Standard Operating Procedures) related to the coordinated surveillance system has occurred, for the purposes of planning. | E36: L1 | F36: OTHER
B37: Monitoring and Evaluation | C37: ME-3.1 | D37: There is a data quality management methodology | E37: L1 | F37: OTHER
A38: APHL Laboratory Informatics Assessment Tool | B38: Assessment | C38: A-3.4 | D38: Basic infrastructure mapping exercises (as defined in TZG CH 4.1) have been used to describe the structure and linkages within and between the sectors | E38: L1 | F38: OTHER | G38: 1 EVAL | H38: 8.4 | I38: 6 | J38: 8 | K38: 10 | L38: 6 | M38: 4.5 | N38: 2 | O38: 2.8 | P38: 6 | Q38: =SUM(H38:P38)/90 -> 0.5966666667 | R38: Guided/Facilitated tool or process | S38: Sector Specific; Generalized
D39: Infrastructure mapping has been used to describe the majority of mapping areas (as described in TZG CH 4.1) | E39: L2 | F39: OTHER | J39: 8 | K39: 10 | L39: 6 | M39: 4.5 | N39: 2 | O39: 2.8 | P39: 6 | Q39: 0.4366666667
C40: A-5.2 | D40: Laboratory supply, transport chains and results interpretation have been assessed for harmonized between participating sectors at the national level | E40: L1 | F40: OTHER | J40: 8 | K40: 10 | L40: 6 | M40: 4.5 | N40: 2 | O40: 2.8 | P40: 6 | Q40: 0.4366666667
D41: Laboratory supply, transport chains and results interpretation between participating sectors have been assessed for harmonized at all country levels | E41: L2 | F41: OTHER | J41: 8 | K41: 10 | L41: 6 | M41: 4.5 | N41: 2 | O41: 2.8 | P41: 6 | Q41: 0.4366666667
A42: APHL Informatics Self-Assessment Tool | B42: Assessment | C42: A-3.4 | D42: Basic infrastructure mapping exercises (as defined in TZG CH 4.1) have been used to describe the structure and linkages within and between the sectors | E42: L1 | F42: OTHER | G42: PASS | H42: 9.1 | I42: 6.7 | J42: 8.3 | K42: 8.4 | L42: 8.1 | M42: 8.5 | N42: 5 | O42: 6.1 | P42: 4.3 | Q42: 0.7166666667 | R42: Guidance document | S42: Sector Specific; Generalized
D43: Infrastructure mapping has been used to describe the majority of mapping areas (as described in TZG CH 4.1) | E43: L2 | F43: OTHER | I43: 6.7 | J43: 8.3 | K43: 8.4 | L43: 8.1 | M43: 8.5 | N43: 5 | O43: 6.1 | P43: 4.3 | Q43: 0.6155555556
B44: Implementation | C44: I-3.3 | D44: There are data privacy and security measures in place to protect coordinated surveillance data at the national level | E44: L1 | F44: OTHER | I44: 6.7 | J44: 8.3 | K44: 8.4 | L44: 8.1 | M44: 8.5 | N44: 5 | O44: 6.1 | P44: 4.3 | Q44: 0.6155555556
C45: I-3.3 | D45: There are data privacy and security measures in place to protect coordinated surveillance data at all country levels | E45: L2 | F45: OTHER | I45: 6.7 | J45: 8.3 | K45: 8.4 | L45: 8.1 | M45: 8.5 | N45: 5 | O45: 6.1 | P45: 4.3 | Q45: 0.6155555556
C46: I-3.3 | D46: There are data privacy and security measures in place to protect coordinated surveillance data that has been assessed and determined to meet the objectives of the coordinated surveillance system | E46: L3 | F46: OTHER | I46: 6.7 | J46: 8.3 | K46: 8.4 | L46: 8.1 | M46: 8.5 | N46: 5 | O46: 6.1 | P46: 4.3 | Q46: 0.6155555556
A47: FAO Assessment Tool for Laboratories and Antimicrobial Resistance Surveillance Systems (ATLASS) | B47: Assessment | C47: AG | D47: N/A | E47: N/A | F47: N/A | G47: PASS | H47: 7.2 | I47: 10 | J47: 5.6 | K47: 7.3 | L47: 7.3 | M47: 5.2 | N47: 8.7 | O47: 5.6 | P47: 7 | Q47: =SUM(H47:P47)/90 -> 0.71 | R47: Guided/Facilitated tool or process | S47: One Health; Disease/Threat Specific
C48: A-2.1 | D48: The interlinkages between current prioritized zoonotic disease surveillance systems have been assessed among sectors | E48: L1 | F48: OTHER
D49: The interlinkages between current surveillance systems have been assessed among sectors and at all country levels | E49: L2 | F49: OTHER
D50: The interlinkages between current surveillance systems have been assessed and determined to meet the objectives of the coordinated surveillance system. | E50: L3 | F50: OTHER
A51: Border Health Capacity Discussion Guide (BHCDG) | B51: Assessment | C51: A-1.1 | D51: Stakeholders working in surveillance, epidemiology, laboratory, and information sharing have been identified | E51: L1 | F51: BEST FIT | G51: PASS | H51: 8.8 | I51: 6.7 | J51: 7.6 | K51: 9 | L51: 7 | M51: 3.8 | N51: 8 | O51: 8.4 | P51: 6 | Q51: =SUM(H51:P58)/90 -> 0.7255555556 | R51: Guidance document | S51: One Health; Disease/Threat Specific
D52: Stakeholder analysis has been used to identify participants at all country levels | E52: L2 | F52: BEST FIT
C53: A-2.1 | D53: The interlinkages between current prioritized zoonotic disease surveillance systems have been assessed among sectors | E53: L1 | F53: OTHER
D54: The interlinkages between current surveillance systems have been assessed among sectors and at all country levels | E54: L2 | F54: OTHER
C55: A-3.1 | D55: Frameworks and strategic plans relevant to the coordinated surveillance system have been assessed for potential consolidation and linking at the national level | E55: L1 | F55: BEST FIT
C56: A-3.2 | D56: Existing surveillance plans (including case definitions, protocols, and Standard Operating Procedures) relevant to the coordinated surveillance system have been assessed for potential consolidation and linking at the national level | E56: L1 | F56: BEST FIT
C57: A-3.3 | D57: Existing action/operational plans relevant to the coordinated surveillance system have been assessed for potential consolidation and linking at the national level | E57: L1 | F57: OTHER
C58: A-6.1 | D58: Workforce assessments have been conducted to identify current workforce requirements, competencies, needs and gaps at the national level | E58: L1 | F58: BEST FIT
A59: Competency Guidelines for Public Health Laboratory Professionals: CDC and the Association of Public Health Laboratories | B59: Assessment | C59: A-6.1 | D59: Workforce assessments have been conducted to identify current workforce requirements, competencies, needs and gaps at the national level | E59: L1 | F59: OTHER | G59: PASS | H59: 9 | I59: 7.8 | J59: 9.2 | K59: 9.1 | L59: 6.3 | M59: 3 | N59: 2 | O59: 7.8 | P59: 4 | Q59: =SUM(H59:P59)/90 -> 0.6466666667 | R59: Guidance document | S59: Sector Specific; Generalized
D60: Workforce assessment have been conducted to identify current workforce requirements, competencies, needs and gaps at all country levels | E60: L3 | F60: OTHER
A61: Cross Border Multisectoral Communication and Coordination Strategies | B61: Planning | C61: PL-2.1 | D61: The common data elements are standardized among participating sectors based on the common analytical goals of the coordinated surveillance system and adhere to international data standards | E61: L3 | F61: OTHER | H61: 8.9 | I61: 6 | J61: 7.6 | K61: 9 | L61: 5.6 | M61: 3.5 | N61: 4 | O61: 8.3 | P61: 8 | Q61: =SUM(H61:P61)/90 -> 0.6766666667 | R61: Guided/Facilitated tool or process | S61: One Health; Generalized
C62: PL-3.1 | D62: Revised frameworks and strategic plans for the coordinated surveillance system have been aligned with international standards and recommendations. | E62: L3 | F62: OTHER
C63: PL-6.1 | D63: Revised legal frameworks for the coordinated surveillance system have been aligned with international standards and recommendations. | E63: L3 | F63: BEST FIT
C64: PL-7.1 | D64: There is a communications strategy and/or communications plan (which includes terminology and messaging) that informs communication with stakeholders and the public for the coordinated surveillance system | E64: L3 | F64: BEST FIT
A65: District Health Information Software 2 (DHIS2) | B65: Implementation | C65: I-3.1 | D65: There is a mechanism to share data between sectors at the national level | E65: L1 | F65: BEST FIT | G65: PASS | H65: 8.8 | I65: 8.7 | J65: 8 | K65: 8.7 | L65: 9.3 | M65: 9 | N65: 10 | O65: 7.8 | P65: 7 | Q65: =SUM(H65:P65)/90 -> 0.8588888889 | R65: Hardware or Software | S65: Sector Specific; Generalized
C66: I-3.1 | D66: There is a mechanism to share data between sectors at all country levels | E66: L2 | F66: BEST FIT
C67: I-3.1 | D67: There is a mechanism to share data that is accessible, functional, and usable by all participating sectors | E67: L3 | F67: OTHER
C68: I-3.2 | D68: There is a structure and location to store and maintain data from multiple sectors at the national level. | E68: L1 | F68: OTHER
C69: I-3.2 | D69: There is a structure and location to store and maintain data from multiple sectors at all country levels | E69: L2 | F69: OTHER
C70: I-3.2 | D70: There is a structure and location to store and maintain data from all relevant sectors conducting surveillance that is accessible, functional, and usable by all participating sectors | E70: L3 | F70: OTHER
C71: I-3.3 | D71: Coordinated surveillance data are protected by the data privacy and security measures in place at the national level | E71: L1 | F71: BEST FIT
C72: I-3.3 | D72: Coordinated surveillance data are protected by the data privacy and security measures in place at all country levels | E72: L2 | F72: BEST FIT
C73: I-3.3 | D73: Coordinated surveillance data that have been assessed and determined to meet the objectives of the coordinated surveillance system are protected by the data privacy and security measures in place | E73: L3 | F73: BEST FIT
C74: I-4.2 | D74: Data are shared informally or formally on an ad hoc basis at the national level | E74: L1 | F74: BEST FIT
C75: I-4.2 | D75: Data are shared informally or formally in a routine and timely fashion at all country levels | E75: L2 | F75: BEST FIT
C76: I-4.2 | D76: Data are shared systematically in a routine and timely manner between all participating sectors through an interoperable or joint platform(s) | E76: L3 | F76: BEST FIT
C77: I-5.1 | D77: There is ad hoc information sharing with relevant stakeholders | E77: L1 | F77: BEST FIT
C78: I-5.1 | D78: There is routine information sharing with relevant stakeholders | E78: L2 | F78: BEST FIT
C79: I-5.1 | D79: There is routine and timely information sharing with relevant stakeholders including cross-border, regional and international entities | E79: L3 | F79: OTHER
C80: I-5.3 | D80: Coordinated surveillance data are used to generate outputs (e.g. figures, graphics, reports or bulletins) that are shared at the national level | E80: L1 | F80: BEST FIT
D81: Coordinated surveillance data are used to generate outputs (e.g. figures, graphics, reports or bulletins) that are disseminated to stakeholders at all country levels | E81: L2 | F81: BEST FIT
D82: Coordinated surveillance data, including M&E reports, are used to generate outputs that inform, response, policy and programming | E82: L3 | F82: BEST FIT
A83: ECDC Data quality monitoring and surveillance system evaluation - A handbook of methods and applications | B83: Assessment | C83: A-2.1 | D83: The interlinkages between current prioritized zoonotic disease surveillance systems have been assessed among sectors | E83: L1 | F83: OTHER | G83: PASS | H83: 8.2 | I83: 6 | J83: 6.4 | K83: 7.3 | L83: 7.7 | M83: 4.5 | N83: 5.3 | O83: 6.2 | P83: 8 | Q83: =SUM(H83:P83)/90 -> 0.6622222222 | R83: Guidance document | S83: Sector Specific; Generalized
D84: The interlinkages between current surveillance systems have been assessed among sectors and at all country levels | E84: L2 | F84: OTHER
D85: The interlinkages between current surveillance systems have been assessed and determined to meet the objectives of the coordinated surveillance system. | E85: L3 | F85: OTHER
C86: A-3.2 | D86: Existing surveillance plans (including case definitions, protocols, and Standard Operating Procedures) relevant to the coordinated surveillance system have been assessed for potential consolidation and linking at the national level | E86: L1 | F86: OTHER
D87: Existing surveillance plans (including case definitions, protocols, and Standard Operating Procedures) relevant to the coordinated surveillance system have been assessed for potential consolidation and linking at all country levels | E87: L3 | F87: OTHER
B88: Planning | C88: PL-3.2 | D88: A multi-sectoral review of the national surveillance plans (including action/operational plans, case definitions, protocols, and Standard Operating Procedures) related to the coordinated surveillance system has occurred, for the purposes of planning. | E88: L1 | F88: OTHER
D89: Surveillance plans (including action/operational plans, case definitions, protocols, and Standard Operating Procedures) for the coordinated surveillance system have been consolidated and linked for the purposes of data sharing at all country levels | E89: L2 | F89: OTHER
D90: Revised surveillance plans (including action/operational plans, case definitions, protocols, and Standard Operating Procedures) for the coordinated surveillance system have been aligned with international guidelines and recommendations. | E90: L3 | F90: OTHER
B91: Monitoring and Evaluation | C91: ME-2.1 | D91: There is a monitoring and evaluation plan that meets the objectives of the coordinated surveillance system | E91: L1 | F91: OTHER
C92: ME-2.1 | D92: The monitoring and evaluation plan is implemented to track performance and progress of the coordinated surveillance system | E92: L2 | F92: OTHER
C93: ME-2.1 | D93: Results of monitoring and evaluation iteratively improve or expand the coordinated surveillance system and align with international standards and recommendations | E93: L3 | F93: OTHER
C94: ME-3.1 | D94: There is a data quality management methodology | E94: L1 | F94: BEST FIT
C95: ME-3.1 | D95: The data quality has been tested and determined to meet the objectives of the coordinated surveillance system | E95: L2 | F95: OTHER
C96: ME-3.1 | D96: The data quality aligns with international standards and recommendations | E96: L3 | F96: OTHER
A97: ECDC tool for the prioritisation of infectious disease threats | B97: Pre-Planning | C97: PP-2.1 | D97: A list of prioritized zoonotic diseases exists for inclusion in a coordinated surveillance system | E97: L1 | F97: BEST FIT | G97: PASS | H97: 9.8 | I97: 10 | J97: 8 | K97: 8.7 | L97: 7.1 | M97: 4.5 | N97: 8 | O97: 8.5 | P97: 9 | Q97: =SUM(H97:P97)/90 -> 0.8177777778 | R97: Self-assessment tool | S97: Sector Specific; Generalized
D98: A list of zoonotic diseases is broadly distributed to the subnational and community levels | E98: L2 | F98: BEST FIT
D99: A list of zoonotic diseases is developed using a multisectoral, One Health approach. Such an approach would involve all relevant sectors in an evidence-based, transparent, repeatable prioritization process. | E99: L3 | F99: BEST FIT
A100: Evaluation of Collaboration in a multisectoral Surveillance system (EcoSur) | B100: Pre-Planning | C100: PPG | D100: N/A | E100: N/A | F100: N/A | G100: PASS | H100: 8.3 | I100: 6 | J100: 8.5 | K100: 7.8 | L100: 8.3 | M100: 6.7 | N100: 3.3 | O100: 9.1 | P100: 4.7 | Q100: =SUM(H100:P100)/90 -> 0.6966666667 | R100: Guided/Facilitated tool or process | S100: One Health; Generalized
C101: PP-1.1 | D101: Focal points, "champions" or technical working groups have been identified in all participating sectors at the national level for planning the implementation of coordinated surveillance | E101: L1 | F101: OTHER
D102: Focal points, "champions" or technical working groups have been identified in all participating sectors and at all country levels for planning the implementation of coordinated surveillance | E102: L2 | F102: OTHER
D103: Focal points, "champions" or technical working groups (including identified focal points or "champions") for coordinated surveillance have been institutionalized (e.g. through a governing body such as an MCM) | E103: L3 | F103: OTHER
C104: PP-3.1 | D104: Goal(s), roles, and responsibilities of all participating sectors of the coordinated surveillance system are agreed upon and expanded to include all country levels | E104: L2 | F104: BEST FIT
C105: PP-3.1 | D105: Goal(s), roles and responsibilities of the coordinated surveillance system have been re-evaluated to reflect the current needs of the coordinated surveillance system | E105: L3 | F105: BEST FIT
B106: Assessment | C106: AG | D106: N/A | E106: N/A | F106: N/A
C107: A-1.1 | D107: Stakeholders working in surveillance, epidemiology, laboratory, and information sharing have been identified | E107: L1 | F107: OTHER
D108: Stakeholder analysis has been used to identify participants at all country levels | E108: L2 | F108: OTHER
D109: Roles and responsibilities of stakeholders have been institutionalized and adopted in policy | E109: L3 | F109: OTHER
C110: A-2.1 | D110: The interlinkages between current prioritized zoonotic disease surveillance systems have been assessed among sectors | E110: L1 | F110: OTHER
D111: The interlinkages between current surveillance systems have been assessed among sectors and at all country levels | E111: L2 | F111: OTHER
D112: The interlinkages between current surveillance systems have been assessed and determined to meet the objectives of the coordinated surveillance system. | E112: L3 | F112: OTHER
C113: A-2.2 | D113: The legal frameworks (rules, policies, guidelines and regulations including international standards) that govern the ethical and privacy standards for surveillance and data sharing have been assessed. | E113: L1 | F113: BEST FIT
D114: The legal frameworks (rules, policies, guidelines and regulations including international standards) that govern the ethical and privacy standards for surveillance and data sharing are assessed at all country levels | E114: L3 | F114: BEST FIT
C115: A-3.1 | D115: Frameworks and strategic plans relevant to the coordinated surveillance system have been assessed for potential consolidation and linking at the national level | E115: L1 | F115: OTHER
D116: Frameworks and strategic plans relevant to the coordinated surveillance system have been assessed for potential consolidation and linking at all country levels | E116: L3 | F116: OTHER
C117: A-3.2 | D117: Existing surveillance plans (including case definitions, protocols, and Standard Operating Procedures) relevant to the coordinated surveillance system have been assessed for potential consolidation and linking at the national level | E117: L1 | F117: OTHER
D118: Existing surveillance plans (including case definitions, protocols, and Standard Operating Procedures) relevant to the coordinated surveillance system have been assessed for potential consolidation and linking at all country levels | E118: L3 | F118: OTHER
C119: A-3.3 | D119: Existing action/operational plans relevant to the coordinated surveillance system have been assessed for potential consolidation and linking at the national level | E119: L1 | F119: OTHER
D120: Existing action/operational plans relevant to coordinated surveillance system have been assessed for potential consolidation and linking at all country levels | E120: L3 | F120: OTHER
C121: A-3.4 | D121: Basic infrastructure mapping exercises (as defined in TZG CH 4.1) have been used to describe the structure and linkages within and between the sectors | E121: L1 | F121: OTHER
D122: Infrastructure mapping has been used to describe the majority of mapping areas (as described in TZG CH 4.1) | E122: L2 | F122: OTHER
D123: Comprehensive infrastructure mapping has been used to describe all mapping areas (as described in TZG CH 4.1). | E123: L3 | F123: OTHER
C124: A-4.1 | D124: Economic assessments have been used to determine national financial needs for the coordinated surveillance system | E124: L1 | F124: BEST FIT
D125: Economic assessments have been used to determine the financial needs at all country levels for the coordinated surveillance system | E125: L3 | F125: BEST FIT
C126: A-5.1 | D126: Laboratory assessments have been used to identify qualified national or international reference laboratories that can carry out testing to support the coordinated surveillance activities | E126: L1 | F126: BEST FIT
D127: Laboratory assessments have been used to identify qualified laboratories at all levels (including international) that can carry out testing to support the coordinated surveillance activities | E127: L2 | F127: BEST FIT
D128: Laboratory assessments have been used to identify a network of qualified laboratories that can carry out testing to support the coordinated surveillance activities | E128: L3 | F128: BEST FIT
C129: A-5.2 | D129: Laboratory supply, transport chains and results interpretation have been assessed for harmonized between participating sectors at the national level | E129: L1 | F129: BEST FIT
D130: Laboratory supply, transport chains and results interpretation between participating sectors have been assessed for harmonized at all country levels | E130: L2 | F130: BEST FIT
D131: The degree of harmonization in laboratory supply, transport chains and results interpretation between participating sectors have been assessed and determined to meet the objectives of the coordinated surveillance system | E131: L3 | F131: BEST FIT
C132: A-6.1 | D132: Workforce assessments have been conducted to identify current workforce requirements, competencies, needs and gaps at the national level | E132: L1 | F132: BEST FIT
C133: A-6.1 | D133: Workforce assessment have been conducted to identify current workforce requirements, competencies, needs and gaps at all country levels | E133: L3 | F133: BEST FIT
B134: Planning | C134: Pl-1.1 | D134: Decision makers for the coordinated surveillance system has been identified | E134: L1 | F134: OTHER
C135: PL-2.1 | D135: The common data elements are identified and agreed upon within each participating sector to meet the common analytical goals of the coordinated surveillance system at the national level | E135: L1 | F135: OTHER
C136: PL-2.1 | D136: The common data elements are identified and agreed upon within each participating sector to meet the common analytical goals of the coordinated surveillance system at all country levels | E136: L2 | F136: OTHER
A137: EFSA Data Collection Framework | B137: Planning | C137: PL-2.1 | D137: The common data elements are identified and agreed upon within each participating sector to meet the common analytical goals of the coordinated surveillance system at all country levels | E137: L2 | F137: OTHER | G137: PASS | H137: 8.5 | I137: 4 | J137: 6.8 | K137: 9.3 | L137: 7.1 | M137: 5.5 | N137: 5 | O137: 8.3 | P137: 10 | Q137: =SUM(H137:P137)/90 -> 0.7166666667 | R137: Hardware or Software | S137: One Health; Generalized
A138: Electronic Integrated Disease Surveillance System (EIDSS) | B138: Implementation | C138: I-3.1 | D138: There is a mechanism to share data between sectors at the national level | E138: L1 | F138: BEST FIT | G138: PASS | H138: 6.8 | I138: 10 | J138: 8.4 | K138: 8.7 | L138: 9.1 | M138: 8 | N138: 7 | O138: 7.2 | P138: 10 | Q138: =SUM(H138:P138)/90 -> 0.8355555556 | R138: Hardware or Software | S138: One Health; Generalized
C139: I-3.1 | D139: There is a mechanism to share data between sectors at all country levels | E139: L2 | F139: BEST FIT
C140: I-3.1 | D140: There is a mechanism to share data that is accessible, functional, and usable by all participating sectors | E140: L3 | F140: BEST FIT
C141: I-3.2 | D141: There is a structure and location to store and maintain data from multiple sectors at the national level. | E141: L1 | F141: BEST FIT
C142: I-3.2 | D142: There is a structure and location to store and maintain data from multiple sectors at all country levels | E142: L2 | F142: BEST FIT
C143: I-3.2 | D143: There is a structure and location to store and maintain data from all relevant sectors conducting surveillance that is accessible, functional, and usable by all participating sectors | E143: L3 | F143: BEST FIT
C144: I-3.3 | D144: Coordinated surveillance data are protected by the data privacy and security measures in place at the national level | E144: L1 | F144: BEST FIT
C145: I-3.3 | D145: Coordinated surveillance data are protected by the data privacy and security measures in place at all country levels | E145: L2 | F145: BEST FIT
C146: I-3.3 | D146: Coordinated surveillance data that have been assessed and determined to meet the objectives of the coordinated surveillance system are protected by the data privacy and security measures in place | E146: L3 | F146: BEST FIT
C147: I-4.1 | D147: The coordinated surveillance system is being piloted in target areas | E147: L1 | F147: OTHER
C148: I-4.1 | D148: The coordinated surveillance system has been expanded to additional areas based on pilot implementations | E148: L2 | F148: OTHER
C149: I-4.1 | D149: The coordinated surveillance system is a nation-wide program | E149: L3 | F149: OTHER
C150: I-4.2 | D150: Data are shared informally or formally on an ad hoc basis at the national level | E150: L1 | F150: BEST FIT
C151: I-4.2 | D151: Data are shared informally or formally in a routine and timely fashion at all country levels | E151: L2 | F151: BEST FIT
C152: I-4.2 | D152: Data are shared systematically in a routine and timely manner between all participating sectors through an interoperable or joint platform(s) | E152: L3 | F152: BEST FIT
C153: I-5.3 | D153: Coordinated surveillance data are used to generate outputs (e.g. figures, graphics, reports or bulletins) that are shared at the national level | E153: L1 | F153: BEST FIT
D154: Coordinated surveillance data, including M&E reports, are used to generate outputs that inform, response, policy and programming | E154: L3 | F154: OTHER
A155: The Epidemic Intelligence from Open Sources (EIOS) | B155: Implementation | C155: I-3.1 | D155: There is a mechanism to share data between sectors at the national level | E155: L1 | F155: OTHER | G155: PASS | H155: 8.4 | I155: 9 | J155: 7.4 | K155: 9 | L155: 8.8 | M155: 8 | N155: 5.5 | O155: 9.2 | P155: 6 | Q155: =SUM(H155:P155)/90 -> 0.7922222222 | R155: Hardware or Software | S155: One Health; Generalized
C156: I-3.1 | D156: There is a mechanism to share data that is accessible, functional, and usable by all participating sectors | E156: L3 | F156: OTHER
C157: I-4.2 | D157: Data are shared informally or formally on an ad hoc basis at the national level | E157: L1 | F157: OTHER
C158: I-4.2 | D158: Data are shared informally or formally in a routine and timely fashion at all country levels | E158: L2 | F158: OTHER
C159: I-4.2 | D159: Data are shared systematically in a routine and timely manner between all participating sectors through an interoperable or joint platform(s) | E159: L3 | F159: OTHER
C160: I-5.1 | D160: There is ad hoc information sharing with relevant stakeholders | E160: L1 | F160: OTHER
C161: I-5.1 | D161: There is routine information sharing with relevant stakeholders | E161: L2 | F161: OTHER
C162: I-5.1 | D162: There is routine and timely information sharing with relevant stakeholders including cross-border, regional and international entities | E162: L3 | F162: OTHER
A163: Event Mobile Application (EMAi) | B163: Implementation | C163: I-3.1 | D163: There is a mechanism to share data between sectors at the national level | E163: L1 | F163: OTHER | G163: PASS | H163: 8.9 | I163: 7.7 | J163: 9.1 | K163: 6 | L163: 8.3 | M163: 9.3 | N163: 6.7 | O163: 4.5 | P163: 5.7 | Q163: =SUM(H163:P163)/90 -> 0.7355555556 | R163: Hardware or Software | S163: Sector Specific; Generalized
D164: There is a mechanism to share data between sectors at all country levels | E164: L2 | F164: OTHER
C165: I-5.2 | D165: Comply with international notification requirements for all zoonotic diseases | E165: L1 | F165: OTHER
A166: EMPRES Global Animal Disease Information System (EMPRES-i) | B166: Implementation | C166: I-3.1 | D166: There is a mechanism to share data between sectors at the national level | E166: L1 | F166: OTHER | G166: PASS | H166: 9 | I166: 8.3 | J166: 8.9 | K166: 8.7 | L166: 8 | M166: 7.8 | N166: 7.4 | O166: 4.8 | P166: 4.7 | Q166: =SUM(H166:P166)/90 -> 0.7511111111 | R166: Hardware or Software | S166: Sector Specific; Generalized
C167: I-3.1 | D167: There is a mechanism to share data between sectors at all country levels | E167: L2 | F167: BEST FIT
C168: I-3.2 | D168: There is a structure and location to store and maintain data from multiple sectors at the national level. | E168: L1 | F168: OTHER
C169: I-3.2 | D169: There is a structure and location to store and maintain data from multiple sectors at all country levels | E169: L2 | F169: OTHER
C170: I-3.2 | D170: There is a structure and location to store and maintain data from all relevant sectors conducting surveillance that is accessible, functional, and usable by all participating sectors | E170: L3 | F170: OTHER
C171: I-3.3 | D171: Coordinated surveillance data are protected by the data privacy and security measures in place at the national level | E171: L1 | F171: OTHER
C172: I-3.3 | D172: Coordinated surveillance data are protected by the data privacy and security measures in place at all country levels | E172: L2 | F172: OTHER
C173: I-5.1 | D173: There is ad hoc information sharing with relevant stakeholders | E173: L1 | F173: OTHER
A174: Epidemiology Mapping Tool (EMT) | B174: Assessment | C174: A-3.2 | D174: Existing surveillance plans (including case definitions, protocols, and Standard Operating Procedures) relevant to the coordinated surveillance system have been assessed for potential consolidation and linking at the national level | E174: L1 | F174: OTHER | G174: PASS | H174: 6.6 | I174: 8 | J174: 7.4 | K174: 7.3 | L174: 6.9 | M174: 5 | N174: 3.5 | O174: 6.8 | P174: 5.5 | Q174: =SUM(H174:P174)/90 -> 0.6333333333 | R174: Guided/Facilitated tool or process | S174: Sector Specific; Generalized
C175: A-6.1 | D175: Workforce assessments have been conducted to identify current workforce requirements, competencies, needs and gaps at the national level | E175: L1 | F175: BEST FIT
A176: Guidelines for designing animal disease surveillance plans | C176: PL-3.2 | D176: A multi-sectoral review of the national surveillance plans (including action/operational plans, case definitions, protocols, and Standard Operating Procedures) related to the coordinated surveillance system has occurred, for the purposes of planning. | E176: L1 | F176: OTHER | G176: PASS | H176: 9.2 | I176: 10 | J176: 7.5 | K176: 8.7 | L176: 5.7 | M176: 2.5 | N176: 3.3 | O176: 5.1 | P176: 4 | Q176: =SUM(H176:P176)/90 -> 0.6222222222 | R176: Template | S176: Sector Specific; Generalized
C177: PL-3.2 | D177: Surveillance plans (including action/operational plans, case definitions, protocols, and Standard Operating Procedures) for the coordinated surveillance system have been consolidated and linked for the purposes of data sharing at all country levels | E177: L2 | F177: OTHER
C178: PL-3.2 | D178: Revised surveillance plans (including action/operational plans, case definitions, protocols, and Standard Operating Procedures) for the coordinated surveillance system have been aligned with international guidelines and recommendations. | E178: L3 | F178: OTHER
A179: FoodChain-Lab (FCL) | B179: Implementation | C179: I-3.1 | D179: There is a mechanism to share data between sectors at the national level | E179: L1 | F179: OTHER | G179: PASS | H179: 9.7 | I179: 6 | J179: 7.9 | K179: 7.8 | L179: 8.1 | M179: 8 | N179: 7.9 | O179: 8.4 | P179: 9.7 | Q179: =SUM(H179:P179)/90 -> 0.8166666667 | R179: Hardware or Software | S179: One Health; Disease/Threat Specific
C180: I-5.3 | D180: Coordinated surveillance data are used to generate outputs (e.g. figures, graphics, reports or bulletins) that are shared at the national level | E180: L1 | F180: OTHER
D181: Coordinated surveillance data are used to generate outputs (e.g. figures, graphics, reports or bulletins) that are disseminated to stakeholders at all country levels | E181: L2 | F181: OTHER
D182: Coordinated surveillance data, including M&E reports, are used to generate outputs that inform, response, policy and programming | E182: L3 | F182: OTHER
A183: Framework for Evaluating Public Health Surveillance Systems for Early Detection of Outbreaks | B183: Assessment | C183: A-3.1 | D183: Frameworks and strategic plans relevant to the coordinated surveillance system have been assessed for potential consolidation and linking at the national level | E183: L1 | F183: OTHER | H183: 9.2 | I183: 6.7 | J183: 8.4 | K183: 8.7 | L183: 7.1 | M183: 2 | N183: 2.5 | O183: 8.2 | P183: 6 | Q183: =SUM(H183:P183)/90 -> 0.6533333333 | R183: Guidance document | S183: Sector Specific; Generalized
A184: Global Dog Rabies Elimination Pathway (GDREP) | B184: Assessment | C184: A-4.1 | D184: Economic assessments have been used to determine national financial needs for the coordinated surveillance system | E184: L1 | F184: BEST FIT | G184: PASS | H184: 9.1 | I184: 7.3 | J184: 8.7 | K184: 6 | L184: 7.9 | M184: 6 | N184: 7 | O184: 6.3 | P184: 7 | Q184: =SUM(H184:P184)/90 -> 0.7255555556 | R184: Self-assessment tool | S184: One Health; Disease/Threat Specific
D185: Economic assessments have been used to determine the financial needs at all country levels for the coordinated surveillance system | E185: L3 | F185: BEST FIT
C186: A-6.1 | D186: Workforce assessments have been conducted to identify current workforce requirements, competencies, needs and gaps at the national level | E186: L1 | F186: BEST FIT
D187: Workforce assessment have been conducted to identify current workforce requirements, competencies, needs and gaps at all country levels | E187: L3 | F187: OTHER
C188: PL-5.1 | D188: An education and training plan for the coordinated surveillance system exists based on workforce assessment at the national level | E188: L1 | F188: OTHER
D189: An education and training plan for the coordinated surveillance system exists based on workforce assessment at all country levels | E189: L2 | F189: OTHER
D190: Workforce education and training is linked to national multisectoral workforce planning and is informed by international competencies and assessments | E190: L3 | F190: OTHER
B191: Planning | C191: PL-6.1 | D191: Necessary legal frameworks (rules, policies, guidelines and regulations including international standards) have been standardized across sectors based on assessment at the national level | E191: L1 | F191: OTHER
D192: Necessary legal frameworks (rules, policies, guidelines and regulations including international standards) have been standardized across sectors based on assessment at all country levels | E192: L2 | F192: OTHER
D193: Revised legal frameworks for the coordinated surveillance system have been aligned with international standards and recommendations. | E193: L3 | F193: OTHER
A194: Health System Assessment Approach (HSAA) | B194: Assessment | C194: AG | D194: N/A | E194: N/A | F194: N/A | G194: 1 EVAL | H194: 10 | I194: 10 | J194: 6.4 | K194: 4.7 | L194: 8.3 | M194: 2 | N194: 3 | O194: 6 | P194: 4 | Q194: =SUM(H194:P194)/90 -> 0.6044444444 | R194: Guidance document | S194: Sector Specific; Generalized
A195: Integrated Disease Surveillance and Response (IDSR) | B195: Pre-Planning | C195: PP-1.1 | D195: Focal points, "champions" or technical working groups have been identified in all participating sectors at the national level for planning the implementation of coordinated surveillance | E195: L1 | F195: OTHER | G195: PASS | H195: 7.4 | I195: 10 | J195: 7.4 | K195: 8.7 | L195: 6.7 | M195: 4.5 | N195: 8 | O195: 7.2 | P195: 8.5 | Q195: =SUM(H195:P195)/90 -> 0.76 | R195: Guidance document | S195: Sector Specific; Generalized
D196: Focal points, "champions" or technical working groups have been identified in all participating sectors and at all country levels for planning the implementation of coordinated surveillance | E196: L2 | F196: OTHER
D197: Focal points, "champions" or technical working groups (including identified focal points or "champions") for coordinated surveillance have been institutionalized (e.g. through a governing body such as an MCM) | E197: L3 | F197: OTHER
C198: PP-3.1 | D198: Goal(s), roles, and responsibilities of all participating sectors of the coordinated surveillance system are agreed upon at the national level | E198: L1 | F198: BEST FIT
D199: Goal(s), roles, and responsibilities of all participating sectors of the coordinated surveillance system are agreed upon and expanded to include all country levels | E199: L2 | F199: BEST FIT
B200: Assessment | C200: A-1.1 | D200: Stakeholders working in surveillance, epidemiology, laboratory, and information sharing have been identified | E200: L1 | F200: OTHER
... 478 more rows

Sheet Section I
B3: SECTION I: PRE-PLANNING
B8: This section of the tool will introduce you to the first of five stages in the process to build coordinated surveillance: Pre-planning. This section includes three categories and three activities in total to assess.
B17: Pre-planning Overview
B21: The Pre-Planning stage includes the preparatory steps done in advance of the work to establish or strengthen a coordinated surveillance system for zoonotic diseases. These include activities such as identifying preliminary stakeholders, identifying the prioritized zoonotic diseases to include in the system, and identifying the objectives and setting the goals for the system. These steps are important for creating a solid foundation for building or strengthening a functional coordinated surveillance system. The resources presented in this section should be considered by individuals using the SIS OT for assistance in this preparatory stage to establishment or strengthening of the national coordinated surveillance system for zoonotic diseases.

Sheet Focal Points
B3: Focal Points
B8: Please select whether each activity below is completed ("1") or pending ("0") based on the current level of capacity in your country.
B12: IMPORTANT NOTES: ·Select "1" if the capacity has been completed and "0" if the activity has not been completed or is pending. ·If the capacity level is complete and the selected response is "1", the next capacity level for the activity opens. ·If the capacity does not apply to your situation, select "0". ·If you do not know the answer, select "0". ·If there are two elements to the capacity level (the sentence will be joined with "AND"), then BOTH must be complete if "1" is selected as your response. CRITICAL ASSUMPTION: ·Since the SIS OT refers to the development of coordinated surveillance and data sharing, selecting "1" implies that the capacity level has been completed in the One Health sectors which are relevant for this activity. If not, please select "0".
AK20: 1
AK21: 0
B28: STAGE | F28: ACTIVITY | K28: LEVEL 1 | T28: LEVEL 2 | AC28: LEVEL 3
B31: Pre-Planning | F31: =Activities!B2 -> PP-1 Identifying Preliminary Stakeholders | K31: =Activities!C2 -> Focal points, "champions" or technical working groups have been identified in all participating sectors at the national level for planning the implementation of coordinated surveillance | T31: =Activities!C3 -> Focal points, "champions" or technical working groups have been identified in all participating sectors and at all country levels for planning the implementation of coordinated surveillance | AC31: =Activities!C4 -> Focal points, "champions" or technical working groups (including identified focal points or "champions") for coordinated surveillance have been institutionalized (e.g. through a governing body such as an MCM) | AJ31: COMMENTS:
R37: (if yes) | AA37: (if yes)
K44: RESPONSE: | R44: =IF(O44="Yes",1,0) -> 0 | T44: RESPONSE: | AA44: =IF(X44="Yes",1,0) -> 0 | AC44: RESPONSE:

Sheet Prioritization
B3: Prioritization
B8: Please select whether each activity below is completed ("1") or has not been completed / is pending ("0") based on the current level of capacity in your country.
B12: IMPORTANT NOTES: ·Select "1" if the capacity has been completed and "0" if the activity has not been completed or is pending. ·If the capacity level is complete and the selected response is "1", the next capacity level for the activity opens. ·If the capacity does not apply to your situation, select "0". ·If you do not know the answer, select "0". ·If there are two elements to the capacity level (the sentence will be joined with "AND"), then BOTH must be complete if "1" is selected as your response. CRITICAL ASSUMPTION: ·Since the SIS OT refers to the development of coordinated surveillance and data sharing, selecting "1" implies that the capacity level has been completed in the One Health sectors which are relevant for this activity. If not, please select "0".
AK20: 1
AK21: 0
B28: STAGE | F28: ACTIVITY | K28: LEVEL 1 | T28: LEVEL 2 | AC28: LEVEL 3
B31: Pre-Planning | F31: =Activities!B5 -> PP-2 Prioritization | K31: =Activities!C5 -> A list of prioritized zoonotic diseases exists for inclusion in a coordinated surveillance system | T31: =Activities!C6 -> A list of zoonotic diseases is broadly distributed to the subnational and community levels | AC31: =Activities!C7 -> A list of zoonotic diseases is developed using a multisectoral, One Health approach. Such an approach would involve all relevant sectors in an evidence-based, transparent, repeatable prioritization process | AJ31: COMMENTS:
R37: (if yes) | AA37: (if yes)
K44: RESPONSE: | R44: =IF(O44="Yes",1,0) -> 0 | T44: RESPONSE: | AA44: =IF(X44="Yes",1,0) -> 0 | AC44: RESPONSE:

Sheet Goal Setting
B3: Goal Setting
B8: Please select whether each activity below is completed ("1") or has not been completed / is pending ("0") based on the current level of capacity in your country.
B12: IMPORTANT NOTES: ·Select "1" if the capacity has been completed and "0" if the activity has not been completed or is pending. ·If the capacity level is complete and the selected response is "1", the next capacity level for the activity opens. ·If the capacity does not apply to your situation, select "0". ·If you do not know the answer, select "0". ·If there are two elements to the capacity level (the sentence will be joined with "AND"), then BOTH must be complete if "1" is selected as your response. CRITICAL ASSUMPTION: ·Since the SIS OT refers to the development of coordinated surveillance and data sharing, selecting "1" implies that the capacity level has been completed in the One Health sectors which are relevant for this activity. If not, please select "0".
AK20: 1
AK21: 0
B28: STAGE | F28: ACTIVITY | K28: LEVEL 1 | T28: LEVEL 2 | AC28: LEVEL 3
B31: Pre-Planning | F31: =Activities!B8 -> PP-3 Goal Setting | K31: =Activities!C8 -> Goal(s), roles, and responsibilities of all participating sectors of the coordinated surveillance system are agreed upon at the national level | T31: =Activities!C9 -> Goal(s), roles, and responsibilities of all participating sectors of the coordinated surveillance system are agreed upon and expanded to include all country levels | AC31: =Activities!C10 -> Goal(s), roles and responsibilities of the coordinated surveillance system have been re-evaluated to reflect the current needs of the coordinated surveillance system | AJ31: COMMENTS:
R37: (if yes) | AA37: (if yes)
K44: RESPONSE: | R44: =IF(O44="Yes",1,0) -> 0 | T44: RESPONSE: | AA44: =IF(X44="Yes",1,0) -> 0 | AC44: RESPONSE: | AI44: =IF(AG44="Yes",1,0) -> 0

Sheet Section II
B3: SECTION II: ASSESSMENT, PLANNING, & IMPLEMENTATION
B8: Now that you have completed the Pre-planning section, this section of the tool will introduce you to the next three stages identified to build coordinated surveillance: Assessment, Planning, and Implementation. This section includes eight categories and twenty nine activities to assess.
B17: Assessment Overview
B21: The Assessment stage includes those activities carried out to determine the needs or gaps existing between the current and desired situations as they relate to the coordinated SIS system and its infrastructure, or to the health surveillance system and infrastructure of the individual participating sectors. These include activities such as stakeholder mapping, strategic and operational plans assessments, economic needs assessments, and infrastructure mapping. The resources presented in this section should be considered by individuals using the SIS OT to assist with accomplishing the activities in this assessment stage for the establishment or strengthening of the national coordinated surveillance system for zoonotic diseases.
B31: Planning Overview
B35: The Planning stage includes the development of operational or action-oriented descriptions of the activities to be conducted separately or jointly by the participating sectors, and other actions carried out in preparation for developing or strengthening the coordinated surveillance capacity. These include activities such as establishing the necessary policy and legal frameworks, developing strategy and surveillance plans, developing budgets and identifying necessary financing, and planning for coordinated communications. The resources presented in this section should be considered by individuals using the SIS OT to assist with accomplishing the activities in this planning stage for the establishment or strengthening of the national coordinated surveillance system for zoonotic diseases.
B45: Implementation Overview
B49: The Implementation stage includes those activities that need to be executed separately or jointly by the participating sectors and requirements that need to be met in order to carry out the plans and to develop the coordinated SIS system, such as ensuring data privacy and security measures are in place, putting in place mechanisms for data exchange and data storage data sharing, and mobilizing financial resources. The resources presented in this section should be considered by individuals using the SIS OT to assist with accomplishing the activities in this implementation stage for the establishment or strengthening of the national coordinated surveillance system for zoonotic diseases.

Sheet Stakeholders
B3: Stakeholders
B8: Please select whether each activity below is completed ("1") or has not been completed / is pending ("0") based on the current level of capacity in your country.
B12: IMPORTANT NOTES: ·Select "1" if the capacity has been completed and "0" if the activity has not been completed or is pending. ·If the capacity level is complete and the selected response is "1", the next capacity level for the activity opens. ·If the capacity does not apply to your situation, select "0". ·If you do not know the answer, select "0". ·If there are two elements to the capacity level (the sentence will be joined with "AND"), then BOTH must be complete if "1" is selected as your response. CRITICAL ASSUMPTION: ·Since the SIS OT refers to the development of coordinated surveillance and data sharing, selecting "1" implies that the capacity level has been completed in the One Health sectors which are relevant for this activity. If not, please select "0".
AK20: 1
AK21: 0
B28: STAGE | F28: ACTIVITY | K28: LEVEL 1 | T28: LEVEL 2 | AC28: LEVEL 3
B31: Assessment | F31: =Activities!G2 -> A-1 Stakeholder Mapping | K31: =Activities!H2 -> Stakeholders working in surveillance, epidemiology, laboratory, and information sharing have been identified | T31: =Activities!H3 -> Stakeholder analysis has been used to identify participants at all country levels | AC31: =Activities!H4 -> Roles and responsibilities of stakeholders have been institutionalized and adopted in policy | AJ31: COMMENTS:
R37: (if yes) | AA37: (if yes)
K44: RESPONSE: | R44: =IF(O44="Yes",1,0) -> 0 | T44: RESPONSE: | AA44: =IF(X44="Yes",1,0) -> 0 | AC44: RESPONSE: | AI44: =IF(AG44="Yes",1,0) -> 0
B50: STAGE | F50: ACTIVITY | K50: LEVEL 1 | T50: LEVEL 2 | AC50: LEVEL 3
B53: Planning | F53: =Activities!L2 -> Pl-1 Political Will | K53: =Activities!M2 -> Decision makers for the coordinated surveillance system have been identified | T53: =Activities!M3 -> Political will for the coordinated surveillance system is established, and advocates exists at all country levels | AC53: =Activities!M4 -> There is an advocacy strategy that informs communication with decision-makers on the coordinated surveillance system | AJ53: COMMENTS:
R59: (if yes) | AA59: (if yes)
K66: RESPONSE: | R66: =IF(O66="Yes",1,0) -> 0 | T66: RESPONSE: | AA66: =IF(X66="Yes",1,0) -> 0 | AC66: RESPONSE:
B72: STAGE | F72: ACTIVITY | K72: LEVEL 1 | T72: LEVEL 2 | AC72: LEVEL 3
B75: Implementation | F75: =Activities!Q5 -> I-2 Mobilizing Human Resources and Stakeholders | K75: =Activities!R5 -> Focal points or technical working groups meet on an ad hoc basis | T75: =Activities!R6 -> Focal points or technical working groups meet on a routine basis and to address priority issues as they arise | AC75: =Activities!R7 -> Technical working groups regularly review and optimize coordinated surveillance activities | AJ75: COMMENTS:
R81: (if yes) | AA81: (if yes)
K88: RESPONSE: | R88: =IF(O88="Yes",1,0) -> 0 | T88: RESPONSE: | AA88: =IF(X88="Yes",1,0) -> 0 | AC88: RESPONSE:

Sheet Plans & Organization
B3: Plans & Organization
B8: Please select whether each activity below is completed ("1") or has not been completed / is pending ("0") based on the current level of capacity in your country.
B12: IMPORTANT NOTES: ·Select "1" if the capacity has been completed and "0" if the activity has not been completed or is pending. ·If the capacity level is complete and the selected response is "1", the next capacity level for the activity opens. ·If the capacity does not apply to your situation, select "0". ·If you do not know the answer, select "0". ·If there are two elements to the capacity level (the sentence will be joined with "AND"), then BOTH must be complete if "1" is selected as your response. CRITICAL ASSUMPTION: ·Since the SIS OT refers to the development of coordinated surveillance and data sharing, selecting "1" implies that the capacity level has been completed in the One Health sectors which are relevant for this activity. If not, please select "0".
AK20: 1
AK21: 0
B28: STAGE | F28: ACTIVITY | K28: LEVEL 1 | T28: LEVEL 2 | AC28: LEVEL 3
B31: Assessment | F31: =Activities!G5 -> A-2 Surveillance System Linkage Assessment | K31: =Activities!H5 -> The interlinkages between current prioritized zoonotic disease surveillance systems have been assessed among sectors | T31: =Activities!H6 -> The interlinkages between current surveillance systems have been assessed among sectors and at all country levels | AC31: =Activities!H7 -> The interlinkages between current surveillance systems have been assessed and determined to meet the objectives of the coordinated surveillance system | AJ31: COMMENTS:
R37: (if yes) | AA37: (if yes)
K44: RESPONSE: | R44: =IF(O44="Yes",1,0) -> 0 | T44: RESPONSE: | AA44: =IF(X44="Yes",1,0) -> 0 | AC44: RESPONSE: | AI44: =IF(AG44="Yes",1,0) -> 0
F47: =Activities!G16 -> A-4 Infrastructure Mapping | K47: =Activities!H16 -> Basic infrastructure mapping exercises (as defined in TZG CH 4.1) have been used to describe the structure and linkages within and between the sectors | T47: =Activities!H17 -> Infrastructure mapping has been used to describe the majority of mapping areas (as described in TZG CH 4.1) | AC47: =Activities!H18 -> Comprehensive infrastructure mapping has been used to describe all mapping areas (as described in TZG CH 4.1). | AJ47: COMMENTS:
R53: (if yes) | AA53: (if yes)
K60: RESPONSE: | R60: =IF(O60="Yes",1,0) -> 0 | T60: RESPONSE: | AA60: =IF(X60="Yes",1,0) -> 0 | AC60: RESPONSE:
B66: STAGE | F66: ACTIVITY | K66: LEVEL 1 | T66: LEVEL 2 | AC66: LEVEL 3
B69: Planning | F69: =Activities!L8 -> PL-3 Strategic Plans and Frameworks for Coordinated Surveillance | K69: =Activities!M8 -> A multi-sectoral collection and review of the national strategic documents (strategies, frameworks and strategic plans) related to the coordinated surveillance system occurred, for the purposes of planning | T69: =Activities!M9 -> National strategic documents (strategies, frameworks and strategic plans) for the coordinated surveillance system consolidated and linked based on assessment at all country levels | AC69: =Activities!M10 -> Revised strategic documents (strategies, frameworks and strategic plans) for the coordinated surveillance system aligned with international standards and recommendations | AJ69: COMMENTS:
R75: (if yes) | AA75: (if yes)
K82: RESPONSE: | R82: =IF(O82="Yes",1,0) -> 0 | T82: RESPONSE: | AA82: =IF(X82="Yes",1,0) -> 0 | AC82: RESPONSE:
F85: =Activities!L11 -> PL-4 National operational plans | K85: =Activities!M11 -> A multi-sectoral collection and review of the national operational plans and other relevant documents (including surveillance plans, case definitions, protocols, and Standard Operating Procedures) related to the coordinated surveillance system occurred for the purposes of planning | T85: =Activities!M12 -> Revised operational plans and other relevant documents (including surveillance plans, case definitions, protocols, and Standard Operating Procedures) related to the coordinated surveillance and information sharing system are agreed upon by the agencies conducting surveillance at all country levels | AC85: =Activities!M13 -> Revised operational plans (including surveillance plans, case definitions, protocols, and Standard Operating Procedures) for the coordinated surveillance system are aligned with international guidelines and recommendations | AJ85: COMMENTS:
R91: (if yes) | AA91: (if yes)
K98: RESPONSE: | R98: =IF(O98="Yes",1,0) -> 0 | T98: RESPONSE: | AA98: =IF(X98="Yes",1,0) -> 0 | AC98: RESPONSE:
B104: STAGE | F104: ACTIVITY | K104: LEVEL 1 | T104: LEVEL 2 | AC104: LEVEL 3
B107: Implementation | F107: =Activities!Q17 -> I-6 Coordinated Surveillance System Implementation | K107: =Activities!R17 -> The coordinated surveillance system is being piloted in target areas | T107: =Activities!R18 -> The coordinated surveillance system has been expanded to additional areas based on pilot implementations | AC107: =Activities!R19 -> The coordinated surveillance system is a nation-wide program | AJ107: COMMENTS:
R113: (if yes) | AA113: (if yes)
K120: RESPONSE: | R120: =IF(O120="Yes",1,0) -> 0 | T120: RESPONSE: | AA120: =IF(X120="Yes",1,0) -> 0 | AC120: RESPONSE:

Sheet Policy & Legal
B3: Policy & Legal
B8: Please select whether each activity below is completed ("1") or has not been completed / is pending ("0") based on the current level of capacity in your country.
B12: IMPORTANT NOTES: ·Select "1" if the capacity has been completed and "0" if the activity has not been completed or is pending. ·If the capacity level is complete and the selected response is "1", the next capacity level for the activity opens. ·If the capacity does not apply to your situation, select "0". ·If you do not know the answer, select "0". ·If there are two elements to the capacity level (the sentence will be joined with "AND"), then BOTH must be complete if "1" is selected as your response. CRITICAL ASSUMPTION: ·Since the SIS OT refers to the development of coordinated surveillance and data sharing, selecting "1" implies that the capacity level has been completed in the One Health sectors which are relevant for this activity. If not, please select "0"..
AK20: 1
AK21: 0
B28: STAGE | F28: ACTIVITY | K28: LEVEL 1 | AC28: LEVEL 3
B31: Assessment | F31: =Activities!G8 -> A-3 Legal Frameworks Assessment | K31: =Activities!H8 -> The legal frameworks (rules, policies, guidelines and regulations including international standards) that govern the ethical and privacy standards for surveillance and data sharing have been assessed | AC31: =Activities!H9 -> The legal frameworks (rules, policies, guidelines and regulations including international standards) that govern the ethical and privacy standards for surveillance and data sharing are assessed at all country levels | AJ31: COMMENTS:
U35: (if yes)
K44: RESPONSE: | AA44: =IF(X44="Yes",1,0) -> 0 | AC44: RESPONSE: | AI44: =IF(AG44="Yes",1,0) -> 0
B50: STAGE | F50: ACTIVITY | K50: LEVEL 1 | T50: LEVEL 2 | AC50: LEVEL 3
B53: Planning | F53: =Activities!L20 -> PL-7 Legal Frameworks Planning | K53: =Activities!M20 -> Necessary legal frameworks (rules, policies, guidelines and regulations including international standards) have been standardized across sectors based on assessment at the national level | T53: =Activities!M21 -> Necessary legal frameworks (rules, policies, guidelines and regulations including international standards) have been standardized across sectors based on assessment at all country levels | AC53: =Activities!M22 -> Revised legal frameworks for the coordinated surveillance system have been aligned with international standards and recommendations. | AJ53: COMMENTS:
R59: (if yes) | AA59: (if yes)
K66: RESPONSE: | R66: =IF(O66="Yes",1,0) -> 0 | T66: RESPONSE: | AA66: =IF(X66="Yes",1,0) -> 0 | AC66: RESPONSE:

Sheet Budgets & Finances
B3: Budgets & Finances
B8: Please select whether each activity below is completed ("1") or has not been completed / is pending ("0") based on the current level of capacity in your country.
B12: IMPORTANT NOTES: ·Select "1" if the capacity has been completed and "0" if the activity has not been completed or is pending. ·If the capacity level is complete and the selected response is "1", the next capacity level for the activity opens. ·If the capacity does not apply to your situation, select "0". ·If you do not know the answer, select "0". ·If there are two elements to the capacity level (the sentence will be joined with "AND"), then BOTH must be complete if "1" is selected as your response. CRITICAL ASSUMPTION: ·Since the SIS OT refers to the development of coordinated surveillance and data sharing, selecting "1" implies that the capacity level has been completed in the One Health sectors which are relevant for this activity. If not, please select "0".
AK20: 1
AK21: 0
B28: STAGE | F28: ACTIVITY | K28: LEVEL 1 | AC28: LEVEL 3
B31: Assessment | F31: =Activities!G19 -> A-5 Economic Needs Assessment | K31: =Activities!H19 -> Economic assessments have been used to determine national financial needs for the coordinated surveillance system | AC31: =Activities!H20 -> Economic assessments have been used to determine the financial needs at all country levels for the coordinated surveillance system | AJ31: COMMENTS:
U35: (if yes)
K44: RESPONSE: | AA44: =IF(X44="Yes",1,0) -> 0 | AC44: RESPONSE: | AI44: =IF(AG44="Yes",1,0) -> 0
B50: STAGE | F50: ACTIVITY | K50: LEVEL 1 | T50: LEVEL 2 | AC50: LEVEL 3
B53: Planning | F53: =Activities!L14 -> PL-5 Financial Planning | K53: =Activities!M14 -> There is a budgetary plan and a mechanism for distributing funds for coordinated surveillance at the national level | T53: =Activities!M15 -> There is a budgetary plan and a mechanism for distributing funds for coordinated surveillance at all country levels | AC53: =Activities!M16 -> The budgetary plan and a mechanism for distributing funds has been assessed and determined to meet the objectives of the coordinated surveillance system | AJ53: COMMENTS:
R59: (if yes) | AA59: (if yes)
K66: RESPONSE: | R66: =IF(O66="Yes",1,0) -> 0 | T66: RESPONSE: | AA66: =IF(X66="Yes",1,0) -> 0 | AC66: RESPONSE:
B72: STAGE | F72: ACTIVITY | K72: LEVEL 1 | T72: LEVEL 2 | AC72: LEVEL 3
B75: Implementation | F75: =Activities!Q2 -> I-1 Mobilizing Financial Resources | K75: =Activities!R2 -> Funding exists for coordinated surveillance at the national level | T75: =Activities!R3 -> Funding exists for coordinated surveillance at all country levels | AC75: =Activities!R4 -> Sustainable funding (i.e, included in the national budget) is allocated for coordinated surveillance activities and has been assessed and determined to meet the objectives of the coordinated surveillance system | AJ75: COMMENTS:
R81: (if yes) | AA81: (if yes)
K88: RESPONSE: | R88: =IF(O88="Yes",1,0) -> 0 | T88: RESPONSE: | AA88: =IF(X88="Yes",1,0) -> 0 | AC88: RESPONSE:

Sheet Workforce
B3: Workforce
B8: Please select whether each activity below is completed ("1") or has not been completed / is pending ("0") based on the current level of capacity in your country.
B12: IMPORTANT NOTES: ·Select "1" if the capacity has been completed and "0" if the activity has not been completed or is pending. ·If the capacity level is complete and the selected response is "1", the next capacity level for the activity opens. ·If the capacity does not apply to your situation, select "0". ·If you do not know the answer, select "0". ·If there are two elements to the capacity level (the sentence will be joined with "AND"), then BOTH must be complete if "1" is selected as your response. CRITICAL ASSUMPTION: ·Since the SIS OT refers to the development of coordinated surveillance and data sharing, selecting "1" implies that the capacity level has been completed in the One Health sectors which are relevant for this activity. If not, please select "0".
AK20: 1
AK21: 0
B28: STAGE | F28: ACTIVITY | K28: LEVEL 1 | AC28: LEVEL 3
B31: Assessment | F31: =Activities!G27 -> A-8 Workforce Assessment | K31: =Activities!H27 -> Workforce assessments have been conducted to identify current workforce requirements, competencies, needs and gaps at the national level | AC31: =Activities!H28 -> Workforce assessment have been conducted to identify current workforce requirements, competencies, needs and gaps at all country levels | AJ31: COMMENTS:
U35: (if yes)
K44: RESPONSE: | AA44: =IF(X44="Yes",1,0) -> 0 | AC44: RESPONSE: | AI44: =IF(AG44="Yes",1,0) -> 0
B50: STAGE | F50: ACTIVITY | K50: LEVEL 1 | T50: LEVEL 2 | AC50: LEVEL 3
B53: Planning | F53: =Activities!L17 -> PL-6 Workforce Planning | K53: =Activities!M17 -> An education and training plan for the coordinated surveillance system exists based on workforce assessment at the national level | T53: =Activities!M18 -> An education and training plan for the coordinated surveillance system exists based on workforce assessment at all country levels | AC53: =Activities!M19 -> Workforce education and training is linked to national multisectoral workforce planning and is informed by international competencies and assessments | AJ53: COMMENTS:
R59: (if yes) | AA59: (if yes)
K66: RESPONSE: | R66: =IF(O66="Yes",1,0) -> 0 | T66: RESPONSE: | AA66: =IF(X66="Yes",1,0) -> 0 | AC66: RESPONSE:

Sheet Laboratory
B3: Laboratory
B8: Please select whether each activity below is completed ("1") or has not been completed / is pending ("0") based on the current level of capacity in your country.
B12: IMPORTANT NOTES: ·Select "1" if the capacity has been completed and "0" if the activity has not been completed or is pending. ·If the capacity level is complete and the selected response is "1", the next capacity level for the activity opens. ·If the capacity does not apply to your situation, select "0". ·If you do not know the answer, select "0". ·If there are two elements to the capacity level (the sentence will be joined with "AND"), then BOTH must be complete if "1" is selected as your response. CRITICAL ASSUMPTION: ·Since the SIS OT refers to the development of coordinated surveillance and data sharing, selecting "1" implies that the capacity level has been completed in the One Health sectors which are relevant for this activity. If not, please select "0".
AK20: 1
AK21: 0
B28: STAGE | F28: ACTIVITY | K28: LEVEL 1 | T28: LEVEL 2 | AC28: LEVEL 3
B31: Assessment | F31: =Activities!G21 -> A-6 Laboratory Capacity Assessment | K31: =Activities!H21 -> Laboratory assessments have been used to identify qualified national or international reference laboratories that can carry out testing to support the coordinated surveillance activities | T31: =Activities!H22 -> Laboratory assessments have been used to identify qualified laboratories at all levels (including international) that can carry out testing to support the coordinated surveillance activities | AC31: =Activities!H23 -> Laboratory assessments have been used to identify a network of qualified laboratories that can carry out testing to support the coordinated surveillance activities | AJ31: COMMENTS:
R37: (if yes) | AA37: (if yes)
K44: RESPONSE: | R44: =IF(O44="Yes",1,0) -> 0 | T44: RESPONSE: | AA44: =IF(X44="Yes",1,0) -> 0 | AC44: RESPONSE: | AI44: =IF(AG44="Yes",1,0) -> 0
F49: =Activities!G24 -> A-7 Laboratory Transport and Interpretation Assessment | K49: =Activities!H24 -> Laboratory supply, transport chains and results interpretation have been assessed for harmonization between participating sectors at the national level | T49: =Activities!H25 -> Laboratory supply, transport chains and results interpretation between participating sectors have been assessed for harmonization at all country levels | AC49: =Activities!H26 -> The degree of harmonization in laboratory supply, transport chains and results interpretation between participating sectors have been assessed and determined to meet the objectives of the coordinated surveillance system | AJ49: COMMENTS:
R55: (if yes) | AA55: (if yes)
K62: RESPONSE: | R62: =IF(O62="Yes",1,0) -> 0 | T62: RESPONSE: | AA62: =IF(X62="Yes",1,0) -> 0 | AC62: RESPONSE:

Sheet Data Storage & Sharing
B3: Data Storage & Sharing
B8: Please select whether each activity below is completed ("1") or has not been completed / is pending ("0") based on the current level of capacity in your country.
B12: IMPORTANT NOTES: ·Select "1" if the capacity has been completed and "0" if the activity has not been completed or is pending. ·If the capacity level is complete and the selected response is "1", the next capacity level for the activity opens. ·If the capacity does not apply to your situation, select "0". ·If you do not know the answer, select "0". ·If there are two elements to the capacity level (the sentence will be joined with "AND"), then BOTH must be complete if "1" is selected as your response. CRITICAL ASSUMPTION: ·Since the SIS OT refers to the developed of coordinated surveillance and data sharing, selecting "1" implies that the capacity level has been completed in a MINIMUM OF TWO SECTORS RELEVANT TO ONE HEALTH. If the capacity level has been completed in only one sector, please select "0".
AK20: 1
AK21: 0
B28: STAGE | F28: ACTIVITY | K28: LEVEL 1 | T28: LEVEL 2 | AC28: LEVEL 3
B31: Planning | F31: =Activities!L5 -> PL-2 Common Data Elements | K31: =Activities!M5 -> The common data elements are identified and agreed upon within each participating sector to meet the common analytical goals of the coordinated surveillance system at the national level | T31: =Activities!M6 -> The common data elements are identified and agreed upon within each participating sector to meet the common analytical goals of the coordinated surveillance system at all country levels | AC31: =Activities!M7 -> The common data elements are standardized among participating sectors based on the common analytical goals of the coordinated surveillance system and adhere to international data standards | AJ31: COMMENTS:
R37: (if yes) | AA37: (if yes)
K44: RESPONSE: | R44: =IF(O44="Yes",1,0) -> 0 | T44: RESPONSE: | AA44: =IF(X44="Yes",1,0) -> 0 | AC44: RESPONSE:
B49: STAGE | F49: ACTIVITY | K49: LEVEL 1 | T49: LEVEL 2 | AC49: LEVEL 3
B52: Implementation | F52: =Activities!Q8 -> I-3 Data Exchange & Information Sharing | K52: =Activities!R8 -> There is a mechanism to share data between sectors at the national level | T52: =Activities!R9 -> There is a mechanism to share data between sectors at all country levels | AC52: =Activities!R10 -> There is a mechanism to share data that is accessible, functional, and usable by all participating sectors | AJ52: COMMENTS:
R58: (if yes) | AA58: (if yes)
K65: RESPONSE: | R65: =IF(O65="Yes",1,0) -> 0 | T65: RESPONSE: | AA65: =IF(X65="Yes",1,0) -> 0 | AC65: RESPONSE:
F68: =Activities!Q11 -> I-4 Data Storage | K68: =Activities!R11 -> There is a structure and location to store and maintain data from multiple sectors at the national level. | T68: =Activities!R12 -> There is a structure and location to store and maintain data from multiple sectors at all country levels | AC68: =Activities!R13 -> There is a structure and location to store and maintain data from all relevant sectors conducting surveillance that is accessible, functional, and usable by all participating sectors | AJ68: COMMENTS:
R74: (if yes) | AA74: (if yes)
K81: RESPONSE: | R81: =IF(O81="Yes",1,0) -> 0 | T81: RESPONSE: | AA81: =IF(X81="Yes",1,0) -> 0 | AC81: RESPONSE:
F84: =Activities!Q14 -> I-5 Data Privacy and Security Measures | K84: =Activities!R14 -> There are data privacy and security measures in place to protect coordinated surveillance data at the national level | T84: =Activities!R15 -> There are data privacy and security measures in place to protect coordinated surveillance data at all country levels | AC84: =Activities!R16 -> There are data privacy and security measures in place to protect coordinated surveillance data that has been assessed and determined to meet the objectives of the coordinated surveillance system | AJ84: COMMENTS:
R90: (if yes) | AA90: (if yes)
K97: RESPONSE: | R97: =IF(O97="Yes",1,0) -> 0 | T97: RESPONSE: | AA97: =IF(X97="Yes",1,0) -> 0 | AC97: RESPONSE:
F100: =Activities!Q20 -> I-7 Surveillance Data Sharing | K100: =Activities!R20 -> Surveillance Data are shared informally or formally on an ad hoc basis at the national level | T100: =Activities!R21 -> Surveillance Data are shared informally or formally in a routine and timely fashion at all country levels | AC100: =Activities!R22 -> Surveillance Data are shared systematically in a routine and timely manner between all participating sectors through an interoperable or joint platform(s) | AJ100: COMMENTS:
R106: (if yes) | AA106: (if yes)
K113: RESPONSE: | R113: =IF(O113="Yes",1,0) -> 0 | T113: RESPONSE: | AA113: =IF(X113="Yes",1,0) -> 0 | AC113: RESPONSE:

Sheet Communication & Reporting
B3: Communication & Reporting
B8: Please select whether each activity below is completed ("1") or has not been completed / is pending ("0") based on the current level of capacity in your country.
B12: IMPORTANT NOTES: ·Select "1" if the capacity has been completed and "0" if the activity has not been completed or is pending. ·If the capacity level is complete and the selected response is "1", the next capacity level for the activity opens. ·If the capacity does not apply to your situation, select "0". ·If you do not know the answer, select "0". ·If there are two elements to the capacity level (the sentence will be joined with "AND"), then BOTH must be complete if "1" is selected as your response. CRITICAL ASSUMPTION: ·Since the SIS OT refers to the developed of coordinated surveillance and data sharing, selecting "1" implies that the capacity level has been completed in a MINIMUM OF TWO SECTORS RELEVANT TO ONE HEALTH. If the capacity level has been completed in only one sector, please select "0".
AK20: 1
AK21: 0
B28: STAGE | F28: ACTIVITY | K28: LEVEL 1 | T28: LEVEL 2 | AC28: LEVEL 3
B31: Planning | F31: =Activities!L23 -> PL-8 Coordinated Communication Planning | K31: =Activities!M23 -> Communications terminology and messages are aligning among all sectors participating in the coordinated surveillance system at the national level. | T31: =Activities!M24 -> Communications terminology and messages are aligned among all sectors participating in the coordinated surveillance system and disseminated at all country levels | AC31: =Activities!M25 -> There is a communications strategy and/or communications plan (which includes terminology and messaging) that informs communication with stakeholders and the public for the coordinated surveillance system | AJ31: COMMENTS:
R37: (if yes) | AA37: (if yes)
K44: RESPONSE: | R44: =IF(O44="Yes",1,0) -> 0 | T44: RESPONSE: | AA44: =IF(X44="Yes",1,0) -> 0 | AC44: RESPONSE:
B49: STAGE | F49: ACTIVITY | K49: LEVEL 1 | T49: LEVEL 2 | AC49: LEVEL 3
B52: Implementation | F52: =Activities!Q23 -> I-8 Communication & Information Sharing | K52: =Activities!R23 -> There is ad hoc information sharing and communication with relevant stakeholders | T52: =Activities!R24 -> There is routine information sharing and communication with relevant stakeholders | AC52: =Activities!R25 -> There is routine and timely information sharing with relevant stakeholders including cross-border, regional and international entities | AJ52: COMMENTS:
R58: (if yes) | AA58: (if yes)
K65: RESPONSE: | R65: =IF(O65="Yes",1,0) -> 0 | T65: RESPONSE: | AA65: =IF(X65="Yes",1,0) -> 0 | AC65: RESPONSE:
F68: =Activities!Q26 -> I-9 International Notification Requirements | K68: =Activities!R26 -> Comply with international notification requirements for all zoonotic diseases | AJ68: COMMENTS:
K81: RESPONSE:
F84: =Activities!Q27 -> I-10 Coordinated Data Visualization and Analysis | K84: =Activities!R27 -> Coordinated surveillance data are used to generate outputs (e.g. figures, graphics, reports or bulletins) that are shared at the national level | T84: =Activities!R28 -> Coordinated surveillance data are used to generate outputs (e.g. figures, graphics, reports or bulletins) that are disseminated to stakeholders at all country levels | AC84: =Activities!R29 -> Coordinated surveillance data, including M&E reports, are used to generate outputs that inform, response, policy and programming | AJ84: COMMENTS:
R90: (if yes) | AA90: (if yes)
K97: RESPONSE: | R97: =IF(O97="Yes",1,0) -> 0 | T97: RESPONSE: | AA97: =IF(X97="Yes",1,0) -> 0 | AC97: RESPONSE:

Sheet Section III
B3: SECTION III: MONITORING & EVALUATION
B8: This section of the tool will introduce you to the final of five stages in the process to build coordinated surveillance: Monitoring and Evaluation. This section includes three categories and three activities in total to assess.
B17: Monitoring & Evaluation Overview
B21: The Monitoring and Evaluation stage includes those activities carried out to measure and assess performance of coordinated surveillance activities and the coordinated SIS system, in order to inform the continuous, iterative improvement of the system. These include activities such as simulation exercises, data quality management, monitoring and evaluation plan. The resources presented in this section should be considered by individuals using the SIS OT to assist with accomplishing the activities in this monitoring and evaluation stage for the establishment or strengthening of the national coordinated surveillance system for zoonotic diseases.

Sheet Simulation Exercises
B3: Simulation Exercises
B8: Please select whether each activity below is completed ("1") or has not been completed / is pending ("0") based on the current level of capacity in your country.
B12: IMPORTANT NOTES: ·Select "1" if the capacity has been completed and "0" if the activity has not been completed or is pending. ·If the capacity level is complete and the selected response is "1", the next capacity level for the activity opens. ·If the capacity does not apply to your situation, select "0". ·If you do not know the answer, select "0". ·If there are two elements to the capacity level (the sentence will be joined with "AND"), then BOTH must be complete if "1" is selected as your response. CRITICAL ASSUMPTION: ·Since the SIS OT refers to the development of coordinated surveillance and data sharing, selecting "1" implies that the capacity level has been completed in the One Health sectors which are relevant for this activity. If not, please select "0".
AK20: 1
AK21: 0
B28: CATEGORY | F28: ACTIVITY | K28: LEVEL 1 | T28: LEVEL 2 | AC28: LEVEL 3
B31: Monitoring & Evaluation | F31: =Activities!V2 -> ME-1 Simulation Exercises | K31: =Activities!W2 -> Simulation exercises are conducted to evaluate the efficiency and functionality of the coordinated surveillance system at the national level | T31: =Activities!W3 -> Simulation exercises are conducted to evaluate the efficiency and functionality of the coordinated surveillance system at all country levels | AC31: =Activities!W4 -> Results of the simulation exercises are used to inform and revise coordinated surveillance plans | AJ31: COMMENTS:
R37: (if yes) | AA37: (if yes)
K44: RESPONSE: | R44: =IF(O44="Yes",1,0) -> 0 | T44: RESPONSE: | AA44: =IF(X44="Yes",1,0) -> 0 | AC44: RESPONSE: | AI44: =IF(AG44="Yes",1,0) -> 0

Sheet M & E Planning
B3: Monitoring and Evaluation Planning
B8: Please select whether each activity below is completed ("1") or has not been completed / is pending ("0") based on the current level of capacity in your country.
B12: IMPORTANT NOTES: ·Select "1" if the capacity has been completed and "0" if the activity has not been completed or is pending. ·If the capacity level is complete and the selected response is "1", the next capacity level for the activity opens. ·If the capacity does not apply to your situation, select "0". ·If you do not know the answer, select "0". ·If there are two elements to the capacity level (the sentence will be joined with "AND"), then BOTH must be complete if "1" is selected as your response. CRITICAL ASSUMPTION: ·Since the SIS OT refers to the development of coordinated surveillance and data sharing, selecting "1" implies that the capacity level has been completed in the One Health sectors which are relevant for this activity. If not, please select "0".
AK20: 1
AK21: 0
B28: STAGE | F28: ACTIVITY | K28: LEVEL 1 | T28: LEVEL 2 | AC28: LEVEL 3
B31: Monitoring & Evaluation | F31: =Activities!V5 -> ME-2 Monitoring and Evaluation Planning | K31: =Activities!W5 -> There is a monitoring and evaluation plan that meets the objectives of the coordinated surveillance system | T31: =Activities!W6 -> The monitoring and evaluation plan is implemented to track performance and progress of the coordinated surveillance system | AC31: =Activities!W7 -> Results of monitoring and evaluation iteratively improve or expand the coordinated surveillance system and align with international standards and recommendations | AJ31: COMMENTS:
R37: (if yes) | AA37: (if yes)
K44: RESPONSE: | R44: =IF(O44="Yes",1,0) -> 0 | T44: RESPONSE: | AA44: =IF(X44="Yes",1,0) -> 0 | AC44: RESPONSE: | AI44: =IF(AG44="Yes",1,0) -> 0

Sheet Data Quality Standards
B3: Data Quality Standards
B8: Please select whether each activity below is completed ("1") or has not been completed / is pending ("0") based on the current level of capacity in your country.
B12: IMPORTANT NOTES: ·Select "1" if the capacity has been completed and "0" if the activity has not been completed or is pending. ·If the capacity level is complete and the selected response is "1", the next capacity level for the activity opens. ·If the capacity does not apply to your situation, select "0". ·If you do not know the answer, select "0". ·If there are two elements to the capacity level (the sentence will be joined with "AND"), then BOTH must be complete if "1" is selected as your response. CRITICAL ASSUMPTION: ·Since the SIS OT refers to the development of coordinated surveillance and data sharing, selecting "1" implies that the capacity level has been completed in the One Health sectors which are relevant for this activity. If not, please select "0".
AK20: 1
AK21: 0
B28: STAGE | F28: ACTIVITY | K28: LEVEL 1 | T28: LEVEL 2 | AC28: LEVEL 3
AJ30: COMMENTS:
B31: Monitoring & Evaluation | F31: =Activities!V8 -> ME-3 Data Quality Standards | K31: =Activities!W8 -> There is a data quality management methodology | T31: =Activities!W9 -> The data quality has been tested and determined to meet the objectives of the coordinated surveillance system | AC31: =Activities!W10 -> The data quality aligns with international standards and recommendations
R37: (if yes) | AA37: (if yes)
K44: RESPONSE: | R44: =IF(O44="Yes",1,0) -> 0 | T44: RESPONSE: | AA44: =IF(X44="Yes",1,0) -> 0 | AC44: RESPONSE: | AI44: =IF(AG44="Yes",1,0) -> 0

Sheet Toolbox
B1: Number | C1: RESOURCE NAME | D1: SHORT DESCRIPTION | E1: LINK TO THE RESOURCE | F1: NOTE | G1: RELEVANT MATERIALS and VIDEOS | H1: PUBLICATIONS | K1: $A$1
B2: 1 | C2: =Backbone!A2 -> Africa CDC Event Based Surveillance Framework | D2: The Framework for Event-based Surveillance (EBS) offers guidance to public health practitioners seeking to implement EBS at each administrative level in their countries. In African Union countries that have adopted the Integrated Disease Control and Response (IDSR) strategy, this document is a complement to and can enhance the implementation of IDSR. | E2: https://africacdc.org/download/africa-cdc-event-based-surveillance-framework/ | F2: Since indicator-based and event-based surveillance together comprise the early warning and response component of the public health surveillance system, this framework is intended to be used for EBS implementation. English and French translations available. | J2: $A$1 | K2: $E$23 | L2: $A$1
B3: 2 | C3: =Backbone!A21 -> AfyaData | D3: AfyaData is a One Health disease surveillance tool, designed to cater for Human, animal and environmental surveillance needs. It is comprised of (a) Mobile App, used to collect data and receive (interact) feedback and (b) Web App, used to manage data, users and surveillance forms which may be distributed to data collectors based on access authorization protocols set. | E3: https://github.com/sacids/afyadata1.2 https://github.com/sacids/AfyaDataApp | G3: http://www.sacids.org/news/one-health-community-afyadata-tool/ | H3: https://publichealth.jmir.org/2017/4/e94/ https://www.openaccessgovernment.org/one-health-surveillance-systems/62354/ | L3: =ADDRESS(ROW(B1),COLUMN(B1)) -> $B$1
B4: 3 | C4: =Backbone!A447 -> Animal Rabies Surveillance Cost Effectiveness Assessment Tool | D4: An Excel-based tool to estimate the costs and effectiveness of rabies prevention programs. | E4: https://www.ncbi.nlm.nih.gov/pubmed/28719253 | F4: The Excel tool can be downloaded as a supplemental file.
B5: 4 | C5: =Backbone!A575 -> Antimicrobial resistance: a manual for developing national action plans | D5: The manual for developing national action plans to address Antimicrobial Resistance. A series of supporting tools have also been developed by WHO, in collaboration with FAO and OIE, to accompany this manual. These include sample terms of reference for suggested coordination mechanisms, a generic template for a national action plan, a sample plan for monitoring and evaluation, and a checklist. | E5: https://apps.who.int/iris/bitstream/handle/10665/204470/9789241549530_eng.pdf | F5: These manual and supporting materials could be considered for adaptation for zoonosis purposes.
B6: 5 | C6: =Backbone!A42 -> APHL Informatics Self-Assessment Tool | D6: The tool allows public health laboratories to assess strengths and gaps in informatics capability by addressing 19 critical operational areas. It captures data longitudinally, enabling laboratories to measure growth and leverage results to advocate effectively for their needs. | E6: https://www.aphl.org/programs/informatics/Documents/LEI_2013Jun_Informatics-Self-Assessment-Tool-for-PHLs.pdf | F6: Informatics Self-Assessment tool has been published as both a pdf document and as a web-based tool. The web-based version lets registered users save their work and compare previous assessments; it also features robust visualization capability to display data graphically. To get information regarding access to the web-based version contact rachel.sheperd@aphl.org
B7: 6 | C7: =Backbone!A38 -> APHL Laboratory Informatics Assessment Tool | D7: A tool to gather baseline information from laboratories to record data flow, work flow, infrastructure, workforce and training, equipment available, data management including recording and reporting of data. This tool has been modified based on the type of laboratory being assessed. | E7: https://www.aphl.org/aboutAPHL/publications/Documents/GH-2018Nov-LIS-Guidebook-web.pdf | F7: The tool could be found in Appendix F of the document
B8: 7 | C8: =Backbone!A51 -> Border Health Capacity Discussion Guide (BHCDG) | D8: The Border Health Capacity Discussion Guide includes template tools to lead facilitated discussions with national-, district-, and ground crossing-level representatives on seven border health system topics: 1. Border characteristics 2. Availability of medical and public health services 3. Response plans and trainings 4. Surveillance systems 5. Communication systems 6. Social mobilization 7. Bi-national and regional information sharing. | F8: For more information on the resource, please contact the global border health team at CDC: gbht@cdc.gov
B9: 8 | C9: =Backbone!A59 -> Competency Guidelines for Public Health Laboratory Professionals: CDC and the Association of Public Health Laboratories | D9: The guidelines that provide an outline of the knowledge, skills, and abilities necessary for public health laboratory (PHL) professionals to deliver the core services of PHLs efficiently and effectively. | E9: https://www.cdc.gov/mmwr/preview/mmwrhtml/su6401a1.htm?s_cid=su6401a1_w | F9: Can be used for the public sector specific activities, which could contribute to the building of the elements for the coordinated surveillance.
B10: 9 | C10: =Backbone!A61 -> Cross Border Multisectoral Communication and Coordination Strategies | D10: The tool is training modules for use in a workshop setting. This tool is intended to guide stakeholders through the process of determining sector specific information sharing mechanisms, and creating multi-sectoral or cross-border information sharing mechanisms. These could be granular and operational, or high level, depending on the objectives of the user. | F10: For additional information or interest in the resource, contact the global border health team at US CDC gbht@cdc.gov | H10: https://wwwnc.cdc.gov/eid/article/23/13/17-0520_article https://www.liebertpub.com/doi/10.1089/hs.2019.0080
B11: 10 | C11: =Backbone!A595 -> Data Quality Review (DQR) Toolkit | D11: Data Quality Review (DQR) toolkit proposes an integrated approach to data quality. It includes guidelines and tools that lay the basis for a standardized and holistic approach to data quality that promotes institutionalization of routine data quality assessment in countries. The toolkit contains three modules, each with specific methods and tools: (1) Framework and metrics; (2) Desk review of data quality; (3) Data verification and system assessment. | E11: https://www.measureevaluation.org/our-work/data-quality/data-quality-review
B12: 11 | C12: =Backbone!A680 -> Disease Outbreak After Action Report Toolkit | D12: This toolkit guides One Health Platform representatives through the step-by-step process of planning and executing an After Action Report (AAR) following a disease outbreak. | E12: https://www.onehealthapp.org/ | F12: See "One Health resources" section OH-app.
B13: 12 | C13: =Backbone!A65 -> District Health Information Software 2 (DHIS2) | D13: DHIS2 is an open source, web-based health management information system (HMIS) platform. The platform boasts data warehousing, visualization features, and the possibility for data users and policy makers to generate analyses from live data in real-time. DHIS2 is released as free and open software. Each country has its own “instance” of the DHIS2 platform with full ownership of the application and data. In collaboration with experts in the DHIS2 community, ministries of health configure their own information system on top of the generic platform. | E13: https://www.dhis2.org/home | F13: The core DHIS2 software development is managed by the Health Information Systems Program (HISP) at the University of Oslo (UiO). Contact email: post@dhis2.org
B14: 13 | C14: =Backbone!A83 -> ECDC Data quality monitoring and surveillance system evaluation - A handbook of methods and applications | D14: A handbook on monitoring the quality of disease surveillance data for public health professionals. The handbook is aimed to provide guidance on processes for monitoring data quality and evaluating surveillance systems in EU/EEA Member States and to support the daily work of public health professionals working with surveillance data on communicable diseases. | E14: https://www.ecdc.europa.eu/en/publications-data/data-quality-monitoring-and-surveillance-system-evaluation-handbook-methods-and | H14: https://bmjopenquality.bmj.com/content/4/1/u209037.w3663; https://www.ncbi.nlm.nih.gov/pmc/articles/PMC5372144/
B15: 14 | C15: =Backbone!A97 -> ECDC tool for the prioritisation of infectious disease threats | D15: This Microsoft Excel tool supports prioritization of infectious disease threats in a transparent, comparable and methodologically reproducible manner. The tool enables the relative ranking of different infectious disease threats. It is intended as a supplement to other methods that also support decision-making in preparedness planning. | E15: https://www.ecdc.europa.eu/en/publications-data/ecdc-tool-prioritisation-infectious-disease-threats | F15: Contacts: publications@ecdc.europa.eu; info@ecdc.europa.eu | G15: https://www.ecdc.europa.eu/sites/default/files/documents/Tool-for-disease-priority-ranking_handbook-update-dec-18.pdf | H15: https://www.ecdc.europa.eu/en/publications-data/literature-review-best-practices-ranking-emerging-infectious-disease-threats https://www.eurosurveillance.org/content/10.2807/1560-7917.ES.2016.21.17.30212
B16: 15 | C16: =Backbone!A137 -> EFSA Data Collection Framework | D16: Web-based tool for data collection purposes. Data should be mandatory submitted by all EU Member states. Aims at simplifying the zoonoses data collection procedure between parties and facilitating data exchange, data extraction and data reusability. | E16: https://dcf.efsa.europa.eu/dcf-war/dc | F16: Needs authorization. For additional information , contact Mario.MONGUIDI@efsa.europa.eu | G16: https://efsa.onlinelibrary.wiley.com/doi/pdf/10.2903/j.efsa.2014.3945
B17: 16 | C17: =Backbone!A138 -> Electronic Integrated Disease Surveillance System (EIDSS) | D17: EIDSS is a customizable web-based electronic disease reporting system that can support passive and active human and veterinary health surveillance, laboratory diagnostics, vector surveillance, and outbreak management to provide near real-time information flow for infectious disease-related decision-making. | E17: Github.com/EIDSS
B18: 17 | C18: =Backbone!A166 -> EMPRES Global Animal Disease Information System (EMPRES-i) | D18: A web-based secure information system to support country level veterinary services by facilitating regional and global disease and a global reference database for animal diseases including zoonosis. | E18: Public site: http://empres-i.fao.org/eipws3g/ FAO internal site: https://caf.fao.org/login?service=http%3A%2F%2Fempres-i.fao.org%2Fempresi3g%2Findex.html%3Fwsid%3Dempresi%26lang%3DEN-en%26proxy%3Dfalse | F18: It is possible to have open access to the resource for the public tool, while instead the internal version is possible to access only with permission from the Project manager and the access is provided with personal email and password from the FAO IT department. | G18: http://empres-i.fao.org/eipws3g/assets/docs/EMPRES-i_Manual.pdf https://youtu.be/oLa5MRe3qDw https://youtu.be/5WkB4q5DR6k https://youtu.be/6tef0goSBlY https://youtu.be/Ew9TukjBbB0 | H18: http://www.fao.org/3/a-i4386e.pdf http://www.fao.org/publications/card/fr/c/4296b6d5-14c9-5e72-b467-15f09baa29de/ https://www.ijidonline.com/article/S1201-9712(18)34603-4/fulltext https://www.researchgate.net/publication/311821964 http://www.fao.org/3/a-i4386e.pdf
B19: 18 | C19: =Backbone!A174 -> Epidemiology Mapping Tool (EMT) | D19: Excel-based tool assessing national epidemiology capacities of veterinary services. It is designed to provide comprehensive assessments of veterinary epidemiology capacity at national, sub-national, and local levels, with engagement of various stakeholders. The EMT aims at providing an assessment of epidemiology capacities that links across various sectors and disciplines, such as animal health, human health, environmental health, epidemiology, laboratory and focusing on 3 main technical areas (Institutional, Epidemiology Workforce and Applications of Epi Capacities). | F19: For more information on EMT, please contact the FAO RAP Kachen.Wongsathapornchai@fao.org
B20: 19 | C20: =Backbone!A100 -> Evaluation of Collaboration in a multisectoral Surveillance system (EcoSur) | D20: EcoSur is a semi-quantitative tool that aims to evaluate the organization and functioning of collaboration in a multisectoral surveillance system and to analyze strengths and weaknesses of this collaboration. Ultimately, the evaluation results may support the formulation of recommendations to improve collaboration in the multisectoral surveillance system. | E20: https://survtools.org/wiki/surveillance-evaluation/doku.php?id=quality_of_the_collaboration | H20: https://doi.org/10.3389/fvets.2019.00109 http://www.theses.fr/s168606
B21: 20 | C21: =Backbone!A163 -> Event Mobile Application (EMAi) | D21: EMA-i is a real-time reporting application developed by FAO. Using EMA-i, veterinary officers collect animal disease information from the field then transmitted with the network. The application generates georeferenced reports, which are transmitted to the country user interface under the FAO’s Global Animal Disease Information System (EMPRES-i) where data is securely stored and processed. The tool is customized to national disease reporting needs. | F21: For additional information or interest in access, contact Sabina.Ramazzotto@fao.org | H21: http://www.fao.org/3/a-i4853e.pdf http://www.fao.org/3/CA1078EN/ca1078en.pdf http://boutique.oie.int/extrait/24tekola657670.pdf
B22: 21 | C22: =Backbone!A47 -> FAO Assessment Tool for Laboratories and Antimicrobial Resistance Surveillance Systems (ATLASS) | D22: The FAO Assessment Tool for Laboratories and AMR Surveillance Systems (FAO-ATLASS) is improving country capacities for AMR surveillance contributing to a better harmonized and coordinated AMR surveillance at national, regional and global levels .This is a tool for generating baseline data and adapted recommendations to improve capacities of the national AMR detection capacities and of the overarching national AMR surveillance system for the food and agriculture sectors by external and self-assessment (conducted by trained external or national ATLASS assessors). FAO-ATLASS includes two main modules, FAO-ATLASS Surveillance and FAO-ATLASS Laboratory. It covers the areas of AMR data production network (laboratories), AMR data collection and analysis, governance, communication and overall sustainability | E22: http://www.fao.org/antimicrobial-resistance/resources/tools/fao-atlass/en/ | F22: To request an ATLASS mission,please contact your National/Regional FAO office , and/or send an email directly to EMPRES-Lab-Unit@fao.org | H22: http://www.fao.org/antimicrobial-resistance/resources/tools/fao-atlass/en/
B23: 22 | C23: =Backbone!A268 -> FAO Laboratory Mapping Tool (LMT) | D23: The LMT is a system by which to assess the functionality of veterinary laboratories following a two-tiered process: i) an assessment of laboratory functionality is conducted via a detailed and standardized questionnaire that can be led by an external assessor or via self-assessment; and ii) the data collected is fed into a digital application which generates graphs and tables allowing for a "snapshot" view of a given laboratory's level of functionality and its evolution over time – which can be made on a yearly basis. The tool also serves to establish a baseline for laboratory status prior to an intervention, allowing an accurate measurement of progress and impact post-intervention. | E23: http://www.fao.org/ag/againfo/programmes/en/empres/news_130514.html | F23: English and French available online, other languages upon request: Chinese, Thai, Azerbaijani, Russian , Indonesian(Bahasa) Point of contact: EMPRES-Lab-Unit@fao.org The LMT is a family of tools, as the LMT Core can be expanded through LMT modules : so far the LMT-safety module, and the LMT-AMR module. | H23: https://www.ncbi.nlm.nih.gov/pmc/articles/PMC6136606/
B24: 23 | C24: =Backbone!A517 -> FAO Surveillance Evaluation Tool (SET) | D24: Surveillance Evaluation Tool (SET) assesses national animal disease surveillance systems using a comprehensive and repeatable methodology. Interviews with major decision-makers centrally all the way to livestock owners in the field are used to generate graphs showing systems’ strengths and weaknesses. From these, action plans for improvement are developed jointly with the veterinary services. | F24: The tool is accessible upon request to the developers and users interested in SET should contact them beforehand to ensure that they latest documents and proper methodology are used. Focal points can be contacted by looking on the project’s webpage here: http://www.fao.org/ag/againfo/programmes/en/empres/tools_SET.html | G24: http://www.fao.org/ag/againfo/programmes/en/empres/tools_SET.html https://fao.adobeconnect.com/_a1026619000/faoset/ https://fao.adobeconnect.com/_a1026619000/p6w4mnvs0d2f/?proto=true | H24: http://www.fao.org/3/CA1770EN/ca1770en.pdf http://www.fao.org/3/CA1832FR/ca1832fr.pdf http://www.fao.org/3/CA1778EN/ca1778en.pdf http://www.fao.org/3/CA2917FR/ca2917fr.pdf http://www.fao.org/3/ca3754en/ca3754en.pdf http://www.fao.org/3/ca5753fr/ca5753fr.pdf http://www.fao.org/3/ca7549en/ca7549en.pdf
B25: 24 | C25: =Backbone!A179 -> FoodChain-Lab (FCL) | D25: FoodChain-Lab (FCL) is free open-source tracing software. It provides trace-back and trace-forward analyses for food items to identify the source of a contamination causing foodborne disease outbreaks or other food-related incidents. FCL offers data collection, management and visualization features and interactive analysis methods. FCL was successfully applied in several outbreaks. | E25: https://foodrisklabs.bfr.bund.de/foodchain-lab/ https://fcl-portal.bfr.berlin/ | G25: https://foodrisklabs.bfr.bund.de/foodchain-lab/ https://foodrisklabs.bfr.bund.de/foodchain-lab/ https://github.com/SiLeBAT/BfROpenLab https://github.com/SiLeBAT/fcl-client | H25: https://www.liebertpub.com/doi/pdf/10.1089/fpd.2012.1296 https://journals.plos.org/plosone/article?id=10.1371/journal.pone.0151977 https://efsa.onlinelibrary.wiley.com/doi/epdf/10.2903/sp.efsa.2019.EN-1742
B26: 25 | C26: =Backbone!A33 -> Framework for Enhancing Anthrax Prevention and Control | D26: The Framework gives anthrax background and how to improve anthrax prevention and control in animals and people. It is intended for public and animal health officials in anthrax-endemic countries. It can be used for training on anthrax prevention and control or as a short reference for public health planners. | E26: https://www.cdc.gov/anthrax/resources/anthrax-framework.html | H26: https://wwwnc.cdc.gov/eid/article/23/13/17-0431_article
B27: 26 | C27: =Backbone!A183 -> Framework for Evaluating Public Health Surveillance Systems for Early Detection of Outbreaks | D27: An operational planning and evaluation framework for syndromic surveillance systems. The framework aids in planning and evaluating the complete surveillance system against a set of self-determined thresholds | E27: https://www.researchgate.net/publication/8576839_Framework_for_Evaluating_Public_Health_Surveillance_Systems_for_Early_Detection_of_Outbreaks_Recommendations_from_the_CDC_Working_Group
B28: 27 | C28: =Backbone!A234 -> Georgetown University International Health Regulation (IHR) Costing Tool | D28: The IHR Costing Tool helps users develop cost estimates for sustainable capacity development under the International Health Regulations (IHR). The intuitive interface estimates costs for improvements to meet capacity targets based on field practices and guidance for achieving specific technical capabilities specified in the Joint External Evaluation. | E28: https://ghscosting.org/ | H28: https://pubmed.ncbi.nlm.nih.gov/30167334/ https://www.liebertpub.com/doi/pdf/10.1089/hs.2019.0063 https://ghscosting.org/export/IHR%20Costing%20Tool%20-%20Definitions%20and%20References.pdf
B29: 28 | C29: =Backbone!A184 -> Global Dog Rabies Elimination Pathway (GDREP) | D29: An Excel-based tool providing an easy-to-use interface including different aspects of a dog rabies elimination programme, broken down into two main categories for the epidemiological/logistical and financial aspects respectively | E29: https://rabiesalliance.org/app/gdrep https://rabiesalliance.org/capacity-building/gdrep | F29: The tool can be accessed as a supplementary excel file in the publication (https://www.ncbi.nlm.nih.gov/pmc/articles/PMC5300989/ ) or at the website https://rabiesalliance.org/capacity-building/gdrep | G29: https://rabiesalliance.org/capacity-building/gdrep | H29: https://www.ncbi.nlm.nih.gov/pmc/articles/PMC5300989/ https://journals.plos.org/plosntds/article?id=10.1371/journal.pntd.0006756 https://wwwnc.cdc.gov/eid/article/23/12/17-1148_article
B30: 29 | C30: =Backbone!A634 -> Governance Manual Toolkit | D30: To be effective, national One Health platforms should develop and agree on governance processes that clearly explain how the platform will function. This toolkit provides an overview of how to develop a governance manual that outlines the platform’s purpose; its roles and responsibilities; meeting and communications protocols; the allocation of human, financial, and technical resources; and a means of evaluating and reporting on performance. | E30: https://www.onehealthapp.org/ | F30: "One Health resources" section
B31: 30 | C31: =Backbone!A176 -> Guidelines for designing animal disease surveillance plans | D31: The general template with the framework for the surveillance plan for infectious diseases | E31: http://www.fao.org/3/cb3252en/cb3252en.pdf
B32: 31 | C32: =Backbone!A194 -> Health System Assessment Approach (HSAA) | D32: The HSAA is proposed as an aid to diagnose health systems performance and to capture system-wide information to better inform health sector planning. It looks at the entire health system, including governance, health financing, health services delivery, human resources, pharmaceutical management, and health information systems, plus the private sector, which is an important yet often overlooked part of the health system. | E32: https://www.hfgproject.org/the-health-system-assessment-approach-a-how-to-manual/
B33: 32 | C33: =Backbone!A239 -> IHR-PVS National Bridging Workshop | D33: This tool helps guide One Health (OH) stakeholders through a workshop where they will discuss the IHR requirements, and OH stakeholder coordination and operations to meet the International Health Regulations (IHR) requirements. The workshop is designed to create a "diagnosis" of multi-sectoral coordination across a variety of topics, and create a roadmap for multi-sectoral coordination moving forward in order to work towards IHR compliance and high performance at the national level. | E33: https://extranet.who.int/sph/ihr-pvs-bridging-workshop | F33: Available in English, Russian, French Facilitated by WHO and OIE. Contacts for this evaluation are delarocques@who.int (Stephane de la Rocque de Severac) and Dr. Fancois Caya (f.caya@oie.int) | H33: https://www.ncbi.nlm.nih.gov/pubmed/31564739
B34: 33 | C34: =Backbone!A675 -> Incorporating One Health Into Policy and Technical Guidance Kit | D34: This toolkit guides through the process of integrating the concept of One Health approach into new or existing sectoral and cross-sectoral policy and technical guidance documents, including guidelines, standard operating procedures (SOPs), protocols, and plans, as part of broader One Health policy advocacy and multisectoral preparedness and response efforts. | E34: https://www.onehealthapp.org/ | F34: "One Health resources" section
B35: 34 | C35: =Backbone!A195 -> Integrated Disease Surveillance and Response (IDSR) | D35: WHO/AFRO comprehensive strategy aimed at strengthening capacities for detection, confirmation and response to suspected cases and outbreaks, and for use of information to predict and plan for public health events at all levels of the health system. | E35: https://www.afro.who.int/publications/technical-guidelines-integrated-disease-surveillance-and-response-african-region-third | G35: https://www.tephinet.org/integrated-disease-surveillance-and-response-idsr-elearning-course https://www.cdc.gov/globalhealth/healthprotection/idsr/pdf/idsr-matrix_28x18_english.pdf https://www.who.int/csr/labepidemiology/projects/diseasesurv/en/ https://www.afro.who.int/publications/guide-introduction-idsr-curricula-health-training-institutions
B36: 35 | C36: =Backbone!A31 -> Integrated Surveillance for Antimicrobial Resistance (AGISAR) | D36: The purpose of this guidance is to assist WHO Member States, and other stakeholders, in the establishment and development of programmes of integrated surveillance of antimicrobial resistance in foodborne bacteria (i.e., bacteria commonly transmitted by food). The guidance includes detailed country examples. | E36: https://apps.who.int/iris/bitstream/handle/10665/255747/9789241512411-eng.pdf?sequence=1 | F36: The resource can be used as an example to be adapted for coordinated surveillance for zoonotic diseases.
B37: 36 | C37: =Backbone!A552 -> International Health Regulations (‎2005):State Party self-assessment annual reporting tool (SPAR) | D37: A reporting tool that supports State Parties of the International Health Regulations (IHR) to fulfill their obligation to report annually to the World Health Assembly (WHA) on the implementation of capacity requirements under these Regulations and to encourage the transparency and mutual accountability between States Parties towards global public health security, under the WHO IHR Monitoring and Evaluation Framework. | E37: paper base https://apps.who.int/iris/bitstream/handle/10665/272432/WHO-WHE-CPI-2018.16-eng.pdf?sequence=1 ; electronic https://extranet.who.int/e-spar | F37: A web-based platform for SPAR reporting is accessible to IHR National Focal Points. | G37: https://extranet.who.int/sph/news/ihr-self-assessment-annual-reporting-tool-spar-2018
B38: 37 | C38: =Backbone!A256 -> Joint External Evaluation tool (JEE ) | D38: This tool is intended to assess country capacity to prevent, detect, and rapidly respond to public health threats independently of whether they are naturally occurring, deliberate, or accidental. JEE provides 19 indicators for country evaluation reflecting graduated degrees of country capacity ranging from not implemented to fully implemented, tested and exercised. | E38: https://www.who.int/publications/i/item/joint-external-evaluation-tool-(jee-tool)---second-edition https://apps.who.int/iris/bitstream/handle/10665/204368/9789241510172_eng.pdf?sequence=1 | F38: For support contact your WHO country or regional office. | G38: https://www.who.int/publications/i/item/handbook-for-the-integration-of-the-oie-pvs-results-into-the-jee-process
B39: 38 | C39: =Backbone!A522 -> Laboratory Information Management System “SILAB for Africa” (SILABFA) | D39: SILABFA is a Laboratory Information Management System (LIMS) developed by Italian public Laboratory (IZSAM) and implemented in African Countries. The system is able to trace all diagnostic steps from Samples Reception up to the Final Reports. The statistics, inventory, money tracking, and biobank modules are fully integrated. SILABFA is ready for interoperability among external systems. | E39: https://demo.izs.it/silabfa_eth/ | F39: For the access to a free demo version, contact silab.support@izs.it The demo environment will be linked to test data used for development and not linked to the real cases. | H39: DOI: 10.1089/tmj.2018.0208 http://www.sidilv.org/index.php/component/docman/doc_download/123-volume-atti-sidilv-2016?Itemid= https://www.ncbi.nlm.nih.gov/pubmed/23038071
B40: 39 | C40: =Backbone!A531 -> Laboratory Information Management System Light (MiniLIMS) | D40: MiniLIms is an information system for the management of an analysis laboratory which have a simple organization. It collects information about the sampling points, the type of material and species selected, the tests carried out and the results obtained and the samples storage. A module for AMR is embedded. | E40: https://demo.izs.it/silabfa_mini/ | F40: For the access to a free demo version, contact silab.support@izs.it The demo environment will be linked to test data used for development and not linked to the real cases.
B41: 40 | C41: =Backbone!A271 -> Laboratory Infrastructure Network Analysis (LINA) | D41: LINA provides sophisticated computational modeling and data analytics functionality in an easy-to-use web-based application. The tool provides an easy visualization based on maps regarding capacities and capabilities of the national laboratory network and each laboratory itself. It is useful while building the country's laboratory network, but also to continuously evaluate based on the needs (what-if scenarios especially in case of outbreaks). This tool helps to optimize sample transport network, laboratory capacity building, planning disease controls programmes, support for rapid response (e.g. during outbreaks - identifying available capacity, balancing laboratory workload). | F41: For more information on the possibility to access the tool, please contact Patrick Finley <pdfinle@sandia.gov and Walter Beyeler <webeyel@sandia.gov
B42: 41 | C42: =Backbone!A265 -> Laboratory Leadership Competency Framework (GLLP) | D42: The Laboratory Leadership Competency Framework outlines the essential nine competencies needed for laboratory leaders to build and direct sustainable “National Health Laboratory System”, including human, animal, environmental, agricultural, food and chemical laboratories, in support of disease detection, control and prevention efforts in health systems around the world. | E42: https://www.who.int/ihr/publications/laboratory-leadership-competency-framework-first-edition/en/ https://www.who.int/ihr/publications/laboratory-leadership-competency-framework-first-edition/fr/ https://www.who.int/ihr/publications/laboratory-leadership-competency-framework-first-edition/ru/ https://www.who.int/ihr/publications/laboratory-leadership-competency-framework-first-edition/es/ | F42: Laboratory Leadership Competency Framework is available in English, French, Russian, Spanish languages. The Laboratory Leadership Competency Framework supports the development of the Global Laboratory Leadership Programme. | G42: https://www.who.int/ihr/lyon/global-laboratory-leadership-programme/en/ | H42: https://www.frontiersin.org/articles/10.3389/fpubh.2019.00199/full https://apps.who.int/iris/bitstream/handle/10665/325635/WER24may2019-xiv-xvii-eng-fre.pdf http://dx.doi.org/10.2471/BLT.17.195883
B43: 42 | C43: =Backbone!A288 -> Listing and categorization of priority animal diseases including those transmissible to humans (Phylum) | D43: The categorization and prioritization tool is proposed as an aid for the analytical steps of the protocol. This tool consists of an Excel file, organized in different modules. Each module corresponds to a separate spreadsheet, assessing a particular impact or type of data. | E43: https://www.oie.int/solidarity/global-studies/categorisation-of-animal-diseases/ | G43: https://www.who.int/ihr/procedures/mission-reports/en/
B44: 43 | C44: =Backbone!A291 -> Methodology to analyse AMR-relevant legislation in the food and agriculture sector | D44: The Methodology developed by FAO is a tool designed to guide the analyses of national legislation relevant for AMR in the food and agriculture sectors. The Methodology can be applied to support a legal review process that helps reveal gaps and weaknesses in national legislation relevant for AMR and antimicrobial use, and can help assess the compatibility of various types of national and regional legal instruments with international standards for addressing AMR. | F44: For more information on the possibility to access the tool, please contact the Development Law Service Branch of the Legal Office (LEGN) at the FAO at: LEGN-Chief@fao.org
B45: 44 | C45: =Backbone!A303 -> National Action Plan for Health Security (NAPHS) | D45: A country owned, multi-year, planning process that can accelerate the implementation of IHR core capacities and is based on the One Health and whole-of-government approach for all hazards. It captures national priorities for health security, brings sectors together, identifies partners and allocates resources for health security capacity development. The NAPHS also provides an overarching process to capture all ongoing preparedness initiatives in a country along with a country governance mechanism for emergency and disaster risk management. | E45: https://apps.who.int/iris/bitstream/handle/10665/312220/WHO-WHE-CPI-19.5-eng.pdf?sequence=1 | F45: Website has broad information but countries appear to need to work closely with WHO in this process
B46: 45 | C46: =Backbone!A332 -> Network for Evaluation of One Health (NEOH) | D46: Forming part of an evaluation framework, it assesses the One Health-ness (or strength of One Health, OH) of a OH surveillance system by scoring critical aspects of integration, namely OH thinking, planning, working, learning, sharing, and systemic organization in standardized Excel worksheets with maximum 17 questions each to be answered. | E46: https://www.wageningenacademic.com/doi/abs/10.3920/978-90-8686-875-9 https://www.wageningenacademic.com/doi/suppl/10.3920/978-90-8686-875-9/suppl_file/%20NEOH_ESM_4_The%20neoh%20evaluation%20tools.xlsx | G46: https://www.wageningenacademic.com/doi/suppl/10.3920/978-90-8686-875-9/suppl_file/%20NEOH_ESM_4_The%20neoh%20evaluation%20tools.xlsx https://www.wageningenacademic.com/doi/suppl/10.3920/978-90-8686-875-9 | H46: https://www.frontiersin.org/articles/10.3389/fpubh.2017.00020/full https://www.frontiersin.org/articles/10.3389/fvets.2018.00033/full https://www.frontiersin.org/articles/10.3389/fpubh.2018.00045/full https://www.frontiersin.org/articles/10.3389/fpubh.2018.00074/full https://www.frontiersin.org/articles/10.3389/fvets.2018.00147/full https://www.frontiersin.org/articles/10.3389/fvets.2018.00163/full https://www.frontiersin.org/articles/10.3389/fvets.2018.00023/full https://www.frontiersin.org/articles/10.3389/fvets.2017.00238/full https://www.frontiersin.org/articles/10.3389/fpubh.2017.00236/full
B47: 46 | C47: =Backbone!A433 -> One Health European Joint Program (OHEJP) Glossary | D47: The web-based community driven One Health glossary, called OHEJP Glossary, comprises over 1000 entries of different One Health or sector specific terms from public health, animal health and food safety. Furthermore, the OHEJP Glossary provides tools to highlight similarities and differences between the sectors. | E47: https://foodrisklabs.bfr.bund.de/oh-collaboration/ | G47: https://foodrisklabs.bfr.bund.de/oh-collaboration/ https://data.d4science.net/nPk4 https://oh-surveillance-codex.readthedocs.io/en/latest/2-the-collaboration-principle.html#ohejp-glossary
B48: 47 | C48: =Backbone!A683 -> One Health Policy Advocacy Toolkit | D48: This toolkit helps One Health stakeholders develop and implement a policy advocacy strategy to guide them in advancing messages to gain decision makers’ support, identifying advocacy tools and events to strengthen collaboration and policies, and cultivating alliances and champions for the One Health cause. | E48: https://www.onehealthapp.org/ | F48: See "One Health resources" section OH-app.
B49: 48 | C49: =Backbone!A685 -> One Health Policy Model Toolkit | D49: This toolkit is designed to help decision-makers understand the nature and scale of how changes in the livestock and human populations might impact veterinary, human, and environmental health, including some of the available policy options. | E49: https://www.onehealthapp.org/ | F49: See "One Health resources" section OH-app.
B50: 49 | C50: =Backbone!A624 -> One Health Stakeholder Mapping Toolkit | D50: This toolkit guides through the process of planning and executing stakeholder mapping. The step-by-step process provides an overview of the phases of the stakeholder mapping process. The objective of this stakeholder mapping process is to identify and analyze all critical actors to involve in the formation of the OH platform and execution of its functions, and to inform the development and implementation of key One Health activities, such as technical guidelines and policy development. The tools within this toolkit are designed to be adaptable to different country contexts. | E50: https://www.onehealthapp.org/ | F50: See "One Health resources" section OH-app.
B51: 50 | C51: =Backbone!A643 -> One Health Strategic Plan Development | D51: This toolkit guides through the step-by-step process of developing a national One Health Strategic Plan, using a participatory, stakeholder-driven approach. A One Health Strategic Plan is a national policy document that lays out a coordinated, multisectoral One Health approach to disease threats of public health concern, especially zoonotic diseases. It also serves as the basis for platform work planning and as an advocacy tool for mobilizing resources. | E51: https://www.onehealthapp.org/ | F51: See "One Health resources" section OH-app.
B52: 51 | C52: =Backbone!A396 -> One Health Surveillance (OHS) Codex | D52: A high-level framework that supports collaboration, mutual understanding, knowledge exchange and data interoperability among One Health surveillance sectors. The OHS-Codex provides an overview of practical resources as well as pointers to success stories of application of these resources. | E52: https://oh-surveillance-codex.readthedocs.io/en/latest/index.html
B53: 52 | C53: =Backbone!A400 -> One Health Surveillance Readiness and Requirements Tool (OHSRRT) | D53: The OHSRRT is a readiness and requirements assessment tool used to determine country readiness and gather requirements to develop a One Health surveillance system based on critical success factors. The tool includes a stakeholder engagement guide and questionnaire, data collection and characterization sheet, and the OHSRRT readiness and requirements landscape assessment. The tool is structured so the results collected utilizing the tool provide a basis to compose a Requirements Analysis Report and develop functional requirements for an operational One Health surveillance system. | F53: For information on the tool contact CDC ERRB, CDC One Health Office, or the Johns Hopkins Applied Physics Laboratory JHU/APL contact: Karen Meidenbauer, DVM, MPH Karen.meidenbauer@jhuapl.edu
B54: 53 | C54: =Backbone!A383 -> One Health Systems Mapping and Analysis Resource Toolkit (OH-SMART) | D54: The OH-SMART is a six-step process that supports stakeholders from multiple sectors to map, analyze and improve any existing system that requires interdisciplinary and multisectoral collaboration. The OH-SMART process can be used to strengthen One Health systems at the community, local, sub-national, national and regional level for any multisectoral challenge, including revising emergency response frameworks, improving Antimicrobial Resistance action plans,creating multiagency infectious disease collaboration protocols and supporting community-based collaborative risk management. | F54: The OH-SMART facilitator guide is shared with people who have gone through the Implementer or Master Facilitator training. The OH-SMART Implementers go through a training of trainers training and support an OH-SMART workshop and are after that able to use the toolkit independently. The training of trainers is offered in both a regularly-offered online option or in person as part of an OH-SMART implementation. As part of the online training fee, implementors will be mentored and supported to adapt and implement the tool for their particular use. Contact: Katey Pelican at pelicank@umn.edu | G54: https://oh-smart.umn.edu/ | H54: OH-SMART publications: https://oh-smart.umn.edu/oh-smart-action/oh-smart-publications
B55: 54 | C55: =Backbone!A415 -> One Health Zoonotic Disease Prioritization Process (OHZDP) | D55: Excel-based decision guiding tool providing step-by-step guidance on conducting a multisectoral, One Health prioritization process based on a workshop process. The tool utilizes a qualitative to semi-quantitative to quantitative process in which participants develop a set of criteria for prioritizing zoonoses, then developing representative questions for those criteria, ranking the criteria, and then calculating rank values based on these inputs. | F55: Contact onehealth@cdc.gov
B56: 55 | C56: =Backbone!A418 -> One-stop border post sourcebook | D56: This resource, developed by and directly applicable to countries in East Africa, provides a comprehensive description of a number of considerations that national level agencies, in two neighboring countries, should address when establishing a shared system for managing cross-border movement of humans and goods at priority ground crossings. | E56: https://www.tralac.org/documents/resources/african-union/1682-osbp-sourcebook-2nd-edition-may-2016/file.html
B57: 56 | C57: =Backbone!A628 -> Organizational Structure and Terms of Reference Toolkit | D57: This toolkit outlines the general process and tools needed to support country efforts to develop or revise a One Health platform’s organizational structure, including an organigram and terms of reference. By supporting the development or revision of platform organizational structures, the aim should be to promote the formalization of a One Health platform that is officially endorsed by all relevant ministries and senior government officials. | E57: https://www.onehealthapp.org/ | F57: "One Health resources" section
B58: 57 | C58: =Backbone!A430 -> Outbreak costing tool | D58: An Excel-based data collection tool that can be used to estimate the costs of routine outbreak investigations and response efforts in a country. The OCT can help standardize data collection on resources used in outbreak investigation and response, identify major cost drivers, and inform annual budgets. | F58: To use the Outbreak Costing Tool (OCT), get access to the reference materials, or for any questions, please contact Dr. Cynthia H. Cassell at chcassell@cdc.gov or Dr. Mahlet A. Woldetsadik at mwoldetsadik@cdc.gov
B59: 58 | C59: =Backbone!A437 -> Policy Field Analysis (PFA) | D59: Policy Field Analysis (PFA) is a specialized stakeholder mapping that allows to visualize the system of organizations as they interact for a given policy issue. PFA is used to identify the organizations (public, private or non-profit) at multiple levels of the system (local, national, regional and international levels), and map the structures (policies, frameworks, guidelines, physical or technological infrastructures) created by these organizations. This allows individuals to thoughtfully navigate these structures for appropriate resource allocation and stakeholder engagement. PFA can help identifying the critical points in the multisectoral system where individual actors can have an impact or create necessary change. The PFA video walks users through the simple mapping process, and the associated templates help users analyze their maps to ensure that information informs their program or policy development. | E59: Video: https://www.youtube.com/watch?v=v26_j72svjM&feature=youtu.be | F59: The Hubert video and the PFA template developed for the SIS OT introduce this resource. For further questions or interest in using PFA, please contact Kaylee Myhre Errecaborde at myhre044@umn.edu | H59: https://www.researchgate.net/publication/242456068_Analyzing_Policy_Fields_Helping_Students_Understand_Complex_State_and_Local_Contexts http://www.jodisandfort.org/uploads/4/5/0/9/45098387/policy_field_audit.pdf
B60: 59 | C60: =Backbone!A648 -> Preparedness and Response Planning Toolkit | D60: This toolkit is designed to support countries in their development of multisectoral preparedness and response plans for public health events, including public health events of initially unknown etiology; it can be used by countries that lack plans or by countries who want to strengthen existing plans, technical documents, or Standard Operating Procedures. Based on the WHO Africa Region’s framework for planning for an event of initially unknown etiology, this toolkit provides detailed technical guidance on developing multisectoral preparedness and response capacity. | E60: https://www.onehealthapp.org/ | F60: See "One Health resources" section OH-app.
B61: 60 | C61: =Backbone!A435 -> Progressive Management Pathway on Antimicrobial Resistance (AMR-PMP) | D61: FAO Progressive Management Pathway for Antimicrobial Resistance (FAO-PMP-AMR) is a practical self-assessment tool provides guidance for countries in developing and implementing a multi-sector “One Health” national action plan to combat AMR. It includes a self-assessment tool for quantifying the level of implementation. | F61: The request of access to the tool to be sent to the mailbox FAO-AMR-PMP@fao.org | G61: http://www.fao.org/antimicrobial-resistance/resources/tools/fao-pmp-amr/en/ | H61: http://www.fao.org/antimicrobial-resistance/resources/tools/fao-pmp-amr/en/ http://www.fao.org/europe/news/detail-news/en/c/1200272/ http://www.fao.org/africa/news/detail-news/en/c/1190787
B62: 61 | C62: =Backbone!A445 -> Rabies ECON | D62: An Excel-based tool to estimate the epidemiologic burden of dog rabies and potential epidemiologic and economic impact of a dog rabies vaccination program. | E62: https://www.ncbi.nlm.nih.gov/pubmed/29791440 | F62: The excel tool can be downloaded as a supplemental file.
B63: 62 | C63: =Backbone!A604 -> Rabies Exposure and Case Tracker Application (React) | D63: A tool to support implementation of Integrated Bite Case Management programs. The App-based tool provides standardized, systematic field-based investigations of persons with rabies exposures and animals suspected to be infected with rabies. The tool guides data collection and provides real-time feedback to users regarding procedures of an IBCM investigation, risk of rabies in animals under investigation, and quarantine processes. The App follows cases over time, providing the user with the ability to track important epidemiologic and medical information in a longitudinal fashion. Data is collected offline, but can be immediately uploaded to a shared, secure server that can be accessed by pre-approved users from animal health and human health organizations. A customized website helps users visualize and analyze IBCM and rabies exposure data, both to manage bite victim’s treatment guidelines as well as information to guide rabies control interventions such as dog vaccination efforts. | E63: https://rabiestaskforce.com/toolkit | F63: Available in English, French, Spanish, Vietnamese, Thai. This app is primarily intended as a data collection/aggregation/light analysis app for human and animal rabies case investigations/reporting, but is adaptable to many contexts, as users can create any types of reports they would like. | G63: https://www.youtube.com/watch?v=BQJ5D6wGIeg | H63: https://www.cdc.gov/mmwr/volumes/68/wr/mm6832a6.htm
B64: 63 | C64: =Backbone!A482 -> Resource Mapping for IHR and health security (Remap) | D64: The Resource Mapping and Impact Analysis on Health Security Investment (REMAP) is an Excel based tool developed by WHO to map the resources - available and potential – that contribute to building and maintaining IHR capacities at country level. WHO supports countries to develop suitable templates and checklists for the REMAP based on countries contexts. This is done through consultations with multisectoral national stakeholders, including donors and partners. | F64: For additional information or interest in access, contact the SPH team at sph@who.int | G64: https://apps.who.int/iris/bitstream/handle/10665/329385/WHO-WHE-CPI-2019.17-eng.pdf?sequence=1&isAllowed=y
B65: 64 | C65: =Backbone!A677 -> Simulation Toolkit | D65: A simulation is an exercise that imitates a real-life scenario to assess or reinforce preparedness protocols and capabilities. Simulations enable organizations to identify gaps or weaknesses in staff skills and capacity. Platforms typically engage in simulation exercises to examine and strengthen the level of coordination across One Health sectors in preparedness activities. This toolkit helps platforms and other stakeholders choose the right type of simulation and design and implement an effective simulation. It aims to give a high-level overview of simulations. | E65: https://www.onehealthapp.org/ | F65: "One Health resources" section
B66: 65 | C66: =Backbone!A557 -> Staged Tool for the Elimination of Brucellosis (STEB) | D66: A spreadsheet-based self-assessment tool developed to assist countries in evaluating their current capacity to prevent, control and eliminate brucellosis. By identifying gaps in capacity, the STEB assists countries in developing activities that utilize a One Health approach to brucellosis prevention, control and elimination. | F66: For additional information or interest in access, contact onehealth@cdc.gov and bspb@cdc.gov
B67: 66 | C67: =Backbone!A453 -> Stepwise Approach towards Rabies Elimination (SARE) | D67: The SARE tool is a practical planning, monitoring and evaluation tool to guide, develop and refine rabies control programmes. It provides an Excel assessment scoresheet with measurable steps, designed as a logical flow of activities, to progress from Stage 0 to Stage 5, in efforts towards freedom from dog-transmitted rabies. | E67: https://caninerabiesblueprint.org/A-stepwise-approach-to-planning?lang=en | F67: To request SARE Assessment scoresheet, contact https://rabiesblueprint.org/sare.html | G67: https://caninerabiesblueprint.org/IMG/pdf/sare_outline_2017_f.pdf
B68: 67 | C68: =Backbone!A567 -> SurvCost: A tool to Estimate the Cost of Integrated Disease Surveillance and Response | D68: SurvCost tool is designed to estimate the costs of Integrated Disease Surveillance and Response (IDSR) system. The tool was developed using Microsoft Excel and it is intended for countries that are integrating and strengthening their infectious disease surveillance systems. | E68: https://www.cdc.gov/globalhealth/healthprotection/idsr/pdf/survcost2.xls | G68: https://www.cdc.gov/globalhealth/healthprotection/idsr/pdf/SurvCost-Manual-Jan-2008.pdf
B69: 68 | C69: =Backbone!A510 -> SuRveillance EVALuation framework (SERVAL) | D69: A stepwise instruction on how to plan, structure and conduct assessment of animal health surveillance systems, trialed and tested on UK veterinary sector. It has been designed to assist in the comprehensive evaluation of single surveillance components (activities) or entire surveillance programmes. | E69: https://www.rvc.ac.uk/Media/Default/VEEPH/Documents/SERVAL.pdf
B70: 69 | C70: =Backbone!A561 -> Surveillance Evaluation Framework (SurF) | D70: An assessment framework for surveillance systems that can be used for biosecurity, plant or animal health. It was developed by the Ministry for Primary Industries in New Zealand for their own use, however, it is made public so that other organization can use the tool. | E70: https://www.mpi.govt.nz/dmsdocument/18091/direct | H70: https://onlinelibrary.wiley.com/doi/full/10.1111/tbed.12898
B71: 70 | C71: =Backbone!A351 -> Surveillance network assessment tool (OASIS) | D71: It is a standardized semi-quantitative tool for the assessment of surveillance systems on zoonoses and animal diseases. It a set of 78 assessment criteria divided into ten sections, representing the functional parts of a surveillance system. Each criterion is given a score according to the prescription of a scoring guide. Three graphical assessment outputs are generated. OASIS is meant to be used in a participatory manner with the individuals in-charge of the system being examined | E71: https://www.plateforme-esa.fr/article/l-outil-d-evaluation-oasis | F71: Available in English and French | H71: https://www.cambridge.org/core/journals/epidemiology-and-infection/article/oasis-an-assessment-tool-of-epidemiological-surveillance-systems-in-animal-health-and-food-safety/845374EB93FAE51055A5354A02C4BE33/core-reader
B72: 71 | C72: =Backbone!A540 -> Surveillance Outbreak Response Management and Analysis System (SORMAS) | D72: An open source mobile eHealth System that processes disease control and outbreak management procedures in addition to surveillance and early detection of outbreaks through real-time digital surveillance including peripheral health care facilities and laboratories. | E72: https://github.com/hzi-braunschweig | F72: The system is adaptable for One Health coordinated surveillance. For additional information sormas@helmholtz-hzi.de | H72: https://www.ncbi.nlm.nih.gov/pubmed/30147081; https://www.thieme-connect.com/products/ejournals/abstract/10.1055/s-0037-1605995 https://www.ncbi.nlm.nih.gov/pubmed/30373727
B73: 72 | C73: =Backbone!A483 -> Surveillance Webtools (SURVTOOLS) | D73: Unite surveillance design and evaluation tools targeting competent, technical users who design, implement or evaluate animal health surveillance. They guide users through essential steps in the design – evaluation – re-design cycle for strategic planning of animal health surveillance and promote understanding of critical concepts, methods and requirements. | E73: https://survtools.org https://survtools.org/wiki/surveillance-design-framework/doku.php https://survtools.org/wiki/surveillance-evaluation/doku.php | F73: SURVTOOLS are provided in a publicly available online platform (https://survtools.org/; registration required when used first time). | G73: https://www.youtube.com/watch?v=6bXBn-Kglp8&feature=youtu.be&list=PLPamJyFyCit8UGPOaEwr_bR0LCKkcKzJ6 https://www.youtube.com/watch?v=8aLKTw7z63U&feature=youtu.be | H73: https://doi.org/10.1016/j.prevetmed.2019.104777 https://www.researchgate.net/publication/299393001_RISKSUR_tools_taking_animal_health_surveillance_into_the_future_through_interdisciplinary_integration_of_scientific_evidence doi.org/10.1186/s12917-016-0822-5
B74: 73 | C74: =Backbone!A686 -> Sustainable Funding Strategy for One Health Toolkit | D74: The objective of this toolkit is to support One Health platforms and other coordination mechanisms in requesting and receiving funds to support operations of the platform and its activities in the long term. | E74: https://www.onehealthapp.org/ | F74: See "One Health resources" section OH-app.
B75: 74 | C75: =Backbone!A155 -> The Epidemic Intelligence from Open Sources (EIOS) | D75: EIOS Initiative is a unique collaboration between WHO and various stakeholders that brings together new and existing initiatives, networks and systems to create a unified all-hazards, One Health approach to early detection, verification and assessment of public health risks and threats using open source information. | E75: https://portal.who.int/eios/Login | F75: To find out more or to be a part of this initiative, please email the EIOS Core Team eios@who.int
B76: 75 | C76: =Backbone!A346 -> The National Public Health Performance Standards Program (NPHPSP): Local Public Health System Performance Assessment Instrument (version 2) | D76: The purpose for undertaking a performance assessment is to strengthen and improve the public health system. The NPHPSP instrument is based on the framework of the ten Essential Public Health Services. For each Essential Service it, the model standards describe or correspond to the primary activities conducted at the local level. Through the assessment process, participants from throughout the local public health system have an opportunity to discuss and determine how they are performing in comparison to each of the 30 model standards. | E76: https://www.cdc.gov/publichealthgateway/nphps/index.html?CDC_AA_refVal=https%3A%2F%2Fwww.cdc.gov%2Fnphpsp%2Findex.html | F76: The instrument has been developed for the US Public Health systems. Could be taken as an example for the adaptation to the local conditions.
B77: 76 | C77: =Backbone!A395 -> The One Health Assessment for Planning and Performance (OH-APP) | D77: OH-APP is a monitoring framework for multisectoral coordination mechanisms (MCM) to annually self-assess their organizational capacity and performance to inform planning and development assistance. The OH-APP complements the WHO Joint External Evaluation (JEE) by providing more specific indicators to measure the maturity of an MCM and benchmark its progress toward becoming a sustainable mechanism capable of coordinating multisectoral and multistakeholder collaboration for preparedness and response to public health threats. The OH-APP is administered over the course of a two-day workshop, using participatory decision-making tools. Assessment results are used to inform decision-making around joint planning, implementation and response to public health threats. | E77: https://www.onehealthapp.org/ | F77: This application can be accessed using the fictitious country of Concordia. For internal reporting purposes, only users with official One Health logins are able to add assessments for countries other than Concordia. Functionality is the same so users are able to use this application to assess One Health organizational capacity and performance in their own country context without the need to be official in this application.
B78: 77 | C78: =Backbone!A367 -> The One Health Systems Assessment for Priority Zoonoses (OH-SAPZ) | D78: The tool is aimed to facilitate a systematic assessment of national structures for One Health coordination with respect to preventing, detecting, and responding to zoonotic diseases. Users will follow a three-phase process for disease prioritization; systems mapping across surveillance and laboratory; and analysis and recommendations. More generally, the OH-SAPZ process is designed to provide visibility into a country’s strengths and weaknesses with respect to cross-sectoral communication and coordination, while providing a clear pathway for addressing any identified gaps. | E78: https://ghss.georgetown.edu/oh-sapz/ | F78: Requests for templates, slide decks and scenarios by email. Erin.Sorrell@georgetown.edu, Claire.Standley@georgetown.edu | G78: OH-SAPZ User Manual https://ghss.georgetown.edu/oh-sapz/ | H78: https://www.ncbi.nlm.nih.gov/pmc/articles/PMC4600904/ https://www.ncbi.nlm.nih.gov/pmc/articles/PMC6479159/
B79: 78 | C79: =Backbone!A489 -> The Suite for Automated Global Electronic BioSurveillance (SAGES) | D79: A suite of freely available open source software tools designed to enhance electronic disease surveillance in resource-limited settings. SAGES leverages electronic disease surveillance tools combined with other freely-available interoperable tools, and the available local technology infrastructure, to enable and/or enhance electronic disease surveillance capacity around the world. SAGES features include mobile data collection, temporal and spatial analysis through geographic mapping, anomalous event detection, and dynamic query capability. | E79: https://github.com/sages-health/openessence | F79: For more information, contact Johns Hopkins Applied Physics Laboratory JHU/APL contact: Shraddha Patel Shraddha.patel@jhuapl.edu | G79: https://www.jhuapl.edu/sages/ | H79: https://doi.org/10.1186/1472-6947-12-99 https://doi.org/10.1371/journal.pone.0019750
B80: 79 | C80: =Backbone!A450 -> Tool for Assessing Progress towards Elimination of Rabies (TAPER) | D80: This tool supports the evaluation of routinely collected rabies surveillance data to provide up-to-date locally tailored management guidance, to ensure that setbacks are overcome and that progress towards elimination continues. | E80: https://boydorr.shinyapps.io/paho_rabies/ https://github.com/katiehampson1978/paho_rabies | F80: The algorithm is simple and can be implemented using code from the Github repository, with more details in a manuscript that is currently under review. For support on how to adapt to other settings contact Isty Rysava (istyrysava@gmail.com) or Katie Hampson (Katie.Hampson@glasgow.ac.uk | H80: https://doi.org/10.1186/s12879-020-05457-x
B81: 80 | C81: =Backbone!A296 -> Updated Guidelines for Evaluating Public Health Surveillance Systems | D81: This report provides updated guidelines for evaluating surveillance systems based on CDC's Framework for Program Evaluation in Public Health, research and discussion of concerns related to public health surveillance systems, and comments received from the public health community. The guidelines in this report describe many tasks and related activities that can be applied to public health surveillance system | E81: https://www.cdc.gov/mmwr/preview/mmwrhtml/rr5013a1.htm
B82: 81 | C82: =Backbone!A592 -> WHO CHOICE | D82: WHO CHOICE is a program that helps countries decide health system priorities based on considerations of costs and impacts. It includes a number of different methods and tools. The Generalized Cost-Effectiveness component of the program is interested in identifying health care interventions that provide the greatest value for money – the largest health gain for each dollar spent on health. The One Health Tool is used to help countries to examine the costs and feasibility of their strategic plans, as well as to evaluate the potential impact of the plan. | E82: https://www.who.int/news-room/feature-stories/detail/new-cost-effectiveness-updates-from-who-choice
B83: 82 | C83: =Backbone!A598 -> WHO Laboratory Assessment Tool | D83: The tool provides guidance and data collection spreadsheets to assess: 1. strategic organization and support at the national level from government (structure, organization, and regulations for the national laboratory system(s)), 2. specific technical capacities at the laboratories level (selected laboratories that are representative for the country).includes two parts, system (LAT/System) and facility (LAT/Facility). Each part has an excel file and pdf file. The use of the Excel files facilitates data collection, allowing for automatic calculation, scoring, and aggregation of data. The two questionnaires can be used independently or in combination. | E83: https://www.who.int/ihr/publications/laboratory_tool/en/ | F83: Available in English, French,Spanish and Russian languages.
B84: 83 | C84: =Backbone!A419 -> World Organisation for Animal Health (WOAH) Performance of Veterinary Services Pathway (PVS) | D84: This is an external, in-country evaluation conducted by a group of OIE trained experts who collect and analyze baseline information and evidence collated during the mission, including an extensive field component. The mission uses the OIE PVS Tool, where 45 Critical Competencies are systematically evaluated. The final output is an assessment report, providing an overview of the Veterinary Services’ condition, evaluating its performance and identifying strengths and weaknesses, based on WOAH international Standards. | E84: https://www.oie.int/solidarity/pvs-pathway/ | F84: Request for the PVS mission should be sent from national WOAH Delegate to WOAH Director General. | G84: https://rr-asia.oie.int/wp-content/uploads/2019/12/6a-managing-an-oie-pvs-evaluation-part-1_bangkok-dec-2019.pdf
B85: 84 | C85: =Backbone!A420 -> World Organisation for Animal Health (WOAH) PVS Gap Analysis | D85: WOAH Members Countries can request a PVS Gap Analysis, which supports countries in detailed planning based on their PVS Evaluation results. The PVS Gap Analysis (incorporating the PVS Costing Tool) is a carefully structured exercise undertaken with the national Veterinary Services to determine their priority goals, as well as strategies, activities and investments required to achieve these objectives. During the mission, the country’s Veterinary Services, supported by a team of WOAH-certified experts, and using the PVS Evaluation information as a baseline, develop strategic and costed actions to improve their performance and meet national targets. | E85: https://www.woah.org/en/what-we-offer/improving-veterinary-services/pvs-pathway/ | F85: The PVS Gap Analysis Mission can be requested after receiving the approved PVS mission report. | G85: http://www.oie.int/solidarity/pvs-pathway/planning-gap-analysis/
B86: 85 | C86: =Backbone!A427 -> World Organisation for Animal Health (WOAH) PVS Laboratory Mission | D86: The PVS Laboratory (mission) is considered part of the specific WOAH programmes to support countries. The objectives of these missions are not only to determine the resources needed by the national laboratory network but also to evaluate the pertinence of its structure and viability in the national context in order to present elements needed for strategic decision making to the veterinary services. It also allows the analysis of the relationship of the national laboratory network with all other services providers. | E86: https://www.oie.int/fileadmin/Home/eng/Support_to_OIE_Members/pdf/OIE_PVS_Pathway_Laboratory_Manual_2014.pdf | F86: Request for the PVS mission should be sent from national WOAH Delegate to WOAH Director General. | G86: https://rr-asia.oie.int/wp-content/uploads/2019/12/6a-managing-an-oie-pvs-evaluation-part-1_bangkok-dec-2019.pdf
B87: 86 | C87: =Backbone!A571 -> World Organisation for Animal Health (WOAH) WAHIS Alert application | D87: The WAHIS Alerts application allows its users to receive on their mobile phones or tablets the animal health alerts (immediate notifications) and the follow-up reports as soon as they are published by the WOAH. | F87: App store; Google Playstore,Play Market | G87: https://www.oie.int/en/for-the-media/press-releases/detail/article/oie-alerts-and-animal-health-information-now-available-on-your-smartphone-or-tablet/

Sheet PP1_tools
B2: Focal Point Resources
AG7: Accessibility | AI7: Language | AK7: Ease of use | AM7: Flexibility | AO7: Data Needs | AQ7: Data Analysis | AS7: Acceptability | AU7: One Health | AW7: Impact
AY14: RAW SCORE | BB14: ADJUSTED SCORE (Based on user preferences)
B18: LEVEL 1 RESOURCES | D18: DESIGNATION | I18: RESOURCE NAME | P18: SHORT DESCRIPTION | Y18: RESOURCE TYPE | AC18: RESOURCE GENERALITY
AG22: ='Attribute Survey'!S22 -> 0 | AI22: ='Attribute Survey'!S26 -> 0 | AK22: ='Attribute Survey'!S30 -> 0 | AM22: ='Attribute Survey'!S34 -> 0 | AO22: ='Attribute Survey'!S38 -> 0 | AQ22: ='Attribute Survey'!S42 -> 0 | AS22: ='Attribute Survey'!S46 -> 0 | AU22: ='Attribute Survey'!S50 -> 0 | AW22: ='Attribute Survey'!S54 -> 0
D23: Resources Best Fit For Purpose | I23: =Backbone!A437 -> Policy Field Analysis (PFA) | P23: A specialized stakeholder mapping that allows to visualize the system of organizations as they interact for a given policy issue | Y23: =INDEX(Backbone!$R2:$R893,MATCH(I23,Backbone!$A2:$A893,0)) -> Guidance document | AC23: =INDEX(Backbone!$S2:$S893,MATCH(I23,Backbone!$A2:$A893,0)) -> One Health; Generalized | AG23: =INDEX(Backbone!$H2:$H893,MATCH(I23,Backbone!$A2:$A893,0)) -> 7.8 | AI23: =INDEX(Backbone!$I2:$I893,MATCH(I23,Backbone!$A2:$A893,0)) -> 8 | AK23: =INDEX(Backbone!$J2:$J893,MATCH(I23,Backbone!$A2:$A893,0)) -> 9.8 | AM23: =INDEX(Backbone!$K2:$K893,MATCH(I23,Backbone!$A2:$A893,0)) -> 10 | AO23: =INDEX(Backbone!$L2:$L893,MATCH(I23,Backbone!$A2:$A893,0)) -> 7.1 | AQ23: =INDEX(Backbone!$M2:$M893,MATCH(I23,Backbone!$A2:$A893,0)) -> 4 | AS23: =INDEX(Backbone!$N2:$N893,MATCH(I23,Backbone!$A2:$A893,0)) -> 7 | AU23: =INDEX(Backbone!$O2:$O893,MATCH(I23,Backbone!$A2:$A893,0)) -> 8.8 | AW23: =INDEX(Backbone!$P2:$P893,MATCH(I23,Backbone!$A2:$A893,0)) -> 5 | AY23: =INDEX(Backbone!$Q2:$Q893,MATCH(I23,Backbone!$A2:$A893,0)) -> 0.75 | BB23: =(AG23*AG22+AI23*AI22+AK23*AK22+AM23*AM22+AO23*AO22+AQ23*AQ22+AS23*AS22+AU23*AU22+AW23*AW22)/(SUM(AG22:AW22)*10) ->  | BE23: Go to Toolbox: | BG23: =HYPERLINK("#"&ADDRESS(MATCH(I23,Toolbox!$C$1:$C$30010),1,,,"Toolbox"),VLOOKUP(I23,Toolbox!$C$1:$C$30010,1,FALSE)) -> Policy Field Analysis (PFA)
D30: Other Relevant Resources | I30: =Backbone!A2 -> Africa CDC Event Based Surveillance Framework | P30: A guidance to public health practitioners seeking to implement event-based surveillance at each administrative level. | Y30: =INDEX(Backbone!$R2:$R893,MATCH(I30,Backbone!$A2:$A893,0)) -> Guidance document | AC30: =INDEX(Backbone!$S2:$S893,MATCH(I30,Backbone!$A2:$A893,0)) -> One Health; Generalized | AG30: =INDEX(Backbone!$H2:$H893,MATCH(I30,Backbone!$A2:$A893,0)) -> 8 | AI30: =INDEX(Backbone!$I2:$I893,MATCH(I30,Backbone!$A2:$A893,0)) -> 6 | AK30: =INDEX(Backbone!$J2:$J893,MATCH(I30,Backbone!$A2:$A893,0)) -> 8.2 | AM30: =INDEX(Backbone!$K2:$K893,MATCH(I30,Backbone!$A2:$A893,0)) -> 8.3 | AO30: =INDEX(Backbone!$L2:$L893,MATCH(I30,Backbone!$A2:$A893,0)) -> 6.1 | AQ30: =INDEX(Backbone!$M2:$M893,MATCH(I30,Backbone!$A2:$A893,0)) -> 3.5 | AS30: =INDEX(Backbone!$N2:$N893,MATCH(I30,Backbone!$A2:$A893,0)) -> 4 | AU30: =INDEX(Backbone!$O2:$O893,MATCH(I30,Backbone!$A2:$A893,0)) -> 7 | AW30: =INDEX(Backbone!$P2:$P893,MATCH(I30,Backbone!$A2:$A893,0)) -> 6 | AY30: =INDEX(Backbone!$Q2:$Q893,MATCH(I30,Backbone!$A2:$A893,0)) -> 0.6322222222 | BB30: =(AG30*AG22+AI30*AI22+AK30*AK22+AM30*AM22+AO30*AO22+AQ30*AQ22+AS30*AS22+AU30*AU22+AW30*AW22)/(SUM(AG22:AW22)*10) ->  | BE30: Go to Toolbox: | BG30: =HYPERLINK("#"&ADDRESS(MATCH(I30,Toolbox!$C$1:$C$300),1,,,"Toolbox"),VLOOKUP(I30,Toolbox!$C$1:$C$300,1,FALSE)) -> Africa CDC Event Based Surveillance Framework
I36: =Backbone!A100 -> Evaluation of Collaboration in a multisectoral Surveillance system (EcoSur) | P36: A tool that aims to evaluate the organization and functioning of collaboration in a multisectoral surveillance system and to analyse strengths and weaknesses of this collaboration. | Y36: =INDEX(Backbone!$R2:$R893,MATCH(I36,Backbone!$A2:$A893,0)) -> Guided/Facilitated tool or process | AC36: =INDEX(Backbone!$S2:$S893,MATCH(I36,Backbone!$A2:$A893,0)) -> One Health; Generalized | AG36: =INDEX(Backbone!$H2:$H893,MATCH(I36,Backbone!$A2:$A893,0)) -> 8.3 | AI36: =INDEX(Backbone!$I2:$I893,MATCH(I36,Backbone!$A2:$A893,0)) -> 6 | AK36: =INDEX(Backbone!$J2:$J893,MATCH(I36,Backbone!$A2:$A893,0)) -> 8.5 | AM36: =INDEX(Backbone!$K2:$K893,MATCH(I36,Backbone!$A2:$A893,0)) -> 7.8 | AO36: =INDEX(Backbone!$L2:$L893,MATCH(I36,Backbone!$A2:$A893,0)) -> 8.3 | AQ36: =INDEX(Backbone!$M2:$M893,MATCH(I36,Backbone!$A2:$A893,0)) -> 6.7 | AS36: =INDEX(Backbone!$N2:$N893,MATCH(I36,Backbone!$A2:$A893,0)) -> 3.3 | AU36: =INDEX(Backbone!$O2:$O893,MATCH(I36,Backbone!$A2:$A893,0)) -> 9.1 | AW36: =INDEX(Backbone!$P2:$P893,MATCH(I36,Backbone!$A2:$A893,0)) -> 4.7 | AY36: =INDEX(Backbone!$Q2:$Q893,MATCH(I36,Backbone!$A2:$A893,0)) -> 0.6966666667 | BB36: =(AG36*AG22+AI36*AI22+AK36*AK22+AM36*AM22+AO36*AO22+AQ36*AQ22+AS36*AS22+AU36*AU22+AW36*AW22)/(SUM(AG22:AW22)*10) ->  | BE36: Go to Toolbox: | BG36: =HYPERLINK("#"&ADDRESS(MATCH(I36,Toolbox!$C$1:$C$300),1,,,"Toolbox"),VLOOKUP(I36,Toolbox!$C$1:$C$300,1,FALSE)) -> Evaluation of Collaboration in a multisectoral Surveillance system (EcoSur)
I42: =Backbone!A195 -> Integrated Disease Surveillance and Response (IDSR) | P42: A strategy aimed at strengthening capacities for detection, confirmation and response to suspected cases and outbreaks, and for use of information to predict and plan for public health events. | Y42: =INDEX(Backbone!$R2:$R893,MATCH(I42,Backbone!$A2:$A893,0)) -> Guidance document | AC42: =INDEX(Backbone!$S2:$S893,MATCH(I42,Backbone!$A2:$A893,0)) -> Sector Specific; Generalized | AG42: =INDEX(Backbone!$H2:$H893,MATCH(I42,Backbone!$A2:$A893,0)) -> 7.4 | AI42: =INDEX(Backbone!$I2:$I893,MATCH(I42,Backbone!$A2:$A893,0)) -> 10 | AK42: =INDEX(Backbone!$J2:$J893,MATCH(I42,Backbone!$A2:$A893,0)) -> 7.4 | AM42: =INDEX(Backbone!$K2:$K893,MATCH(I42,Backbone!$A2:$A893,0)) -> 8.7 | AO42: =INDEX(Backbone!$L2:$L893,MATCH(I42,Backbone!$A2:$A893,0)) -> 6.7 | AQ42: =INDEX(Backbone!$M2:$M893,MATCH(I42,Backbone!$A2:$A893,0)) -> 4.5 | AS42: =INDEX(Backbone!$N2:$N893,MATCH(I42,Backbone!$A2:$A893,0)) -> 8 | AU42: =INDEX(Backbone!$O2:$O893,MATCH(I42,Backbone!$A2:$A893,0)) -> 7.2 | AW42: =INDEX(Backbone!$P2:$P893,MATCH(I42,Backbone!$A2:$A893,0)) -> 8.5 | AY42: =INDEX(Backbone!$Q2:$Q893,MATCH(I42,Backbone!$A2:$A893,0)) -> 0.76 | BB42: =(AG42*AG22+AI42*AI22+AK42*AK22+AM42*AM22+AO42*AO22+AQ42*AQ22+AS42*AS22+AU42*AU22+AW42*AW22)/(SUM(AG22:AW22)*10) ->  | BE42: Go to Toolbox: | BG42: =HYPERLINK("#"&ADDRESS(MATCH(I42,Toolbox!$C$1:$C$300),1,,,"Toolbox"),VLOOKUP(I42,Toolbox!$C$1:$C$300,1,FALSE)) -> Integrated Disease Surveillance and Response (IDSR)
I48: =Backbone!A367 -> The One Health Systems Assessment for Priority Zoonoses (OH-SAPZ) | P48: The tool is aimed to facilitate a systematic assessment of national structures for One Health coordination with respect to preventing, detecting, and responding to zoonotic diseases. | Y48: =INDEX(Backbone!$R2:$R893,MATCH(I48,Backbone!$A2:$A893,0)) -> Self-assessment tool | AC48: =INDEX(Backbone!$S2:$S893,MATCH(I48,Backbone!$A2:$A893,0)) -> One Health; Generalized | AG48: =INDEX(Backbone!$H2:$H893,MATCH(I48,Backbone!$A2:$A893,0)) -> 7.9 | AI48: =INDEX(Backbone!$I2:$I893,MATCH(I48,Backbone!$A2:$A893,0)) -> 7.3 | AK48: =INDEX(Backbone!$J2:$J893,MATCH(I48,Backbone!$A2:$A893,0)) -> 7.2 | AM48: =INDEX(Backbone!$K2:$K893,MATCH(I48,Backbone!$A2:$A893,0)) -> 7.8 | AO48: =INDEX(Backbone!$L2:$L893,MATCH(I48,Backbone!$A2:$A893,0)) -> 6.5 | AQ48: =INDEX(Backbone!$M2:$M893,MATCH(I48,Backbone!$A2:$A893,0)) -> 5.2 | AS48: =INDEX(Backbone!$N2:$N893,MATCH(I48,Backbone!$A2:$A893,0)) -> 4 | AU48: =INDEX(Backbone!$O2:$O893,MATCH(I48,Backbone!$A2:$A893,0)) -> 8.3 | AW48: =INDEX(Backbone!$P2:$P893,MATCH(I48,Backbone!$A2:$A893,0)) -> 9.7 | AY48: =INDEX(Backbone!$Q2:$Q893,MATCH(I48,Backbone!$A2:$A893,0)) -> 0.71 | BB48: =(AG48*AG22+AI48*AI22+AK48*AK22+AM48*AM22+AO48*AO22+AQ48*AQ22+AS48*AS22+AU48*AU22+AW48*AW22)/(SUM(AG22:AW22)*10) ->  | BE48: Go to Toolbox: | BG48: =HYPERLINK("#"&ADDRESS(MATCH(I48,Toolbox!C1:C300),1,,,"Toolbox"),VLOOKUP(I48,Toolbox!C1:C300,1,FALSE)) -> The One Health Systems Assessment for Priority Zoonoses (OH-SAPZ)
AG74: Accessibility | AI74: Language | AK74: Ease of use | AM74: Flexibility | AO74: Data Needs | AQ74: Data Analysis | AS74: Acceptability | AU74: One Health | AW74: Impact
B80: LEVEL 3 RESOURCES
AY81: RAW SCORE | BB81: ADJUSTED SCORE (Based on user preferences)
D85: DESIGNATION | I85: RESOURCE NAME | P85: SHORT DESCRIPTION | Y85: RESOURCE TYPE | AC85: RESOURCE GENERALITY
D90: Other Relevant Resources | I90: =Backbone!A303 -> National Action Plan for Health Security (NAPHS) | P90: A country owned planning process that can accelerate the implementation of International Health Regulations (IHR) core capacities and is based on the One Health and wholeof-government approach for all hazards. | Y90: =INDEX(Backbone!$R2:$R893,MATCH(I90,Backbone!$A2:$A893,0)) -> Guidance document | AC90: =INDEX(Backbone!$S2:$S893,MATCH(I90,Backbone!$A2:$A893,0)) -> One Health; Generalized | AG90: =INDEX(Backbone!$H2:$H893,MATCH(I90,Backbone!$A2:$A893,0)) -> 8 | AI90: =INDEX(Backbone!$I2:$I893,MATCH(I90,Backbone!$A2:$A893,0)) -> 9 | AK90: =INDEX(Backbone!$J2:$J893,MATCH(I90,Backbone!$A2:$A893,0)) -> 7.8 | AM90: =INDEX(Backbone!$K2:$K893,MATCH(I90,Backbone!$A2:$A893,0)) -> 10 | AO90: =INDEX(Backbone!$L2:$L893,MATCH(I90,Backbone!$A2:$A893,0)) -> 8 | AQ90: =INDEX(Backbone!$M2:$M893,MATCH(I90,Backbone!$A2:$A893,0)) -> 4.5 | AS90: =INDEX(Backbone!$N2:$N893,MATCH(I90,Backbone!$A2:$A893,0)) -> 10 | AU90: =INDEX(Backbone!$O2:$O893,MATCH(I90,Backbone!$A2:$A893,0)) -> 10 | AW90: =INDEX(Backbone!$P2:$P893,MATCH(I90,Backbone!$A2:$A893,0)) -> 10 | AY90: =INDEX(Backbone!$Q2:$Q893,MATCH(I90,Backbone!$A2:$A893,0)) -> 0.8588888889 | BB90: =(AG90*AG22+AI90*AI22+AK90*AK22+AM90*AM22+AO90*AO22+AQ90*AQ22+AS90*AS22+AU90*AU22+AW90*AW22)/(SUM(AG22:AW22)*10) ->  | BE90: Go to Toolbox: | BG90: =HYPERLINK("#"&ADDRESS(MATCH(I90,Toolbox!$C$1:$C$300),1,,,"Toolbox"),VLOOKUP(I90,Toolbox!$C$1:$C$300,1,FALSE)) -> National Action Plan for Health Security (NAPHS)
I96: =Backbone!A400 -> One Health Surveillance Readiness and Requirements Tool (OHSRRT) | P96: A readiness and requirements assessment tool used to determine country readiness and gather requirements to develop a One Health surveillance system based on critical success factors. | Y96: =INDEX(Backbone!$R2:$R893,MATCH(I96,Backbone!$A2:$A893,0)) -> Self-assessment tool | AC96: =INDEX(Backbone!$S2:$S893,MATCH(I96,Backbone!$A2:$A893,0)) -> One Health; Generalized | AG96: =INDEX(Backbone!$H2:$H893,MATCH(I96,Backbone!$A2:$A893,0)) -> 8 | AI96: =INDEX(Backbone!$I2:$I893,MATCH(I96,Backbone!$A2:$A893,0)) -> 6 | AK96: =INDEX(Backbone!$J2:$J893,MATCH(I96,Backbone!$A2:$A893,0)) -> 7.4 | AM96: =INDEX(Backbone!$K2:$K893,MATCH(I96,Backbone!$A2:$A893,0)) -> 8.7 | AO96: =INDEX(Backbone!$L2:$L893,MATCH(I96,Backbone!$A2:$A893,0)) -> 6 | AQ96: =INDEX(Backbone!$M2:$M893,MATCH(I96,Backbone!$A2:$A893,0)) -> 2.5 | AS96: =INDEX(Backbone!$N2:$N893,MATCH(I96,Backbone!$A2:$A893,0)) -> 2 | AU96: =INDEX(Backbone!$O2:$O893,MATCH(I96,Backbone!$A2:$A893,0)) -> 9.6 | AW96: =INDEX(Backbone!$P2:$P893,MATCH(I96,Backbone!$A2:$A893,0)) -> 5.5 | AY96: =INDEX(Backbone!$Q2:$Q893,MATCH(I96,Backbone!$A2:$A893,0)) -> 0.6188888889 | BB96: =(AG96*AG22+AI96*AI22+AK96*AK22+AM96*AM22+AO96*AO22+AQ96*AQ22+AS96*AS22+AU96*AU22+AW96*AW22)/(SUM(AG22:AW22)*10) ->  | BE96: Go to Toolbox: | BG96: =HYPERLINK("#"&ADDRESS(MATCH(I96,Toolbox!$C$1:$C$300),1,,,"Toolbox"),VLOOKUP(I96,Toolbox!$C$1:$C$300,1,FALSE)) -> One Health Surveillance Readiness and Requirements Tool (OHSRRT)

Sheet PP2_tools
B2: Prioritization Resources
AG7: Accessibility | AI7: Language | AK7: Ease of use | AM7: Flexibility | AO7: Data Needs | AQ7: Data Analysis | AS7: Acceptability | AU7: One Health | AW7: Impact
AY14: RAW SCORE | BB14: ADJUSTED SCORE (Based on user preferences)
B18: LEVEL 1 RESOURCES | D18: DESIGNATION | I18: RESOURCE NAME | P18: SHORT DESCRIPTION | Y18: RESOURCE TYPE | AC18: RESOURCE GENERALITY
AG22: ='Attribute Survey'!S22 -> 0 | AI22: ='Attribute Survey'!S26 -> 0 | AK22: ='Attribute Survey'!S30 -> 0 | AM22: ='Attribute Survey'!S34 -> 0 | AO22: ='Attribute Survey'!S38 -> 0 | AQ22: ='Attribute Survey'!S42 -> 0 | AS22: ='Attribute Survey'!S46 -> 0 | AU22: ='Attribute Survey'!S50 -> 0 | AW22: ='Attribute Survey'!S54 -> 0
D23: Resources Best Fit For Purpose | I23: =Backbone!A97 -> ECDC tool for the prioritisation of infectious disease threats | P23: An Excel-based tool that supports prioritisation of infectious disease threats | Y23: =INDEX(Backbone!$R2:$R893,MATCH(I23,Backbone!$A2:$A893,0)) -> Self-assessment tool | AC23: =INDEX(Backbone!$S2:$S893,MATCH(I23,Backbone!$A2:$A893,0)) -> Sector Specific; Generalized | AG23: =INDEX(Backbone!$H2:$H893,MATCH(I23,Backbone!$A2:$A893,0)) -> 9.8 | AI23: =INDEX(Backbone!$I2:$I893,MATCH(I23,Backbone!$A2:$A893,0)) -> 10 | AK23: =INDEX(Backbone!$J2:$J893,MATCH(I23,Backbone!$A2:$A893,0)) -> 8 | AM23: =INDEX(Backbone!$K2:$K893,MATCH(I23,Backbone!$A2:$A893,0)) -> 8.7 | AO23: =INDEX(Backbone!$L2:$L893,MATCH(I23,Backbone!$A2:$A893,0)) -> 7.1 | AQ23: =INDEX(Backbone!$M2:$M893,MATCH(I23,Backbone!$A2:$A893,0)) -> 4.5 | AS23: =INDEX(Backbone!$N2:$N893,MATCH(I23,Backbone!$A2:$A893,0)) -> 8 | AU23: =INDEX(Backbone!$O2:$O893,MATCH(I23,Backbone!$A2:$A893,0)) -> 8.5 | AW23: =INDEX(Backbone!$P2:$P893,MATCH(I23,Backbone!$A2:$A893,0)) -> 9 | AY23: =INDEX(Backbone!$Q2:$Q893,MATCH(I23,Backbone!$A2:$A893,0)) -> 0.8177777778 | BB23: =(AG23*AG22+AI23*AI22+AK23*AK22+AM23*AM22+AO23*AO22+AQ23*AQ22+AS23*AS22+AU23*AU22+AW23*AW22)/(SUM(AG22:AW22)*10) ->  | BE23: Go to Toolbox: | BG23: =HYPERLINK("#"&ADDRESS(MATCH(I23,Toolbox!$C$1:$C$300),1,,,"Toolbox"),VLOOKUP(I23,Toolbox!$C$1:$C$300,1,FALSE)) -> ECDC tool for the prioritisation of infectious disease threats
I29: =Backbone!A367 -> The One Health Systems Assessment for Priority Zoonoses (OH-SAPZ) | P29: The tool is aimed to facilitate a systematic assessment of national structures for One Health coordination with respect to preventing, detecting, and responding to zoonotic diseases. | Y29: =INDEX(Backbone!$R2:$R893,MATCH(I29,Backbone!$A2:$A893,0)) -> Self-assessment tool | AC29: =INDEX(Backbone!$S2:$S893,MATCH(I29,Backbone!$A2:$A893,0)) -> One Health; Generalized | AG29: =INDEX(Backbone!$H2:$H893,MATCH(I29,Backbone!$A2:$A893,0)) -> 7.9 | AI29: =INDEX(Backbone!$I2:$I893,MATCH(I29,Backbone!$A2:$A893,0)) -> 7.3 | AK29: =INDEX(Backbone!$J2:$J893,MATCH(I29,Backbone!$A2:$A893,0)) -> 7.2 | AM29: =INDEX(Backbone!$K2:$K893,MATCH(I29,Backbone!$A2:$A893,0)) -> 7.8 | AO29: =INDEX(Backbone!$L2:$L893,MATCH(I29,Backbone!$A2:$A893,0)) -> 6.5 | AQ29: =INDEX(Backbone!$M2:$M893,MATCH(I29,Backbone!$A2:$A893,0)) -> 5.2 | AS29: =INDEX(Backbone!$N2:$N893,MATCH(I29,Backbone!$A2:$A893,0)) -> 4 | AU29: =INDEX(Backbone!$O2:$O893,MATCH(I29,Backbone!$A2:$A893,0)) -> 8.3 | AW29: =INDEX(Backbone!$P2:$P893,MATCH(I29,Backbone!$A2:$A893,0)) -> 9.7 | AY29: =INDEX(Backbone!$Q2:$Q893,MATCH(I29,Backbone!$A2:$A893,0)) -> 0.71 | BB29: =(AG29*AG22+AI29*AI22+AK29*AK22+AM29*AM22+AO29*AO22+AQ29*AQ22+AS29*AS22+AU29*AU22+AW29*AW22)/(SUM(AG22:AW22)*10) ->  | BE29: Go to Toolbox: | BG29: =HYPERLINK("#"&ADDRESS(MATCH(I29,Toolbox!$C$1:$C$300),1,,,"Toolbox"),VLOOKUP(I29,Toolbox!$C$1:$C$300,1,FALSE)) -> The One Health Systems Assessment for Priority Zoonoses (OH-SAPZ)
I35: =Backbone!A415 -> One Health Zoonotic Disease Prioritization Process (OHZDP) | P35: An Excel-based decision guiding tool providing step-by-step guidance on conducting a multisectoral, One Health prioritizatoin process based on a workshop process. | Y35: =INDEX(Backbone!$R2:$R893,MATCH(I35,Backbone!$A2:$A893,0)) -> Guided/Facilitated tool or process | AC35: =INDEX(Backbone!$S2:$S893,MATCH(I35,Backbone!$A2:$A893,0)) -> One Health; Generalized | AG35: =INDEX(Backbone!$H2:$H893,MATCH(I35,Backbone!$A2:$A893,0)) -> 8 | AI35: =INDEX(Backbone!$I2:$I893,MATCH(I35,Backbone!$A2:$A893,0)) -> 9.3 | AK35: =INDEX(Backbone!$J2:$J893,MATCH(I35,Backbone!$A2:$A893,0)) -> 9.1 | AM35: =INDEX(Backbone!$K2:$K893,MATCH(I35,Backbone!$A2:$A893,0)) -> 6.7 | AO35: =INDEX(Backbone!$L2:$L893,MATCH(I35,Backbone!$A2:$A893,0)) -> 7 | AQ35: =INDEX(Backbone!$M2:$M893,MATCH(I35,Backbone!$A2:$A893,0)) -> 7.3 | AS35: =INDEX(Backbone!$N2:$N893,MATCH(I35,Backbone!$A2:$A893,0)) -> 8.3 | AU35: =INDEX(Backbone!$O2:$O893,MATCH(I35,Backbone!$A2:$A893,0)) -> 9.1 | AW35: =INDEX(Backbone!$P2:$P893,MATCH(I35,Backbone!$A2:$A893,0)) -> 9.3 | AY35: =INDEX(Backbone!$Q2:$Q893,MATCH(I35,Backbone!$A2:$A893,0)) -> 0.8233333333 | BB35: =(AG35*AG22+AI35*AI22+AK35*AK22+AM35*AM22+AO35*AO22+AQ35*AQ22+AS35*AS22+AU35*AU22+AW35*AW22)/(SUM(AG22:AW22)*10) ->  | BE35: Go to Toolbox: | BG35: =HYPERLINK("#"&ADDRESS(MATCH(I35,Toolbox!$C$1:$C$300),1,,,"Toolbox"),VLOOKUP(I35,Toolbox!$C$1:$C$300,1,FALSE)) -> One Health Zoonotic Disease Prioritization Process (OHZDP)
D42: Other Relevant Resources | I42: =Backbone!A288 -> Listing and categorization of priority animal diseases including those transmissible to humans (Phylum) | P42: The categorisation and prioritization Excel-based tool is proposed as an aid for the analytical steps of the protocol. | Y42: =INDEX(Backbone!$R2:$R893,MATCH(I42,Backbone!$A2:$A893,0)) -> Self-assessment tool | AC42: =INDEX(Backbone!$S2:$S893,MATCH(I42,Backbone!$A2:$A893,0)) -> Sector Specific; Generalized | AG42: =INDEX(Backbone!$H2:$H893,MATCH(I42,Backbone!$A2:$A893,0)) -> 6.9 | AI42: =INDEX(Backbone!$I2:$I893,MATCH(I42,Backbone!$A2:$A893,0)) -> 8 | AK42: =INDEX(Backbone!$J2:$J893,MATCH(I42,Backbone!$A2:$A893,0)) -> 6.2 | AM42: =INDEX(Backbone!$K2:$K893,MATCH(I42,Backbone!$A2:$A893,0)) -> 8.3 | AO42: =INDEX(Backbone!$L2:$L893,MATCH(I42,Backbone!$A2:$A893,0)) -> 7.5 | AQ42: =INDEX(Backbone!$M2:$M893,MATCH(I42,Backbone!$A2:$A893,0)) -> 7.3 | AS42: =INDEX(Backbone!$N2:$N893,MATCH(I42,Backbone!$A2:$A893,0)) -> 5.5 | AU42: =INDEX(Backbone!$O2:$O893,MATCH(I42,Backbone!$A2:$A893,0)) -> 8.7 | AW42: =INDEX(Backbone!$P2:$P893,MATCH(I42,Backbone!$A2:$A893,0)) -> 4 | AY42: =INDEX(Backbone!$Q2:$Q893,MATCH(I42,Backbone!$A2:$A893,0)) -> 0.6933333333 | BB42: =(AG42*AG22+AI42*AI22+AK42*AK22+AM42*AM22+AO42*AO22+AQ42*AQ22+AS42*AS22+AU42*AU22+AW42*AW22)/(SUM(AG22:AW22)*10) ->  | BE42: Go to Toolbox: | BG42: =HYPERLINK("#"&ADDRESS(MATCH(I42,Toolbox!$C$1:$C$300),1,,,"Toolbox"),VLOOKUP(I42,Toolbox!$C$1:$C$300,1,FALSE)) -> Listing and categorization of priority animal diseases including those transmissible to humans (Phylum)

Sheet PP3_tools
B2: Goal Setting Resources
AG7: Accessibility | AI7: Language | AK7: Ease of use | AM7: Flexibility | AO7: Data Needs | AQ7: Data Analysis | AS7: Acceptability | AU7: One Health | AW7: Impact
AY14: RAW SCORE | BB14: ADJUSTED SCORE (Based on user preferences)
B18: LEVEL 1 RESOURCES | D18: DESIGNATION | I18: RESOURCE NAME | P18: SHORT DESCRIPTION | Y18: RESOURCE TYPE | AC18: RESOURCE GENERALITY
AG22: ='Attribute Survey'!S22 -> 0 | AI22: ='Attribute Survey'!S26 -> 0 | AK22: ='Attribute Survey'!S30 -> 0 | AM22: ='Attribute Survey'!S34 -> 0 | AO22: ='Attribute Survey'!S38 -> 0 | AQ22: ='Attribute Survey'!S42 -> 0 | AS22: ='Attribute Survey'!S46 -> 0 | AU22: ='Attribute Survey'!S50 -> 0 | AW22: ='Attribute Survey'!S54 -> 0
D23: Resources Best Fit For Purpose | I23: Integrated Disease Surveillance and Response (IDSR) | P23: A strategy aimed at strengthening capacities for detection, confirmation and response to suspected cases and outbreaks, and for use of information to predict and plan for public health events | Y23: =INDEX(Backbone!R2:R893,MATCH(I23,Backbone!A2:A893,0)) -> Guidance document | AC23: =INDEX(Backbone!S2:S893,MATCH(I23,Backbone!A2:A893,0)) -> Sector Specific; Generalized | AG23: =INDEX(Backbone!H2:H893,MATCH(I23,Backbone!A2:A893,0)) -> 7.4 | AI23: =INDEX(Backbone!I2:I893,MATCH(I23,Backbone!A2:A893,0)) -> 10 | AK23: =INDEX(Backbone!J2:J893,MATCH(I23,Backbone!A2:A893,0)) -> 7.4 | AM23: =INDEX(Backbone!K2:K893,MATCH(I23,Backbone!A2:A893,0)) -> 8.7 | AO23: =INDEX(Backbone!L2:L893,MATCH(I23,Backbone!A2:A893,0)) -> 6.7 | AQ23: =INDEX(Backbone!M2:M893,MATCH(I23,Backbone!A2:A893,0)) -> 4.5 | AS23: =INDEX(Backbone!N2:N893,MATCH(I23,Backbone!A2:A893,0)) -> 8 | AU23: =INDEX(Backbone!O2:O893,MATCH(I23,Backbone!A2:A893,0)) -> 7.2 | AW23: =INDEX(Backbone!P2:P893,MATCH(I23,Backbone!A2:A893,0)) -> 8.5 | AY23: =INDEX(Backbone!Q2:Q893,MATCH(I23,Backbone!A2:A893,0)) -> 0.76 | BB23: =(AG23*AG22+AI23*AI22+AK23*AK22+AM23*AM22+AO23*AO22+AQ23*AQ22+AS23*AS22+AU23*AU22+AW23*AW22)/(SUM(AG22:AW22)*10) ->  | BE23: Go to Toolbox: | BG23: =HYPERLINK("#"&ADDRESS(MATCH(I23,Toolbox!$C$1:$C$300),1,,,"Toolbox"),VLOOKUP(I23,Toolbox!$C$1:$C$300,1,FALSE)) -> Integrated Disease Surveillance and Response (IDSR)
I29: One Health Surveillance Readiness and Requirements Tool (OHSRRT) | P29: A readiness and requirements assessment tool used to determine country readiness and gather requirements to develop a One Health surveillance system based on critical success factors | Y29: =INDEX(Backbone!R2:R893,MATCH(I29,Backbone!A2:A893,0)) -> Self-assessment tool | AC29: =INDEX(Backbone!S2:S893,MATCH(I29,Backbone!A2:A893,0)) -> One Health; Generalized | AG29: =INDEX(Backbone!H2:H893,MATCH(I29,Backbone!A2:A893,0)) -> 8 | AI29: =INDEX(Backbone!I2:I893,MATCH(I29,Backbone!A2:A893,0)) -> 6 | AK29: =INDEX(Backbone!J2:J893,MATCH(I29,Backbone!A2:A893,0)) -> 7.4 | AM29: =INDEX(Backbone!K2:K893,MATCH(I29,Backbone!A2:A893,0)) -> 8.7 | AO29: =INDEX(Backbone!L2:L893,MATCH(I29,Backbone!A2:A893,0)) -> 6 | AQ29: =INDEX(Backbone!M2:M893,MATCH(I29,Backbone!A2:A893,0)) -> 2.5 | AS29: =INDEX(Backbone!N2:N893,MATCH(I29,Backbone!A2:A893,0)) -> 2 | AU29: =INDEX(Backbone!O2:O893,MATCH(I29,Backbone!A2:A893,0)) -> 9.6 | AW29: =INDEX(Backbone!P2:P893,MATCH(I29,Backbone!A2:A893,0)) -> 5.5 | AY29: =INDEX(Backbone!Q2:Q893,MATCH(I29,Backbone!A2:A893,0)) -> 0.6188888889 | BB29: =(AG29*AG22+AI29*AI22+AK29*AK22+AM29*AM22+AO29*AO22+AQ29*AQ22+AS29*AS22+AU29*AU22+AW29*AW22)/(SUM(AG22:AW22)*10) ->  | BE29: Go to Toolbox: | BG29: =HYPERLINK("#"&ADDRESS(MATCH(I29,Toolbox!$C$1:$C$300),1,,,"Toolbox"),VLOOKUP(I29,Toolbox!$C$1:$C$300,1,FALSE)) -> One Health Surveillance Readiness and Requirements Tool (OHSRRT)
D36: Other Relevant Resources | I36: Africa CDC Event Based Surveillance Framework | P36: A guidance to public health practitioners seeking to implement event-based surveillance at each administrative level | Y36: =INDEX(Backbone!R2:R893,MATCH(I36,Backbone!A2:A893,0)) -> Guidance document | AC36: =INDEX(Backbone!S2:S893,MATCH(I36,Backbone!A2:A893,0)) -> One Health; Generalized | AG36: =INDEX(Backbone!H2:H893,MATCH(I36,Backbone!A2:A893,0)) -> 8 | AI36: =INDEX(Backbone!I2:I893,MATCH(I36,Backbone!A2:A893,0)) -> 6 | AK36: =INDEX(Backbone!J2:J893,MATCH(I36,Backbone!A2:A893,0)) -> 8.2 | AM36: =INDEX(Backbone!K2:K893,MATCH(I36,Backbone!A2:A893,0)) -> 8.3 | AO36: =INDEX(Backbone!L2:L893,MATCH(I36,Backbone!A2:A893,0)) -> 6.1 | AQ36: =INDEX(Backbone!M2:M893,MATCH(I36,Backbone!A2:A893,0)) -> 3.5 | AS36: =INDEX(Backbone!N2:N893,MATCH(I36,Backbone!A2:A893,0)) -> 4 | AU36: =INDEX(Backbone!O2:O893,MATCH(I36,Backbone!A2:A893,0)) -> 7 | AW36: =INDEX(Backbone!P2:P893,MATCH(I36,Backbone!A2:A893,0)) -> 6 | AY36: =INDEX(Backbone!Q2:Q893,MATCH(I36,Backbone!A2:A893,0)) -> 0.6322222222 | BB36: =(AG36*AG22+AI36*AI22+AK36*AK22+AM36*AM22+AO36*AO22+AQ36*AQ22+AS36*AS22+AU36*AU22+AW36*AW22)/(SUM(AG22:AW22)*10) ->  | BE36: Go to Toolbox: | BG36: =HYPERLINK("#"&ADDRESS(MATCH(I36,Toolbox!$C$1:$C$300),1,,,"Toolbox"),VLOOKUP(I36,Toolbox!$C$1:$C$300,1,FALSE)) -> Africa CDC Event Based Surveillance Framework
AG62: Accessibility | AI62: Language | AK62: Ease of use | AM62: Flexibility | AO62: Data Needs | AQ62: Data Analysis | AS62: Acceptability | AU62: One Health | AW62: Impact
B69: LEVEL 2 RESOURCES | AY69: RAW SCORE | BB69: ADJUSTED SCORE (Based on user preferences)
D73: DESIGNATION | I73: RESOURCE NAME | P73: SHORT DESCRIPTION | Y73: RESOURCE TYPE | AC73: RESOURCE GENERALITY
D78: Resources Best Fit For Purpose | I78: =Backbone!A100 -> Evaluation of Collaboration in a multisectoral Surveillance system (EcoSur) | P78: A tool that aims to evaluate the organization and functioning of collaboration in a multisectoral surveillance system and to analyse strengths and weaknesses of this collaboration | Y78: =Backbone!R100 -> Guided/Facilitated tool or process | AC78: =Backbone!S100 -> One Health; Generalized | AG78: =Backbone!H100 -> 8.3 | AI78: =Backbone!I100 -> 6 | AK78: =Backbone!J100 -> 8.5 | AM78: =Backbone!K100 -> 7.8 | AO78: =Backbone!L100 -> 8.3 | AQ78: =Backbone!M100 -> 6.7 | AS78: =Backbone!N100 -> 3.3 | AU78: =Backbone!O100 -> 9.1 | AW78: =Backbone!P100 -> 4.7 | AY78: =Backbone!Q100 -> 0.6966666667 | BB78: =(AG78*AG22+AI78*AI22+AK78*AK22+AM78*AM22+AO78*AO22+AQ78*AQ22+AS78*AS22+AU78*AU22+AW78*AW22)/(SUM(AG22:AW22)*10) ->  | BE78: Go to Toolbox: | BG78: =HYPERLINK("#"&ADDRESS(MATCH(I78,Toolbox!$C$1:$C$300),1,,,"Toolbox"),VLOOKUP(I78,Toolbox!$C$1:$C$300,1,FALSE)) -> Evaluation of Collaboration in a multisectoral Surveillance system (EcoSur)
D85: Other Relevant Resources | I85: =Backbone!A332 -> Network for Evaluation of One Health (NEOH) | P85: An excel-based tool assessing the One Health-ness (or strength of One Health, OH) of a OH surveillance system | Y85: =Backbone!R332 -> Guidance document | AC85: =Backbone!S332 -> One Health; Generalized | AG85: =Backbone!H332 -> 8.3 | AI85: =Backbone!I332 -> 7.7 | AK85: =Backbone!J332 -> 5.3 | AM85: =Backbone!K332 -> 8.9 | AO85: =Backbone!L332 -> 7.8 | AQ85: =Backbone!M332 -> 4.7 | AS85: =Backbone!N332 -> 5.3 | AU85: =Backbone!O332 -> 8 | AW85: =Backbone!P332 -> 5.3 | AY85: =Backbone!Q332 -> 0.6811111111 | BB85: =(AG85*AG22+AI85*AI22+AK85*AK22+AM85*AM22+AO85*AO22+AQ85*AQ22+AS85*AS22+AU85*AU22+AW85*AW22)/(SUM(AG22:AW22)*10) ->  | BE85: Go to Toolbox: | BG85: =HYPERLINK("#"&ADDRESS(MATCH(I85,Toolbox!$C$1:$C$300),1,,,"Toolbox"),VLOOKUP(I85,Toolbox!$C$1:$C$300,1,FALSE)) -> Network for Evaluation of One Health (NEOH)
AG116: Accessibility | AI116: Language | AK116: Ease of use | AM116: Flexibility | AO116: Data Needs | AQ116: Data Analysis | AS116: Acceptability | AU116: One Health | AW116: Impact
AY123: RAW SCORE | BB123: ADJUSTED SCORE (Based on user preferences)
B124: LEVEL 3 RESOURCES
D127: DESIGNATION | I127: RESOURCE NAME | P127: SHORT DESCRIPTION | Y127: RESOURCE TYPE | AC127: RESOURCE GENERALITY
D132: Resources Best Fit For Purpose | I132: =Backbone!A100 -> Evaluation of Collaboration in a multisectoral Surveillance system (EcoSur) | P132: A tool that aims to evaluate the organization and functioning of collaboration in a multisectoral surveillance system and to analyse strengths and weaknesses of this collaboration. | Y132: =Backbone!R100 -> Guided/Facilitated tool or process | AC132: =Backbone!S100 -> One Health; Generalized | AG132: =Backbone!H100 -> 8.3 | AI132: =Backbone!I100 -> 6 | AK132: =Backbone!J100 -> 8.5 | AM132: =Backbone!K100 -> 7.8 | AO132: =Backbone!L100 -> 8.3 | AQ132: =Backbone!M100 -> 6.7 | AS132: =Backbone!N100 -> 3.3 | AU132: =Backbone!O100 -> 9.1 | AW132: =Backbone!P100 -> 4.7 | AY132: =Backbone!Q100 -> 0.6966666667 | BB132: =(AG132*AG22+AI132*AI22+AK132*AK22+AM132*AM22+AO132*AO22+AQ132*AQ22+AS132*AS22+AU132*AU22+AW132*AW22)/(SUM(AG22:AW22)*10) ->  | BE132: Go to Toolbox: | BG132: =HYPERLINK("#"&ADDRESS(MATCH(I132,Toolbox!$C$1:$C$300),1,,,"Toolbox"),VLOOKUP(I132,Toolbox!$C$1:$C$300,1,FALSE)) -> Evaluation of Collaboration in a multisectoral Surveillance system (EcoSur)
I138: =Backbone!A303 -> National Action Plan for Health Security (NAPHS) | P138: A country owned planning process that can accelerate the implementation of International Health Regulations (IHR) core capacities and is based on the One Health and wholeof-government approach for all hazards. | Y138: =Backbone!R303 -> Guidance document | AC138: =Backbone!S303 -> One Health; Generalized | AG138: =Backbone!H303 -> 8 | AI138: =Backbone!I303 -> 9 | AK138: =Backbone!J303 -> 7.8 | AM138: =Backbone!K303 -> 10 | AO138: =Backbone!L303 -> 8 | AQ138: =Backbone!M303 -> 4.5 | AS138: =Backbone!N303 -> 10 | AU138: =Backbone!O303 -> 10 | AW138: =Backbone!P303 -> 10 | AY138: =Backbone!Q303 -> 0.8588888889 | BB138: =(AG138*AG22+AI138*AI22+AK138*AK22+AM138*AM22+AO138*AO22+AQ138*AQ22+AS138*AS22+AU138*AU22+AW138*AW22)/(SUM(AG22:AW22)*10) ->  | BE138: Go to Toolbox: | BG138: =HYPERLINK("#"&ADDRESS(MATCH(I138,Toolbox!$C$1:$C$300),1,,,"Toolbox"),VLOOKUP(I138,Toolbox!$C$1:$C$300,1,FALSE)) -> National Action Plan for Health Security (NAPHS)

Sheet A1_tools
B2: Stakeholder Mapping Resources
AG7: Accessibility | AI7: Language | AK7: Ease of use | AM7: Flexibility | AO7: Data Needs | AQ7: Data Analysis | AS7: Acceptability | AU7: One Health | AW7: Impact
AY14: RAW SCORE | BB14: ADJUSTED SCORE (Based on user preferences)
B18: LEVEL 1 RESOURCES | D18: DESIGNATION | I18: RESOURCE NAME | P18: SHORT DESCRIPTION | Y18: RESOURCE TYPE | AC18: RESOURCE GENERALITY
AG22: ='Attribute Survey'!S22 -> 0 | AI22: ='Attribute Survey'!S26 -> 0 | AK22: ='Attribute Survey'!S30 -> 0 | AM22: ='Attribute Survey'!S34 -> 0 | AO22: ='Attribute Survey'!S38 -> 0 | AQ22: ='Attribute Survey'!S42 -> 0 | AS22: ='Attribute Survey'!S46 -> 0 | AU22: ='Attribute Survey'!S50 -> 0 | AW22: ='Attribute Survey'!S54 -> 0
D23: Resources Best Fit For Purpose | I23: =Backbone!A51 -> Border Health Capacity Discussion Guide (BHCDG) | P23: Template tools to lead facilitated discussions with national-, district-, and ground crossing-level representatives on border health system | Y23: =INDEX(Backbone!$R2:$R893,MATCH(I23,Backbone!$A2:$A893,0)) -> Guidance document | AC23: =INDEX(Backbone!$S2:$S893,MATCH(I23,Backbone!$A2:$A893,0)) -> One Health; Disease/Threat Specific | AG23: =INDEX(Backbone!$H2:$H893,MATCH(I23,Backbone!$A2:$A893,0)) -> 8.8 | AI23: =INDEX(Backbone!$I2:$I893,MATCH(I23,Backbone!$A2:$A893,0)) -> 6.7 | AK23: =INDEX(Backbone!$J2:$J893,MATCH(I23,Backbone!$A2:$A893,0)) -> 7.6 | AM23: =INDEX(Backbone!$K2:$K893,MATCH(I23,Backbone!$A2:$A893,0)) -> 9 | AO23: =INDEX(Backbone!$L2:$L893,MATCH(I23,Backbone!$A2:$A893,0)) -> 7 | AQ23: =INDEX(Backbone!$M2:$M893,MATCH(I23,Backbone!$A2:$A893,0)) -> 3.8 | AS23: =INDEX(Backbone!$N2:$N893,MATCH(I23,Backbone!$A2:$A893,0)) -> 8 | AU23: =INDEX(Backbone!$O2:$O893,MATCH(I23,Backbone!$A2:$A893,0)) -> 8.4 | AW23: =INDEX(Backbone!$P2:$P893,MATCH(I23,Backbone!$A2:$A893,0)) -> 6 | AY23: =INDEX(Backbone!$Q2:$Q893,MATCH(I23,Backbone!$A2:$A893,0)) -> 0.7255555556 | BB23: =(AG23*$AG$22+AI23*$AI$22+AK23*$AK$22+AM23*$AM$22+AO23*$AO$22+AQ23*$AQ$22+AS23*$AS$22+AU23*$AU$22+AW23*$AW$22)/(SUM($AG$22:$AW$22)*10) ->  | BE23: Go to Toolbox: | BG23: =HYPERLINK("#"&ADDRESS(MATCH(I23,Toolbox!$C$1:$C$300),1,,,"Toolbox"),VLOOKUP(I23,Toolbox!$C$1:$C$300,1,FALSE)) -> Border Health Capacity Discussion Guide (BHCDG)
I29: =Backbone!A239 -> IHR-PVS National Bridging Workshop | P29: A workshop to enable the animal health and the human health sectors in countries to explore overlapping areas and develop, where relevant, appropriate bridges to facilitate coordination. | Y29: =INDEX(Backbone!$R$2:$R$893,MATCH(I29,Backbone!$A$2:$A$893,0)) -> Guided/Facilitated tool or process | AC29: =INDEX(Backbone!$S$2:$S$893,MATCH(I29,Backbone!$A$2:$A$893,0)) -> One Health; Generalized | AG29: =INDEX(Backbone!$H$2:$H$893,MATCH(I29,Backbone!$A$2:$A$893,0)) -> 8.6 | AI29: =INDEX(Backbone!$I$2:$I$893,MATCH(I29,Backbone!$A$2:$A$893,0)) -> 10 | AK29: =INDEX(Backbone!$J$2:$J$893,MATCH(I29,Backbone!$A$2:$A$893,0)) -> 6.2 | AM29: =INDEX(Backbone!$K$2:$K$893,MATCH(I29,Backbone!$A$2:$A$893,0)) -> 10 | AO29: =INDEX(Backbone!$L$2:$L$893,MATCH(I29,Backbone!$A$2:$A$893,0)) -> 6 | AQ29: =INDEX(Backbone!$M$2:$M$893,MATCH(I29,Backbone!$A$2:$A$893,0)) -> 7 | AS29: =INDEX(Backbone!$N$2:$N$893,MATCH(I29,Backbone!$A$2:$A$893,0)) -> 9 | AU29: =INDEX(Backbone!$O$2:$O$893,MATCH(I29,Backbone!$A$2:$A$893,0)) -> 8.2 | AW29: =INDEX(Backbone!$P$2:$P$893,MATCH(I29,Backbone!$A$2:$A$893,0)) -> 10 | AY29: =INDEX(Backbone!$Q$2:$Q$893,MATCH(I29,Backbone!$A$2:$A$893,0)) -> 0.8333333333 | BB29: =(AG29*$AG$22+AI29*$AI$22+AK29*$AK$22+AM29*$AM$22+AO29*$AO$22+AQ29*$AQ$22+AS29*$AS$22+AU29*$AU$22+AW29*$AW$22)/(SUM($AG$22:$AW$22)*10) ->  | BE29: Go to Toolbox: | BG29: =HYPERLINK("#"&ADDRESS(MATCH(I29,Toolbox!$C$1:$C$300),1,,,"Toolbox"),VLOOKUP(I29,Toolbox!$C$1:$C$300,1,FALSE)) -> IHR-PVS National Bridging Workshop
I35: =Backbone!A400 -> One Health Surveillance Readiness and Requirements Tool (OHSRRT) | P35: A readiness and requirements assessment tool used to determine country readiness and gather requirements to develop a One Health surveillance system based on critical success factors. | Y35: =INDEX(Backbone!$R$2:$R$893,MATCH(I35,Backbone!$A$2:$A$893,0)) -> Self-assessment tool | AC35: =INDEX(Backbone!$S$2:$S$893,MATCH(I35,Backbone!$A$2:$A$893,0)) -> One Health; Generalized | AG35: =INDEX(Backbone!$H$2:$H$893,MATCH(I35,Backbone!$A$2:$A$893,0)) -> 8 | AI35: =INDEX(Backbone!$I$2:$I$893,MATCH(I35,Backbone!$A$2:$A$893,0)) -> 6 | AK35: =INDEX(Backbone!$J$2:$J$893,MATCH(I35,Backbone!$A$2:$A$893,0)) -> 7.4 | AM35: =INDEX(Backbone!$K$1:$K$893,MATCH(I35,Backbone!$A$1:$A$893,0)) -> 8.7 | AO35: =INDEX(Backbone!$L$2:$L$893,MATCH(I35,Backbone!$A$2:$A$893,0)) -> 6 | AQ35: =INDEX(Backbone!$M$2:$M$893,MATCH(I35,Backbone!$A$2:$A$893,0)) -> 2.5 | AS35: =INDEX(Backbone!$N$2:$N$893,MATCH(I35,Backbone!$A$2:$A$893,0)) -> 2 | AU35: =INDEX(Backbone!$O$2:$O$893,MATCH(I35,Backbone!$A$2:$A$893,0)) -> 9.6 | AW35: =INDEX(Backbone!$P$2:$P$893,MATCH(I35,Backbone!$A$2:$A$893,0)) -> 5.5 | AY35: =INDEX(Backbone!$Q$2:$Q$893,MATCH(I35,Backbone!$A$2:$A$893,0)) -> 0.6188888889 | BB35: =(AG35*$AG$22+AI35*$AI$22+AK35*$AK$22+AM35*$AM$22+AO35*$AO$22+AQ35*$AQ$22+AS35*$AS$22+AU35*$AU$22+AW35*$AW$22)/(SUM($AG$22:$AW$22)*10) ->  | BE35: Go to Toolbox: | BG35: =HYPERLINK("#"&ADDRESS(MATCH(I35,Toolbox!$C$1:$C$300),1,,,"Toolbox"),VLOOKUP(I35,Toolbox!$C$1:$C$300,1,FALSE)) -> One Health Surveillance Readiness and Requirements Tool (OHSRRT)
I41: =Backbone!A367 -> The One Health Systems Assessment for Priority Zoonoses (OH-SAPZ) | P41: The tool is aimed to facilitate a systematic assessment of national structures for One Health coordination with respect to preventing, detecting, and responding to zoonotic diseases. | Y41: =INDEX(Backbone!$R$2:$R$893,MATCH(I41,Backbone!$A$2:$A$893,0)) -> Self-assessment tool | AC41: =INDEX(Backbone!$S$2:$S$893,MATCH(I41,Backbone!$A$2:$A$893,0)) -> One Health; Generalized | AG41: =INDEX(Backbone!$H$2:$H$893,MATCH(I41,Backbone!$A$2:$A$893,0)) -> 7.9 | AI41: =INDEX(Backbone!$I$2:$I$893,MATCH(I41,Backbone!$A$2:$A$893,0)) -> 7.3 | AK41: =INDEX(Backbone!$J$2:$J$893,MATCH(I41,Backbone!$A$2:$A$893,0)) -> 7.2 | AM41: =INDEX(Backbone!$K$1:$K$893,MATCH(I41,Backbone!$A$1:$A$893,0)) -> 7.8 | AO41: =INDEX(Backbone!$L$2:$L$893,MATCH(I41,Backbone!$A$2:$A$893,0)) -> 6.5 | AQ41: =INDEX(Backbone!$M$2:$M$893,MATCH(I41,Backbone!$A$2:$A$893,0)) -> 5.2 | AS41: =INDEX(Backbone!$N$2:$N$893,MATCH(I41,Backbone!$A$2:$A$893,0)) -> 4 | AU41: =INDEX(Backbone!$O$2:$O$893,MATCH(I41,Backbone!$A$2:$A$893,0)) -> 8.3 | AW41: =INDEX(Backbone!$P$2:$P$893,MATCH(I41,Backbone!$A$2:$A$893,0)) -> 9.7 | AY41: =INDEX(Backbone!$Q$2:$Q$893,MATCH(I41,Backbone!$A$2:$A$893,0)) -> 0.71 | BB41: =(AG41*$AG$22+AI41*$AI$22+AK41*$AK$22+AM41*$AM$22+AO41*$AO$22+AQ41*$AQ$22+AS41*$AS$22+AU41*$AU$22+AW41*$AW$22)/(SUM($AG$22:$AW$22)*10) ->  | BE41: Go to Toolbox: | BG41: =HYPERLINK("#"&ADDRESS(MATCH(I41,Toolbox!$C$1:$C$300),1,,,"Toolbox"),VLOOKUP(I41,Toolbox!$C$1:$C$300,1,FALSE)) -> The One Health Systems Assessment for Priority Zoonoses (OH-SAPZ)
I47: =Backbone!A383 -> One Health Systems Mapping and Analysis Resource Toolkit (OH-SMART) | P47: A process that supports stakeholders from multiple sectors to map, analyze and improve any existing system that requires interdisciplinary and multisectoral collaboration. | Y47: =INDEX(Backbone!$R$2:$R$893,MATCH(I47,Backbone!$A$2:$A$893,0)) -> Guided/Facilitated tool or process | AC47: =INDEX(Backbone!$S$2:$S$893,MATCH(I47,Backbone!$A$2:$A$893,0)) -> One Health; Generalized | AG47: =INDEX(Backbone!$H$2:$H$893,MATCH(I47,Backbone!$A$2:$A$893,0)) -> 8.7 | AI47: =INDEX(Backbone!$I$2:$I$893,MATCH(I47,Backbone!$A$2:$A$893,0)) -> 7.3 | AK47: =INDEX(Backbone!$J$2:$J$893,MATCH(I47,Backbone!$A$2:$A$893,0)) -> 8.4 | AM47: =INDEX(Backbone!$K$1:$K$893,MATCH(I47,Backbone!$A$1:$A$893,0)) -> 9.3 | AO47: =INDEX(Backbone!$L$2:$L$893,MATCH(I47,Backbone!$A$2:$A$893,0)) -> 8.2 | AQ47: =INDEX(Backbone!$M$2:$M$893,MATCH(I47,Backbone!$A$2:$A$893,0)) -> 7.4 | AS47: =INDEX(Backbone!$N$2:$N$893,MATCH(I47,Backbone!$A$2:$A$893,0)) -> 9.5 | AU47: =INDEX(Backbone!$O$2:$O$893,MATCH(I47,Backbone!$A$2:$A$893,0)) -> 10 | AW47: =INDEX(Backbone!$P$2:$P$893,MATCH(I47,Backbone!$A$2:$A$893,0)) -> 10 | AY47: =INDEX(Backbone!$Q$2:$Q$893,MATCH(I47,Backbone!$A$2:$A$893,0)) -> 0.8755555556 | BB47: =(AG47*$AG$22+AI47*$AI$22+AK47*$AK$22+AM47*$AM$22+AO47*$AO$22+AQ47*$AQ$22+AS47*$AS$22+AU47*$AU$22+AW47*$AW$22)/(SUM($AG$22:$AW$22)*10) ->  | BE47: Go to Toolbox: | BG47: =HYPERLINK("#"&ADDRESS(MATCH(I47,Toolbox!$C$1:$C$300),1,,,"Toolbox"),VLOOKUP(I47,Toolbox!$C$1:$C$300,1,FALSE)) -> One Health Systems Mapping and Analysis Resource Toolkit (OH-SMART)
I53: =Backbone!A437 -> Policy Field Analysis (PFA) | P53: A specialized stakeholder mapping that allows to visualize the system of organizations as they interact for a given policy issue. | Y53: =INDEX(Backbone!$R$2:$R$893,MATCH(I53,Backbone!$A$2:$A$893,0)) -> Guidance document | AC53: =INDEX(Backbone!$S$2:$S$893,MATCH(I53,Backbone!$A$2:$A$893,0)) -> One Health; Generalized | AG53: =INDEX(Backbone!$H$2:$H$893,MATCH(I53,Backbone!$A$2:$A$893,0)) -> 7.8 | AI53: =INDEX(Backbone!$I$2:$I$893,MATCH(I53,Backbone!$A$2:$A$893,0)) -> 8 | AK53: =INDEX(Backbone!$J$2:$J$893,MATCH(I53,Backbone!$A$2:$A$893,0)) -> 9.8 | AM53: =INDEX(Backbone!$K$1:$K$893,MATCH(I53,Backbone!$A$1:$A$893,0)) -> 10 | AO53: =INDEX(Backbone!$L$2:$L$893,MATCH(I53,Backbone!$A$2:$A$893,0)) -> 7.1 | AQ53: =INDEX(Backbone!$M$2:$M$893,MATCH(I53,Backbone!$A$2:$A$893,0)) -> 4 | AS53: =INDEX(Backbone!$N$2:$N$893,MATCH(I53,Backbone!$A$2:$A$893,0)) -> 7 | AU53: =INDEX(Backbone!$O$2:$O$893,MATCH(I53,Backbone!$A$2:$A$893,0)) -> 8.8 | AW53: =INDEX(Backbone!$P$2:$P$893,MATCH(I53,Backbone!$A$2:$A$893,0)) -> 5 | AY53: =INDEX(Backbone!$Q$2:$Q$893,MATCH(I53,Backbone!$A$2:$A$893,0)) -> 0.75 | BB53: =(AG53*$AG$22+AI53*$AI$22+AK53*$AK$22+AM53*$AM$22+AO53*$AO$22+AQ53*$AQ$22+AS53*$AS$22+AU53*$AU$22+AW53*$AW$22)/(SUM($AG$22:$AW$22)*10) ->  | BE53: Go to Toolbox: | BG53: =HYPERLINK("#"&ADDRESS(MATCH(I53,Toolbox!$C$1:$C$300),1,,,"Toolbox"),VLOOKUP(I53,Toolbox!$C$1:$C$300,1,FALSE)) -> Policy Field Analysis (PFA)
I59: =Backbone!A453 -> Stepwise Approach towards Rabies Elimination (SARE) | P59: An excel based practical planning, monitoring and evaluation tool to guide, develop and refine rabies control programmes. | Y59: =INDEX(Backbone!$R$2:$R$893,MATCH(I59,Backbone!$A$2:$A$893,0)) -> Self-assessment tool | AC59: =INDEX(Backbone!$S$2:$S$893,MATCH(I59,Backbone!$A$2:$A$893,0)) -> One Health; Disease/Threat Specific | AG59: =INDEX(Backbone!$H$2:$H$893,MATCH(I59,Backbone!$A$2:$A$893,0)) -> 8 | AI59: =INDEX(Backbone!$I$2:$I$893,MATCH(I59,Backbone!$A$2:$A$893,0)) -> 9 | AK59: =INDEX(Backbone!$J$2:$J$893,MATCH(I59,Backbone!$A$2:$A$893,0)) -> 6.6 | AM59: =INDEX(Backbone!$K$1:$K$893,MATCH(I59,Backbone!$A$1:$A$893,0)) -> 3.3 | AO59: =INDEX(Backbone!$L$2:$L$893,MATCH(I59,Backbone!$A$2:$A$893,0)) -> 5.7 | AQ59: =INDEX(Backbone!$M$2:$M$893,MATCH(I59,Backbone!$A$2:$A$893,0)) -> 6.8 | AS59: =INDEX(Backbone!$N$2:$N$893,MATCH(I59,Backbone!$A$2:$A$893,0)) -> 8 | AU59: =INDEX(Backbone!$O$2:$O$893,MATCH(I59,Backbone!$A$2:$A$893,0)) -> 8.6 | AW59: =INDEX(Backbone!$P$2:$P$893,MATCH(I59,Backbone!$A$2:$A$893,0)) -> 9.5 | AY59: =INDEX(Backbone!$Q$2:$Q$893,MATCH(I59,Backbone!$A$2:$A$893,0)) -> 0.7277777778 | BB59: =(AG59*$AG$22+AI59*$AI$22+AK59*$AK$22+AM59*$AM$22+AO59*$AO$22+AQ59*$AQ$22+AS59*$AS$22+AU59*$AU$22+AW59*$AW$22)/(SUM($AG$22:$AW$22)*10) ->  | BE59: Go to Toolbox: | BG59: =HYPERLINK("#"&ADDRESS(MATCH(I59,Toolbox!$C$1:$C$300),1,,,"Toolbox"),VLOOKUP(I59,Toolbox!$C$1:$C$300,1,FALSE)) -> Stepwise Approach towards Rabies Elimination (SARE)
D66: Other Relevant Resources | I66: =Backbone!A100 -> Evaluation of Collaboration in a multisectoral Surveillance system (EcoSur) | P66: A tool that aims to evaluate the organization and functioning of collaboration in a multisectoral surveillance system and to analyse strengths and weaknesses of this collaboration. | Y66: =INDEX(Backbone!$R$2:$R$893,MATCH(I66,Backbone!$A$2:$A$893,0)) -> Guided/Facilitated tool or process | AC66: =INDEX(Backbone!$S$2:$S$893,MATCH(I66,Backbone!$A$2:$A$893,0)) -> One Health; Generalized | AG66: =INDEX(Backbone!$H$2:$H$893,MATCH(I66,Backbone!$A$2:$A$893,0)) -> 8.3 | AI66: =INDEX(Backbone!$I$2:$I$893,MATCH(I66,Backbone!$A$2:$A$893,0)) -> 6 | AK66: =INDEX(Backbone!$J$2:$J$893,MATCH(I66,Backbone!$A$2:$A$893,0)) -> 8.5 | AM66: =INDEX(Backbone!$K$1:$K$893,MATCH(I66,Backbone!$A$1:$A$893,0)) -> 7.8 | AO66: =INDEX(Backbone!$L$2:$L$893,MATCH(I66,Backbone!$A$2:$A$893,0)) -> 8.3 | AQ66: =INDEX(Backbone!$M$2:$M$893,MATCH(I66,Backbone!$A$2:$A$893,0)) -> 6.7 | AS66: =INDEX(Backbone!$N$2:$N$893,MATCH(I66,Backbone!$A$2:$A$893,0)) -> 3.3 | AU66: =INDEX(Backbone!$O$2:$O$893,MATCH(I66,Backbone!$A$2:$A$893,0)) -> 9.1 | AW66: =INDEX(Backbone!$P$2:$P$893,MATCH(I66,Backbone!$A$2:$A$893,0)) -> 4.7 | AY66: =INDEX(Backbone!$Q$2:$Q$893,MATCH(I66,Backbone!$A$2:$A$893,0)) -> 0.6966666667 | BB66: =(AG66*$AG$22+AI66*$AI$22+AK66*$AK$22+AM66*$AM$22+AO66*$AO$22+AQ66*$AQ$22+AS66*$AS$22+AU66*$AU$22+AW66*$AW$22)/(SUM($AG$22:$AW$22)*10) ->  | BE66: Go to Toolbox: | BG66: =HYPERLINK("#"&ADDRESS(MATCH(I66,Toolbox!$C$1:$C$300),1,,,"Toolbox"),VLOOKUP(I66,Toolbox!$C$1:$C$300,1,FALSE)) -> Evaluation of Collaboration in a multisectoral Surveillance system (EcoSur)
I72: =Backbone!A195 -> Integrated Disease Surveillance and Response (IDSR) | P72: A strategy aimed at strengthening capacities for detection, confirmation and response to suspected cases and outbreaks, and for use of information to predict and plan for public health events. | Y72: =INDEX(Backbone!$R$2:$R$893,MATCH(I72,Backbone!$A$2:$A$893,0)) -> Guidance document | AC72: =INDEX(Backbone!$S$2:$S$893,MATCH(I72,Backbone!$A$2:$A$893,0)) -> Sector Specific; Generalized | AG72: =INDEX(Backbone!$H$2:$H$893,MATCH(I72,Backbone!$A$2:$A$893,0)) -> 7.4 | AI72: =INDEX(Backbone!$I$2:$I$893,MATCH(I72,Backbone!$A$2:$A$893,0)) -> 10 | AK72: =INDEX(Backbone!$J$2:$J$893,MATCH(I72,Backbone!$A$2:$A$893,0)) -> 7.4 | AM72: =INDEX(Backbone!$K$1:$K$893,MATCH(I72,Backbone!$A$1:$A$893,0)) -> 8.7 | AO72: =INDEX(Backbone!$L$2:$L$893,MATCH(I72,Backbone!$A$2:$A$893,0)) -> 6.7 | AQ72: =INDEX(Backbone!$M$2:$M$893,MATCH(I72,Backbone!$A$2:$A$893,0)) -> 4.5 | AS72: =INDEX(Backbone!$N$2:$N$893,MATCH(I72,Backbone!$A$2:$A$893,0)) -> 8 | AU72: =INDEX(Backbone!$O$2:$O$893,MATCH(I72,Backbone!$A$2:$A$893,0)) -> 7.2 | AW72: =INDEX(Backbone!$P$2:$P$893,MATCH(I72,Backbone!$A$2:$A$893,0)) -> 8.5 | AY72: =INDEX(Backbone!$Q$2:$Q$893,MATCH(I72,Backbone!$A$2:$A$893,0)) -> 0.76 | BB72: =(AG72*$AG$22+AI72*$AI$22+AK72*$AK$22+AM72*$AM$22+AO72*$AO$22+AQ72*$AQ$22+AS72*$AS$22+AU72*$AU$22+AW72*$AW$22)/(SUM($AG$22:$AW$22)*10) ->  | BE72: Go to Toolbox: | BG72: =HYPERLINK("#"&ADDRESS(MATCH(I72,Toolbox!$C$1:$C$300),1,,,"Toolbox"),VLOOKUP(I72,Toolbox!$C$1:$C$300,1,FALSE)) -> Integrated Disease Surveillance and Response (IDSR)
I78: =Backbone!A303 -> National Action Plan for Health Security (NAPHS) | P78: A country owned planning process that can accelerate the implementation of International Health Regulations (IHR) core capacities and is based on the One Health and whole-of-government approach for all hazards. | Y78: =INDEX(Backbone!$R$2:$R$893,MATCH(I78,Backbone!$A$2:$A$893,0)) -> Guidance document | AC78: =INDEX(Backbone!$S$2:$S$893,MATCH(I78,Backbone!$A$2:$A$893,0)) -> One Health; Generalized | AG78: =INDEX(Backbone!$H$2:$H$893,MATCH(I78,Backbone!$A$2:$A$893,0)) -> 8 | AI78: =INDEX(Backbone!$I$2:$I$893,MATCH(I78,Backbone!$A$2:$A$893,0)) -> 9 | AK78: =INDEX(Backbone!$J$2:$J$893,MATCH(I78,Backbone!$A$2:$A$893,0)) -> 7.8 | AM78: =INDEX(Backbone!$K$1:$K$893,MATCH(I78,Backbone!$A$1:$A$893,0)) -> 10 | AO78: =INDEX(Backbone!$L$2:$L$893,MATCH(I78,Backbone!$A$2:$A$893,0)) -> 8 | AQ78: =INDEX(Backbone!$M$2:$M$893,MATCH(I78,Backbone!$A$2:$A$893,0)) -> 4.5 | AS78: =INDEX(Backbone!$N$2:$N$893,MATCH(I78,Backbone!$A$2:$A$893,0)) -> 10 | AU78: =INDEX(Backbone!$O$2:$O$893,MATCH(I78,Backbone!$A$2:$A$893,0)) -> 10 | AW78: =INDEX(Backbone!$P$2:$P$893,MATCH(I78,Backbone!$A$2:$A$893,0)) -> 10 | AY78: =INDEX(Backbone!$Q$2:$Q$893,MATCH(I78,Backbone!$A$2:$A$893,0)) -> 0.8588888889 | BB78: =(AG78*$AG$22+AI78*$AI$22+AK78*$AK$22+AM78*$AM$22+AO78*$AO$22+AQ78*$AQ$22+AS78*$AS$22+AU78*$AU$22+AW78*$AW$22)/(SUM($AG$22:$AW$22)*10) ->  | BE78: Go to Toolbox: | BG78: =HYPERLINK("#"&ADDRESS(MATCH(I78,Toolbox!$C$1:$C$300),1,,,"Toolbox"),VLOOKUP(I78,Toolbox!$C$1:$C$300,1,FALSE)) -> National Action Plan for Health Security (NAPHS)
I84: =Backbone!A420 -> World Organisation for Animal Health (WOAH) PVS Gap Analysis | P84: The PVS Gap Analysis is an exercise undertaken with the national Veterinary Services to determine their priority goals, as well as strategies, activities and investments required to achieve these objectives. | Y84: =INDEX(Backbone!$R$2:$R$893,MATCH(I84,Backbone!$A$2:$A$893,0)) -> Guided/Facilitated tool or process | AC84: =INDEX(Backbone!$S$2:$S$893,MATCH(I84,Backbone!$A$2:$A$893,0)) -> Sector Specific; Generalized | AG84: =INDEX(Backbone!$H$2:$H$893,MATCH(I84,Backbone!$A$2:$A$893,0)) -> 6.8 | AI84: =INDEX(Backbone!$I$2:$I$893,MATCH(I84,Backbone!$A$2:$A$893,0)) -> 8 | AK84: =INDEX(Backbone!$J$2:$J$893,MATCH(I84,Backbone!$A$2:$A$893,0)) -> 5.6 | AM84: =INDEX(Backbone!$K$1:$K$893,MATCH(I84,Backbone!$A$1:$A$893,0)) -> 10 | AO84: =INDEX(Backbone!$L$2:$L$893,MATCH(I84,Backbone!$A$2:$A$893,0)) -> 6 | AQ84: =INDEX(Backbone!$M$2:$M$893,MATCH(I84,Backbone!$A$2:$A$893,0)) -> 4.3 | AS84: =INDEX(Backbone!$N$2:$N$893,MATCH(I84,Backbone!$A$2:$A$893,0)) -> 9.5 | AU84: =INDEX(Backbone!$O$2:$O$893,MATCH(I84,Backbone!$A$2:$A$893,0)) -> 4.7 | AW84: =INDEX(Backbone!$P$2:$P$893,MATCH(I84,Backbone!$A$2:$A$893,0)) -> 7 | AY84: =INDEX(Backbone!$Q$2:$Q$893,MATCH(I84,Backbone!$A$2:$A$893,0)) -> 0.6877777778 | BB84: =(AG84*$AG$22+AI84*$AI$22+AK84*$AK$22+AM84*$AM$22+AO84*$AO$22+AQ84*$AQ$22+AS84*$AS$22+AU84*$AU$22+AW84*$AW$22)/(SUM($AG$22:$AW$22)*10) ->  | BE84: Go to Toolbox: | BG84: =HYPERLINK("#"&ADDRESS(MATCH(I84,Toolbox!$C$1:$C$300),1,,,"Toolbox"),VLOOKUP(I84,Toolbox!$C$1:$C$300,1,FALSE)) -> World Organisation for Animal Health (WOAH) PVS Gap Analysis
I90: =Backbone!A510 -> SuRveillance EVALuation framework (SERVAL) | P90: A stepwise instruction on how to plan, structure and conduct assessment of animal health surveillance systems. | Y90: =INDEX(Backbone!$R$2:$R$893,MATCH(I90,Backbone!$A$2:$A$893,0)) -> Guidance document | AC90: =INDEX(Backbone!$S$2:$S$893,MATCH(I90,Backbone!$A$2:$A$893,0)) -> Sector Specific; Generalized | AG90: =INDEX(Backbone!$H$2:$H$893,MATCH(I90,Backbone!$A$2:$A$893,0)) -> 8.8 | AI90: =INDEX(Backbone!$I$2:$I$893,MATCH(I90,Backbone!$A$2:$A$893,0)) -> 9 | AK90: =INDEX(Backbone!$J$2:$J$893,MATCH(I90,Backbone!$A$2:$A$893,0)) -> 9 | AM90: =INDEX(Backbone!$K$1:$K$893,MATCH(I90,Backbone!$A$1:$A$893,0)) -> 10 | AO90: =INDEX(Backbone!$L$2:$L$893,MATCH(I90,Backbone!$A$2:$A$893,0)) -> 8.1 | AQ90: =INDEX(Backbone!$M$2:$M$893,MATCH(I90,Backbone!$A$2:$A$893,0)) -> 3.3 | AS90: =INDEX(Backbone!$N$2:$N$893,MATCH(I90,Backbone!$A$2:$A$893,0)) -> 4 | AU90: =INDEX(Backbone!$O$2:$O$893,MATCH(I90,Backbone!$A$2:$A$893,0)) -> 6.8 | AW90: =INDEX(Backbone!$P$2:$P$893,MATCH(I90,Backbone!$A$2:$A$893,0)) -> 8 | AY90: =INDEX(Backbone!$Q$2:$Q$893,MATCH(I90,Backbone!$A$2:$A$893,0)) -> 0.7444444444 | BB90: =(AG90*$AG$22+AI90*$AI$22+AK90*$AK$22+AM90*$AM$22+AO90*$AO$22+AQ90*$AQ$22+AS90*$AS$22+AU90*$AU$22+AW90*$AW$22)/(SUM($AG$22:$AW$22)*10) ->  | BE90: Go to Toolbox: | BG90: =HYPERLINK("#"&ADDRESS(MATCH(I90,Toolbox!$C$1:$C$300),1,,,"Toolbox"),VLOOKUP(I90,Toolbox!$C$1:$C$300,1,FALSE)) -> SuRveillance EVALuation framework (SERVAL)
AG115: Accessibility | AI115: Language | AK115: Ease of use | AM115: Flexibility | AO115: Data Needs | AQ115: Data Analysis | AS115: Acceptability | AU115: One Health | AW115: Impact
AY122: RAW SCORE | BB122: ADJUSTED SCORE (Based on user preferences)
B126: LEVEL 2 RESOURCES | D126: DESIGNATION | I126: RESOURCE NAME | P126: SHORT DESCRIPTION | Y126: RESOURCE TYPE | AC126: RESOURCE GENERALITY
AG130: ='Attribute Survey'!S130 -> 0 | AI130: ='Attribute Survey'!S134 -> 0 | AK130: ='Attribute Survey'!S138 -> 0 | AM130: ='Attribute Survey'!S142 -> 0 | AO130: ='Attribute Survey'!S146 -> 0 | AQ130: ='Attribute Survey'!S150 -> 0 | AS130: ='Attribute Survey'!S154 -> 0 | AU130: ='Attribute Survey'!S158 -> 0 | AW130: ='Attribute Survey'!S162 -> 0
D131: Resources Best Fit For Purpose | I131: =Backbone!A51 -> Border Health Capacity Discussion Guide (BHCDG) | P131: Template tools to lead facilitated discussions with national-, district-, and ground crossing-level representatives on border health system | Y131: =INDEX(Backbone!$R2:$R893,MATCH(I131,Backbone!$A2:$A893,0)) -> Guidance document | AC131: =INDEX(Backbone!S2:S893,MATCH(I131,Backbone!A2:A893,0)) -> One Health; Disease/Threat Specific | AG131: =INDEX(Backbone!H2:H893,MATCH(I131,Backbone!A2:A893,0)) -> 8.8 | AI131: =INDEX(Backbone!I2:I893,MATCH(I131,Backbone!A2:A893,0)) -> 6.7 | AK131: =INDEX(Backbone!J2:J893,MATCH(I131,Backbone!A2:A893,0)) -> 7.6 | AM131: =INDEX(Backbone!K2:K893,MATCH(I131,Backbone!A2:A893,0)) -> 9 | AO131: =INDEX(Backbone!L2:L893,MATCH(I131,Backbone!A2:A893,0)) -> 7 | AQ131: =INDEX(Backbone!M2:M893,MATCH(I131,Backbone!A2:A893,0)) -> 3.8 | AS131: =INDEX(Backbone!N2:N893,MATCH(I131,Backbone!A2:A893,0)) -> 8 | AU131: =INDEX(Backbone!O2:O893,MATCH(I131,Backbone!A2:A893,0)) -> 8.4 | AW131: =INDEX(Backbone!P2:P893,MATCH(I131,Backbone!A2:A893,0)) -> 6 | AY131: =INDEX(Backbone!Q2:Q893,MATCH(I131,Backbone!A2:A893,0)) -> 0.7255555556 | BB131: =(AG131*AG22+AI23*AI22+AK131*AK22+AM131*AM22+AO131*AO22+AQ131*AQ22+AS131*AS22+AU131*AU22+AW131*AW22)/(SUM(AG22:AW22)*10) ->  | BE131: Go to Toolbox: | BG131: =HYPERLINK("#"&ADDRESS(MATCH(I131,Toolbox!$C$1:$C$300),1,,,"Toolbox"),VLOOKUP(I131,Toolbox!$C$1:$C$300,1,FALSE)) -> Border Health Capacity Discussion Guide (BHCDG)
